{"text_format":"1","workbook":"xlsx","n_sheets":3,"sheets":["Výpočetní program","Obecná metoda","Integrace"],"not_rendered":{"charts":2,"images":2,"macros":1,"external_links":0,"defined_names":0,"comments":0,"pivot_tables":0},"unopened":[],"bounds":{"document_bytes":16777216,"sheet_cells":100000,"rows_first":2000,"rows_last":500,"rows_between":2000,"halvings":0,"cell_chars":16384,"cell_head_chars":4096},"cells_cut":0,"cells_raw":0,"read":"whole","date_system":"1900"}

{"sheet":"Výpočetní program","index":0,"n_rows":46,"n_cols":15,"rows_kept":46,"cut":false,"hidden":false,"merged":[[18,2,18,4],[23,2,23,4],[34,2,34,4],[32,2,32,4],[22,2,22,4],[21,2,21,4],[20,2,20,4],[25,2,25,4],[26,2,26,4],[27,2,27,4],[28,2,28,4],[12,2,12,4],[14,2,14,4],[17,2,17,4],[16,2,16,4],[15,2,15,4],[1,1,1,23],[7,5,8,5],[7,7,7,23],[8,7,8,23],[7,2,8,4],[4,2,4,4],[4,7,4,50],[23,7,23,9],[15,7,15,9],[14,7,14,9],[16,7,16,9],[17,7,17,9],[18,7,18,9],[12,7,12,9],[40,2,40,4],[42,2,42,4],[38,2,38,8],[41,2,41,4],[35,2,35,4],[33,2,33,4],[36,2,36,4],[26,7,26,9],[27,7,27,9],[28,7,28,9],[32,7,36,10],[25,7,25,9],[20,7,20,9],[21,7,21,9],[22,7,22,9]]}
[]
[null,"PROGRAM PRO STANOVENÍ STŘEDNÍ AERODYNAMICKÉ TĚTIVY KŘÍDLA OBECNÉHO PŮDORYSU"]
[]
[]
[null,null,"Definujte typ křídla",null,null,"lichoběžník",null,"Zadejte půdorysný tvar vašeho křídla. V případě složeného křídla z více částí program předpokládá, že se \"typ křídla\" (jeho geometrické řazení) nemění. Předpokládá se pravoúhlý trojúhelník = delta křídlo)"]
[null,null,null,null,null,null,null,"Možné vstupy: obdélník, lichoběžník, trojúhelník, elipsa"]
[]
[null,null,"Zadejte počet částí křídla P",null,null,1,null,"Křídlo je buď jednoduché (neměnná geom.) nebo složené (proměnná geom.). Složené křídlo je nutné rozdělit na více jednoduchých subkřídel v místech, kde se geometrie mění viz. obrázek."]
[null,null,null,null,null,null,null,"Možné vstupy (počet subkřídel): 1, 2, 3 ,4"]
[]
[null,null,"Zadejte parametry křídla :"]
[]
[null,null,"Rozpětí 𝑙",null,null,600,null,"Změňte hodnotu 0 na vaši hodnotu."]
[]
[null,null,"Hloubka u kořene křídla 𝑏0",null,null,100,null,"Změňte hodnotu 0 na vaši hodnotu."]
[null,null,"Hloubka subkřídla 𝑏1",null,null,50,null,"Změňte hodnotu 0 na vaši hodnotu.",null,null,"(zajedte 1E-30)"]
[null,null,"Hloubka subkřídla 𝑏2",null,null,0,null,"Změňte hodnotu 0 na vaši hodnotu."]
[null,null,"Hloubka subkřídla 𝑏3",null,null,0,null,"Změňte hodnotu 0 na vaši hodnotu."]
[null,null,"Hloubka subkřídla 𝑏4",null,null,0,null,"Změňte hodnotu 0 na vaši hodnotu."]
[]
[null,null,"Šípovitost -> vzdálenost nb1",null,null,25,null,"Změňte hodnotu 0 na vaši hodnotu.",null,null,"(je rovna b0)"]
[null,null,"Šípovitost -> vzdálenost nb2",null,null,0,null,"Změňte hodnotu 0 na vaši hodnotu."]
[null,null,"Šípovitost -> vzdálenost nb3",null,null,0,null,"Změňte hodnotu 0 na vaši hodnotu."]
[null,null,"Šípovitost -> vzdálenost nb4",null,null,0,null,"Změňte hodnotu 0 na vaši hodnotu."]
[]
[null,null,"Šípovitost -> vzdálenost zb1",null,null,300,null,"Změňte hodnotu 0 na vaši hodnotu.",null,null,"(je rovna l/2)"]
[null,null,"Šípovitost -> vzdálenost zb2",null,null,0,null,"Změňte hodnotu 0 na vaši hodnotu."]
[null,null,"Šípovitost -> vzdálenost zb3",null,null,0,null,"Změňte hodnotu 0 na vaši hodnotu."]
[null,null,"Šípovitost -> vzdálenost zb4",null,null,0,null,"Změňte hodnotu 0 na vaši hodnotu."]
[]
[null,null,"Vypočtená hodnota ploch subkřídel :"]
[]
[null,null,"Plocha křídla S1",null,null,{"$f":"O42","v":22500},null,"Plocha křídla a plochy jeho částí pro kontrolu. viz. obrázek. "]
[null,null,"Plocha křídla S2",null,null,{"$f":"O43","v":0}]
[null,null,"Plocha křídla S3",null,null,{"$f":"O44","v":0}]
[null,null,"Plocha křídla S4",null,null,{"$f":"O45","v":0}]
[null,null,"Plocha křídla S (celková)",null,null,{"$f":"_xlfn.IFS(F5=\"elipsa\",PI()/4*F15*F13,SUM(F33:F36),SUM(F33:F36))","v":22500}]
[]
[null,null,"VÝSLEDNÉ HODNOTY DEFINUJÍCÍ STŘEDNÍ AERODYNAMICKOU TĚTIVU"]
[]
[null,null,"Střední aerodynamická hloubka",null,null,{"$f":"_xlfn.IFS(F5=\"elipsa\",8/(3*PI())*F15,(J42*F33+J43*F34+J44*F35+J45*F36)/(F33+F34+F35+F36),(J42*F33+J43*F34+J44*F35+J45*F36)/(F33+F34+F35+F36))","v":77.777777777777771},null,"Pole","zúžení^-1","bSAT","zSAT","xSAT","zSAT gl.","xSAT gl.","Plocha"]
[null,null,"Poloha SAT na rozpětí ",null,null,{"$f":"_xlfn.IFS(F5=\"elipsa\",0.4244*F13/2,(M42*F33+M43*F34+M44*F35+M45*F36)/(F33+F34+F35+F36),(M42*F33+M43*F34+M44*F35+M45*F36)/(F33+F34+F35+F36))","v":133.33333333333334},null,1,{"$f":"IFERROR(F16/F15,0)","v":0.5},{"$f":"_xlfn.IFS(I42=0,0,(2/3)*F15*((1+I42+I42^2)/(1+I42)),(2/3)*F15*((1+I42+I42^2)/(1+I42)))","v":77.777777777777771},{"$f":"_xlfn.IFS(I42=0,0,(2*F26)/6*(1+2*I42)/(1+I42),(2*F26)/6*(1+2*I42)/(1+I42))","v":133.33333333333334},{"$f":"IFERROR(K42/F26*F21,0)","v":11.111111111111112},{"$f":"_xlfn.IFS(K42=0,0,K42,K42)","v":133.33333333333334},{"$f":"_xlfn.IFS(L42=0,0,L42,L42)","v":11.111111111111112},{"$f":"IFERROR(_xlfn.IFS(IFERROR(F15*(F26-F25)+((F16-F15)/2)*(F26-F25),0)<0,0),IFERROR(F15*(F26-F25)+((F16-F15)/2)*(F26-F25),0))","v":22500}]
[null,null,"Vzdálenost náběžné hrany ",null,null,{"$f":"_xlfn.IFS(F5=\"elipsa\",\"viz. Obr.1\",F5=\"obdélník\",0,(N42*F33+N43*F34+N44*F35+N45*F36)/(F33+F34+F35+F36),(N42*F33+N43*F34+N44*F35+N45*F36)/(F33+F34+F35+F36))","v":11.111111111111112},null,2,{"$f":"IFERROR(F17/F16,0)","v":0},{"$f":"_xlfn.IFS(I43=0,0,(2/3)*F16*((1+I43+I43^2)/(1+I43)),(2/3)*F16*((1+I43+I43^2)/(1+I43)))","v":0},{"$f":"_xlfn.IFS(I43=0,0,(2*F27-2*F26)/6*(1+2*I43)/(1+I43),(2*F27-2*F26)/6*(1+2*I43)/(1+I43))","v":0},{"$f":"IFERROR(K43/(F27-F26)*(F22-F21),0)","v":0},{"$f":"_xlfn.IFS(K43=0,0,K43+F26,K43+F26)","v":0},{"$f":"_xlfn.IFS(L43=0,0,L43+F21,L43+F21)","v":0},{"$f":"IFERROR(_xlfn.IFS(IFERROR(F16*(F27-F26)+((F17-F16)/2)*(F27-F26),0)<0,0),IFERROR(F16*(F27-F26)+((F17-F16)/2)*(F27-F26),0))","v":0}]
[null,null,null,null,null,null,null,3,{"$f":"IFERROR(F18/F17,0)","v":0},{"$f":"_xlfn.IFS(I44=0,0,(2/3)*F17*((1+I44+I44^2)/(1+I44)),(2/3)*F17*((1+I44+I44^2)/(1+I44)))","v":0},{"$f":"_xlfn.IFS(I44=0,0,(2*F28-2*F27)/6*(1+2*I44)/(1+I44),(2*F28-2*F27)/6*(1+2*I44)/(1+I44))","v":0},{"$f":"IFERROR(K44/(F28-F27)*(F23-F22),0)","v":0},{"$f":"_xlfn.IFS(K44=0,0,K44+F27,K44+F27)","v":0},{"$f":"_xlfn.IFS(L44=0,0,L44+F22,L44+F22)","v":0},{"$f":"IFERROR(_xlfn.IFS(IFERROR(F17*(F28-F27)+((F18-F17)/2)*(F28-F27),0)<0,0),IFERROR(F17*(F28-F27)+((F18-F17)/2)*(F28-F27),0))","v":0}]
[null,null,"Zobrazit mezivýpočty? (zadejte \"ano\")",null,null,"ano",null,4,{"$f":"IFERROR(F19/F18,0)","v":0},{"$f":"_xlfn.IFS(I45=0,0,(2/3)*F18*((1+I45+I45^2)/(1+I45)),(2/3)*F18*((1+I45+I45^2)/(1+I45)))","v":0},{"$f":"_xlfn.IFS(I45=0,0,(2*F29-2*F28)/6*(1+2*I45)/(1+I45),(2*F29-2*F28)/6*(1+2*I45)/(1+I45))","v":0},{"$f":"IFERROR(K45/(F29-F28)*(F24-F23),0)","v":0},{"$f":"_xlfn.IFS(K45=0,0,K45+F28,K45+F28)","v":0},{"$f":"_xlfn.IFS(L45=0,0,L45+F23,L45+F23)","v":0},{"$f":"IFERROR(_xlfn.IFS(IFERROR(F18*(F29-F28)+((F19-F18)/2)*(F29-F28),0)<0,0),IFERROR(F18*(F29-F28)+((F19-F18)/2)*(F29-F28),0))","v":0}]
[null,null,"(nezobrazuje pro elipsu)"]

{"sheet":"Obecná metoda","index":1,"n_rows":2007,"n_cols":19,"rows_kept":2007,"cut":false,"hidden":false,"merged":[[41,12,41,13],[42,12,42,13],[34,12,34,13],[35,12,35,13],[36,12,36,13],[4,2,4,4],[1,1,1,24],[19,12,19,15],[8,12,9,15],[11,12,11,13],[12,12,12,13],[14,12,16,15],[31,12,31,13],[40,12,40,13],[6,12,6,15],[4,6,4,7],[4,9,4,10],[32,12,32,13],[25,14,25,15],[27,14,27,15],[31,14,31,15],[32,14,32,15],[38,12,38,13],[38,14,38,15],[29,11,29,16]]}
[]
[null,"PROGRAM PRO STANOVENÍ STŘEDNÍ AERODYNAMICKÉ TĚTIVY KŘÍDLA OBECNÉHO PŮDORYSU"]
[]
[]
[null,null,"SOUŘADNICE KŘÍDLA",null,null,null,"PLOŠNÉ ROZDĚLENÍ",null,null,"MEZIVÝPOČET"]
[null,null,"z","x1","x2",null,"z","x=x1-x2",null,"Hloubka b(x)","chyba"]
[null,null,0,0,100,null,{"$f":"IF(COUNT(C7)=1,C7,#N/A)","v":0},{"$f":"IF(COUNT(D7:E7)=2,ABS(D7-E7),#N/A)","v":100},null,{"$f":"3.469446951954E-18*G7^2 - 0.166666666666669*G7 + 100","v":100},{"$f":"IFERROR(ABS((H7-J7)/J7),\"\")","v":0},null,"KONTROLA POUŽITÉ REGRESE",null,null,null,null,null,"0,000000000000000003469446951954*G7^2 - 0,166666666666669000000000000000*G7 + 100,000000000000000000000000000000"]
[null,null,150,12.5,87.5,null,{"$f":"IF(COUNT(C8)=1,C8,#N/A)","v":150},{"$f":"IF(COUNT(D8:E8)=2,ABS(D8-E8),#N/A)","v":75},null,{"$f":"3.469446951954E-18*G8^2 - 0.166666666666669*G8 + 100","v":74.99999999999973},{"$f":"IFERROR(ABS((H8-J8)/J8),\"\")","v":3.6000831945178539E-15}]
[null,null,300,25,75,null,300,50,null,49.999999999999616,7.6738615462091409E-15,null,"Do bílého pole zadejte maximální procentuální chybu regrese, kterou jste ochotni připustit.  "]
[null,null,null,null,null,null,{"$error":"#N/A"},{"$error":"#N/A"},null,null,""]
[null,null,null,null,null,null,{"$error":"#N/A"},{"$error":"#N/A"},null,null,""]
[null,null,null,null,null,null,{"$error":"#N/A"},{"$error":"#N/A"},null,null,"",null,"Tolerovaná hodnota chyby",null,1E-3]
[null,null,null,null,null,null,{"$error":"#N/A"},{"$error":"#N/A"},null,null,"",null,"Maximální dosažená chyba",null,{"$f":"MAX(K7:K2007)","v":7.6738615462091409E-15}]
[null,null,null,null,null,null,{"$error":"#N/A"},{"$error":"#N/A"},null,null,""]
[null,null,null,null,null,null,{"$error":"#N/A"},{"$error":"#N/A"},null,null,"",null,{"$f":"_xlfn.IFS(O13<O12,\"Použili jste vhodnou regresi, výpočet dosahuje maximálně vámi tolerovanou chybu.\",O13>O12,\"Nepřesný výsledek. Změňte řád polynomu regrese nebo vytvořte hustší síť souřadnic definujících profil křídla.\",O13=O12,\"Použili jste vhodnou regresi, výpočet dosahuje maximálně vámi tolerovanou chybu.\")","v":"Použili jste vhodnou regresi, výpočet dosahuje maximálně vámi tolerovanou chybu."}]
[null,null,null,null,null,null,{"$error":"#N/A"},{"$error":"#N/A"},null,null,""]
[null,null,null,null,null,null,{"$error":"#N/A"},{"$error":"#N/A"},null,null,""]
[null,null,null,null,null,null,{"$error":"#N/A"},{"$error":"#N/A"},null,null,""]
[null,null,null,null,null,null,{"$error":"#N/A"},{"$error":"#N/A"},null,null,""]
[null,null,null,null,null,null,{"$error":"#N/A"},{"$error":"#N/A"},null,null,"",null,"VÝPOČET STŘEDNÍ AERODYNAMICKÉ HLOUBKY bSAT"]
[null,null,null,null,null,null,{"$error":"#N/A"},{"$error":"#N/A"},null,null,""]
[null,null,null,null,null,null,{"$error":"#N/A"},{"$error":"#N/A"},null,null,""]
[null,null,null,null,null,null,{"$error":"#N/A"},{"$error":"#N/A"},null,null,""]
[null,null,null,null,null,null,{"$error":"#N/A"},{"$error":"#N/A"},null,null,""]
[null,null,null,null,null,null,{"$error":"#N/A"},{"$error":"#N/A"},null,null,""]
[null,null,null,null,null,null,{"$error":"#N/A"},{"$error":"#N/A"},null,null,"",null,null,null,{"$f":"3.469446951954E-18*Z1^2 - 0.166666666666669*Z1 + 100","v":100},null,null,null,"0,000000000000000003469446951954*z1^2 - 0,166666666666669000000000000000*z1 + 100,000000000000000000000000000000"]
[null,null,null,null,null,null,{"$error":"#N/A"},{"$error":"#N/A"},null,null,""]
[null,null,null,null,null,null,{"$error":"#N/A"},{"$error":"#N/A"},null,null,"",null,null,null,{"$f":"0.0833333333333335*Z1 - 1.4210854715202E-14","v":-1.4210854715202001E-14},null,null,null,"0,083333333333333500000000000000*z1 - 0,000000000000014210854715202000"]
[null,null,null,null,null,null,{"$error":"#N/A"},{"$error":"#N/A"},null,null,"",null,null,null,null,null,null,null,"0,083333333333333500000000000000*G7 - 0,000000000000014210854715202000"]
[null,null,null,null,null,null,{"$error":"#N/A"},{"$error":"#N/A"},null,null,"","NEMÁTE K DISPOZICI FUNKCI QADF(), PŘEJDĚTE NA LIST \"INTEGRACE\"."]
[null,null,null,null,null,null,{"$error":"#N/A"},{"$error":"#N/A"},null,null,""]
[null,null,null,null,null,null,{"$error":"#N/A"},{"$error":"#N/A"},null,null,null,null,"Horní mez integrálů (= polovině rozpětí)",null,{"$f":"MAX(C7:C121)","v":300}]
[null,null,null,null,null,null,{"$error":"#N/A"},{"$error":"#N/A"},null,null,"",null,"Plocha křídla (získaná integrací b(z))",null,{"$f":"_xll.QUADF(O26,Z1,0,O32)","v":{"$error":"#NAME?"}}]
[null,null,null,null,null,null,{"$error":"#N/A"},{"$error":"#N/A"},null,null,""]
[null,null,null,null,null,null,{"$error":"#N/A"},{"$error":"#N/A"},null,null,"",null,"Střední aerodynamická hloubka",null,{"$f":"IFERROR(2/O33*O41/2, \"list Integrace\")","v":"list Integrace"}]
[null,null,null,null,null,null,{"$error":"#N/A"},{"$error":"#N/A"},null,null,"",null,"Poloha SAT na rozpětí ",null,{"$f":"IFERROR(2/O33*O42/2,\"list Integrace\")","v":"list Integrace"}]
[null,null,null,null,null,null,{"$error":"#N/A"},{"$error":"#N/A"},null,null,"",null,"Vzdálenost náběžné hrany ",null,{"$f":"IFERROR(2/O33*O43/2,\"list Integrace\")","v":"list Integrace"}]
[null,null,null,null,null,null,{"$error":"#N/A"},{"$error":"#N/A"},null,null,""]
[null,null,null,null,null,null,{"$error":"#N/A"},{"$error":"#N/A"},null,null,"",null,"Zobrazit mezivýpočty? (vepište \"ano\")",null,"ano"]
[null,null,null,null,null,null,{"$error":"#N/A"},{"$error":"#N/A"},null,null,""]
[null,null,null,null,null,null,{"$error":"#N/A"},{"$error":"#N/A"},null,null,"",null,"Integrál z b(z)^2",null,{"$f":"QUADF(O26^2,Z1,0,O32)","v":{"$error":"#NAME?"}}]
[null,null,null,null,null,null,{"$error":"#N/A"},{"$error":"#N/A"},null,null,"",null,"Integrál z b(z)*z",null,{"$f":"_xll.QUADF(O26*Z1,Z1,0,O32)","v":{"$error":"#NAME?"}}]
[null,null,null,null,null,null,{"$error":"#N/A"},{"$error":"#N/A"},null,null,"",null,"Integrál z b(z)*x(z)",null,{"$f":"_xll.QUADF(O26*O28,Z1,0,O32)","v":{"$error":"#NAME?"}}]
[null,null,null,null,null,null,{"$error":"#N/A"},{"$error":"#N/A"},null,null,""]
[null,null,null,null,null,null,{"$error":"#N/A"},{"$error":"#N/A"},null,null,""]
[null,null,null,null,null,null,{"$error":"#N/A"},{"$error":"#N/A"},null,null,""]
[null,null,null,null,null,null,{"$error":"#N/A"},{"$error":"#N/A"},null,null,""]
[null,null,null,null,null,null,{"$error":"#N/A"},{"$error":"#N/A"},null,null,""]
[null,null,null,null,null,null,{"$error":"#N/A"},{"$error":"#N/A"},null,null,""]
[null,null,null,null,null,null,{"$error":"#N/A"},{"$error":"#N/A"},null,null,""]
[null,null,null,null,null,null,{"$error":"#N/A"},{"$error":"#N/A"},null,null,""]
[null,null,null,null,null,null,{"$error":"#N/A"},{"$error":"#N/A"},null,null,""]
[null,null,null,null,null,null,{"$error":"#N/A"},{"$error":"#N/A"},null,null,""]
[null,null,null,null,null,null,{"$error":"#N/A"},{"$error":"#N/A"},null,null,""]
[null,null,null,null,null,null,{"$error":"#N/A"},{"$error":"#N/A"},null,null,""]
[null,null,null,null,null,null,{"$error":"#N/A"},{"$error":"#N/A"},null,null,""]
[null,null,null,null,null,null,{"$error":"#N/A"},{"$error":"#N/A"},null,null,""]
[null,null,null,null,null,null,{"$error":"#N/A"},{"$error":"#N/A"},null,null,""]
[null,null,null,null,null,null,{"$error":"#N/A"},{"$error":"#N/A"},null,null,""]
[null,null,null,null,null,null,{"$error":"#N/A"},{"$error":"#N/A"},null,null,""]
[null,null,null,null,null,null,{"$error":"#N/A"},{"$error":"#N/A"},null,null,""]
[null,null,null,null,null,null,{"$error":"#N/A"},{"$error":"#N/A"},null,null,""]
[null,null,null,null,null,null,{"$error":"#N/A"},{"$error":"#N/A"},null,null,""]
[null,null,null,null,null,null,{"$error":"#N/A"},{"$error":"#N/A"},null,null,""]
[null,null,null,null,null,null,{"$error":"#N/A"},{"$error":"#N/A"},null,null,""]
[null,null,null,null,null,null,{"$error":"#N/A"},{"$error":"#N/A"},null,null,""]
[null,null,null,null,null,null,{"$error":"#N/A"},{"$error":"#N/A"},null,null,""]
[null,null,null,null,null,null,{"$error":"#N/A"},{"$error":"#N/A"},null,null,""]
[null,null,null,null,null,null,{"$error":"#N/A"},{"$error":"#N/A"},null,null,""]
[null,null,null,null,null,null,{"$error":"#N/A"},{"$error":"#N/A"},null,null,""]
[null,null,null,null,null,null,{"$error":"#N/A"},{"$error":"#N/A"},null,null,""]
[null,null,null,null,null,null,{"$f":"IF(COUNT(C72)=1,C72,#N/A)","v":{"$error":"#N/A"}},{"$f":"IF(COUNT(D72:E72)=2,ABS(D72-E72),#N/A)","v":{"$error":"#N/A"}},null,null,""]
[null,null,null,null,null,null,{"$error":"#N/A"},{"$error":"#N/A"},null,null,{"$f":"IFERROR(ABS((H73-J73)/J73),\"\")","v":""}]
[null,null,null,null,null,null,{"$error":"#N/A"},{"$error":"#N/A"},null,null,""]
[null,null,null,null,null,null,{"$error":"#N/A"},{"$error":"#N/A"},null,null,""]
[null,null,null,null,null,null,{"$error":"#N/A"},{"$error":"#N/A"},null,null,""]
[null,null,null,null,null,null,{"$error":"#N/A"},{"$error":"#N/A"},null,null,""]
[null,null,null,null,null,null,{"$error":"#N/A"},{"$error":"#N/A"},null,null,""]
[null,null,null,null,null,null,{"$error":"#N/A"},{"$error":"#N/A"},null,null,""]
[null,null,null,null,null,null,{"$error":"#N/A"},{"$error":"#N/A"},null,null,""]
[null,null,null,null,null,null,{"$error":"#N/A"},{"$error":"#N/A"},null,null,""]
[null,null,null,null,null,null,{"$error":"#N/A"},{"$error":"#N/A"},null,null,""]
[null,null,null,null,null,null,{"$error":"#N/A"},{"$error":"#N/A"},null,null,""]
[null,null,null,null,null,null,{"$error":"#N/A"},{"$error":"#N/A"},null,null,""]
[null,null,null,null,null,null,{"$error":"#N/A"},{"$error":"#N/A"},null,null,""]
[null,null,null,null,null,null,{"$error":"#N/A"},{"$error":"#N/A"},null,null,""]
[null,null,null,null,null,null,{"$error":"#N/A"},{"$error":"#N/A"},null,null,""]
[null,null,null,null,null,null,{"$error":"#N/A"},{"$error":"#N/A"},null,null,""]
[null,null,null,null,null,null,{"$error":"#N/A"},{"$error":"#N/A"},null,null,""]
[null,null,null,null,null,null,{"$error":"#N/A"},{"$error":"#N/A"},null,null,""]
[null,null,null,null,null,null,{"$error":"#N/A"},{"$error":"#N/A"},null,null,""]
[null,null,null,null,null,null,{"$error":"#N/A"},{"$error":"#N/A"},null,null,""]
[null,null,null,null,null,null,{"$error":"#N/A"},{"$error":"#N/A"},null,null,""]
[null,null,null,null,null,null,{"$error":"#N/A"},{"$error":"#N/A"},null,null,""]
[null,null,null,null,null,null,{"$error":"#N/A"},{"$error":"#N/A"},null,null,""]
[null,null,null,null,null,null,{"$error":"#N/A"},{"$error":"#N/A"},null,null,""]
[null,null,null,null,null,null,{"$error":"#N/A"},{"$error":"#N/A"},null,null,""]
[null,null,null,null,null,null,{"$error":"#N/A"},{"$error":"#N/A"},null,null,""]
[null,null,null,null,null,null,{"$error":"#N/A"},{"$error":"#N/A"},null,null,""]
[null,null,null,null,null,null,{"$error":"#N/A"},{"$error":"#N/A"},null,null,""]
[null,null,null,null,null,null,{"$error":"#N/A"},{"$error":"#N/A"},null,null,""]
[null,null,null,null,null,null,{"$error":"#N/A"},{"$error":"#N/A"},null,null,""]
[null,null,null,null,null,null,{"$error":"#N/A"},{"$error":"#N/A"},null,null,""]
[null,null,null,null,null,null,{"$error":"#N/A"},{"$error":"#N/A"},null,null,""]
[null,null,null,null,null,null,{"$error":"#N/A"},{"$error":"#N/A"},null,null,""]
[null,null,null,null,null,null,{"$error":"#N/A"},{"$error":"#N/A"},null,null,""]
[null,null,null,null,null,null,{"$error":"#N/A"},{"$error":"#N/A"},null,null,""]
[null,null,null,null,null,null,{"$error":"#N/A"},{"$error":"#N/A"},null,null,""]
[null,null,null,null,null,null,{"$error":"#N/A"},{"$error":"#N/A"},null,null,""]
[null,null,null,null,null,null,{"$error":"#N/A"},{"$error":"#N/A"},null,null,""]
[null,null,null,null,null,null,{"$error":"#N/A"},{"$error":"#N/A"},null,null,""]
[null,null,null,null,null,null,{"$error":"#N/A"},{"$error":"#N/A"},null,null,""]
[null,null,null,null,null,null,{"$error":"#N/A"},{"$error":"#N/A"},null,null,""]
[null,null,null,null,null,null,{"$error":"#N/A"},{"$error":"#N/A"},null,null,""]
[null,null,null,null,null,null,{"$error":"#N/A"},{"$error":"#N/A"},null,null,""]
[null,null,null,null,null,null,{"$error":"#N/A"},{"$error":"#N/A"},null,null,""]
[null,null,null,null,null,null,{"$error":"#N/A"},{"$error":"#N/A"},null,null,""]
[null,null,null,null,null,null,{"$error":"#N/A"},{"$error":"#N/A"},null,null,""]
[null,null,null,null,null,null,{"$error":"#N/A"},{"$error":"#N/A"},null,null,""]
[null,null,null,null,null,null,{"$error":"#N/A"},{"$error":"#N/A"},null,null,""]
[null,null,null,null,null,null,{"$error":"#N/A"},{"$error":"#N/A"},null,null,""]
[null,null,null,null,null,null,{"$error":"#N/A"},{"$error":"#N/A"},null,null,""]
[null,null,null,null,null,null,{"$error":"#N/A"},{"$error":"#N/A"},null,null,""]
[null,null,null,null,null,null,{"$error":"#N/A"},{"$error":"#N/A"},null,null,""]
[null,null,null,null,null,null,{"$error":"#N/A"},{"$error":"#N/A"},null,null,""]
[null,null,null,null,null,null,{"$error":"#N/A"},{"$error":"#N/A"},null,null,""]
[null,null,null,null,null,null,{"$error":"#N/A"},{"$error":"#N/A"},null,null,""]
[null,null,null,null,null,null,{"$error":"#N/A"},{"$error":"#N/A"},null,null,""]
[null,null,null,null,null,null,{"$error":"#N/A"},{"$error":"#N/A"},null,null,""]
[null,null,null,null,null,null,{"$error":"#N/A"},{"$error":"#N/A"},null,null,""]
[null,null,null,null,null,null,{"$error":"#N/A"},{"$error":"#N/A"},null,null,""]
[null,null,null,null,null,null,{"$error":"#N/A"},{"$error":"#N/A"},null,null,""]
[null,null,null,null,null,null,{"$error":"#N/A"},{"$error":"#N/A"},null,null,""]
[null,null,null,null,null,null,{"$error":"#N/A"},{"$error":"#N/A"},null,null,""]
[null,null,null,null,null,null,{"$error":"#N/A"},{"$error":"#N/A"},null,null,""]
[null,null,null,null,null,null,{"$f":"IF(COUNT(C136)=1,C136,#N/A)","v":{"$error":"#N/A"}},{"$f":"IF(COUNT(D136:E136)=2,ABS(D136-E136),#N/A)","v":{"$error":"#N/A"}},null,null,""]
[null,null,null,null,null,null,{"$error":"#N/A"},{"$error":"#N/A"},null,null,{"$f":"IFERROR(ABS((H137-J137)/J137),\"\")","v":""}]
[null,null,null,null,null,null,{"$error":"#N/A"},{"$error":"#N/A"},null,null,""]
[null,null,null,null,null,null,{"$error":"#N/A"},{"$error":"#N/A"},null,null,""]
[null,null,null,null,null,null,{"$error":"#N/A"},{"$error":"#N/A"},null,null,""]
[null,null,null,null,null,null,{"$error":"#N/A"},{"$error":"#N/A"},null,null,""]
[null,null,null,null,null,null,{"$error":"#N/A"},{"$error":"#N/A"},null,null,""]
[null,null,null,null,null,null,{"$error":"#N/A"},{"$error":"#N/A"},null,null,""]
[null,null,null,null,null,null,{"$error":"#N/A"},{"$error":"#N/A"},null,null,""]
[null,null,null,null,null,null,{"$error":"#N/A"},{"$error":"#N/A"},null,null,""]
[null,null,null,null,null,null,{"$error":"#N/A"},{"$error":"#N/A"},null,null,""]
[null,null,null,null,null,null,{"$error":"#N/A"},{"$error":"#N/A"},null,null,""]
[null,null,null,null,null,null,{"$error":"#N/A"},{"$error":"#N/A"},null,null,""]
[null,null,null,null,null,null,{"$error":"#N/A"},{"$error":"#N/A"},null,null,""]
[null,null,null,null,null,null,{"$error":"#N/A"},{"$error":"#N/A"},null,null,""]
[null,null,null,null,null,null,{"$error":"#N/A"},{"$error":"#N/A"},null,null,""]
[null,null,null,null,null,null,{"$error":"#N/A"},{"$error":"#N/A"},null,null,""]
[null,null,null,null,null,null,{"$error":"#N/A"},{"$error":"#N/A"},null,null,""]
[null,null,null,null,null,null,{"$error":"#N/A"},{"$error":"#N/A"},null,null,""]
[null,null,null,null,null,null,{"$error":"#N/A"},{"$error":"#N/A"},null,null,""]
[null,null,null,null,null,null,{"$error":"#N/A"},{"$error":"#N/A"},null,null,""]
[null,null,null,null,null,null,{"$error":"#N/A"},{"$error":"#N/A"},null,null,""]
[null,null,null,null,null,null,{"$error":"#N/A"},{"$error":"#N/A"},null,null,""]
[null,null,null,null,null,null,{"$error":"#N/A"},{"$error":"#N/A"},null,null,""]
[null,null,null,null,null,null,{"$error":"#N/A"},{"$error":"#N/A"},null,null,""]
[null,null,null,null,null,null,{"$error":"#N/A"},{"$error":"#N/A"},null,null,""]
[null,null,null,null,null,null,{"$error":"#N/A"},{"$error":"#N/A"},null,null,""]
[null,null,null,null,null,null,{"$error":"#N/A"},{"$error":"#N/A"},null,null,""]
[null,null,null,null,null,null,{"$error":"#N/A"},{"$error":"#N/A"},null,null,""]
[null,null,null,null,null,null,{"$error":"#N/A"},{"$error":"#N/A"},null,null,""]
[null,null,null,null,null,null,{"$error":"#N/A"},{"$error":"#N/A"},null,null,""]
[null,null,null,null,null,null,{"$error":"#N/A"},{"$error":"#N/A"},null,null,""]
[null,null,null,null,null,null,{"$error":"#N/A"},{"$error":"#N/A"},null,null,""]
[null,null,null,null,null,null,{"$error":"#N/A"},{"$error":"#N/A"},null,null,""]
[null,null,null,null,null,null,{"$error":"#N/A"},{"$error":"#N/A"},null,null,""]
[null,null,null,null,null,null,{"$error":"#N/A"},{"$error":"#N/A"},null,null,""]
[null,null,null,null,null,null,{"$error":"#N/A"},{"$error":"#N/A"},null,null,""]
[null,null,null,null,null,null,{"$error":"#N/A"},{"$error":"#N/A"},null,null,""]
[null,null,null,null,null,null,{"$error":"#N/A"},{"$error":"#N/A"},null,null,""]
[null,null,null,null,null,null,{"$error":"#N/A"},{"$error":"#N/A"},null,null,""]
[null,null,null,null,null,null,{"$error":"#N/A"},{"$error":"#N/A"},null,null,""]
[null,null,null,null,null,null,{"$error":"#N/A"},{"$error":"#N/A"},null,null,""]
[null,null,null,null,null,null,{"$error":"#N/A"},{"$error":"#N/A"},null,null,""]
[null,null,null,null,null,null,{"$error":"#N/A"},{"$error":"#N/A"},null,null,""]
[null,null,null,null,null,null,{"$error":"#N/A"},{"$error":"#N/A"},null,null,""]
[null,null,null,null,null,null,{"$error":"#N/A"},{"$error":"#N/A"},null,null,""]
[null,null,null,null,null,null,{"$error":"#N/A"},{"$error":"#N/A"},null,null,""]
[null,null,null,null,null,null,{"$error":"#N/A"},{"$error":"#N/A"},null,null,""]
[null,null,null,null,null,null,{"$error":"#N/A"},{"$error":"#N/A"},null,null,""]
[null,null,null,null,null,null,{"$error":"#N/A"},{"$error":"#N/A"},null,null,""]
[null,null,null,null,null,null,{"$error":"#N/A"},{"$error":"#N/A"},null,null,""]
[null,null,null,null,null,null,{"$error":"#N/A"},{"$error":"#N/A"},null,null,""]
[null,null,null,null,null,null,{"$error":"#N/A"},{"$error":"#N/A"},null,null,""]
[null,null,null,null,null,null,{"$error":"#N/A"},{"$error":"#N/A"},null,null,""]
[null,null,null,null,null,null,{"$error":"#N/A"},{"$error":"#N/A"},null,null,""]
[null,null,null,null,null,null,{"$error":"#N/A"},{"$error":"#N/A"},null,null,""]
[null,null,null,null,null,null,{"$error":"#N/A"},{"$error":"#N/A"},null,null,""]
[null,null,null,null,null,null,{"$error":"#N/A"},{"$error":"#N/A"},null,null,""]
[null,null,null,null,null,null,{"$error":"#N/A"},{"$error":"#N/A"},null,null,""]
[null,null,null,null,null,null,{"$error":"#N/A"},{"$error":"#N/A"},null,null,""]
[null,null,null,null,null,null,{"$error":"#N/A"},{"$error":"#N/A"},null,null,""]
[null,null,null,null,null,null,{"$error":"#N/A"},{"$error":"#N/A"},null,null,""]
[null,null,null,null,null,null,{"$error":"#N/A"},{"$error":"#N/A"},null,null,""]
[null,null,null,null,null,null,{"$error":"#N/A"},{"$error":"#N/A"},null,null,""]
[null,null,null,null,null,null,{"$f":"IF(COUNT(C200)=1,C200,#N/A)","v":{"$error":"#N/A"}},{"$f":"IF(COUNT(D200:E200)=2,ABS(D200-E200),#N/A)","v":{"$error":"#N/A"}},null,null,""]
[null,null,null,null,null,null,{"$error":"#N/A"},{"$error":"#N/A"},null,null,{"$f":"IFERROR(ABS((H201-J201)/J201),\"\")","v":""}]
[null,null,null,null,null,null,{"$error":"#N/A"},{"$error":"#N/A"},null,null,""]
[null,null,null,null,null,null,{"$error":"#N/A"},{"$error":"#N/A"},null,null,""]
[null,null,null,null,null,null,{"$error":"#N/A"},{"$error":"#N/A"},null,null,""]
[null,null,null,null,null,null,{"$error":"#N/A"},{"$error":"#N/A"},null,null,""]
[null,null,null,null,null,null,{"$error":"#N/A"},{"$error":"#N/A"},null,null,""]
[null,null,null,null,null,null,{"$error":"#N/A"},{"$error":"#N/A"},null,null,""]
[null,null,null,null,null,null,{"$error":"#N/A"},{"$error":"#N/A"},null,null,""]
[null,null,null,null,null,null,{"$error":"#N/A"},{"$error":"#N/A"},null,null,""]
[null,null,null,null,null,null,{"$error":"#N/A"},{"$error":"#N/A"},null,null,""]
[null,null,null,null,null,null,{"$error":"#N/A"},{"$error":"#N/A"},null,null,""]
[null,null,null,null,null,null,{"$error":"#N/A"},{"$error":"#N/A"},null,null,""]
[null,null,null,null,null,null,{"$error":"#N/A"},{"$error":"#N/A"},null,null,""]
[null,null,null,null,null,null,{"$error":"#N/A"},{"$error":"#N/A"},null,null,""]
[null,null,null,null,null,null,{"$error":"#N/A"},{"$error":"#N/A"},null,null,""]
[null,null,null,null,null,null,{"$error":"#N/A"},{"$error":"#N/A"},null,null,""]
[null,null,null,null,null,null,{"$error":"#N/A"},{"$error":"#N/A"},null,null,""]
[null,null,null,null,null,null,{"$error":"#N/A"},{"$error":"#N/A"},null,null,""]
[null,null,null,null,null,null,{"$error":"#N/A"},{"$error":"#N/A"},null,null,""]
[null,null,null,null,null,null,{"$error":"#N/A"},{"$error":"#N/A"},null,null,""]
[null,null,null,null,null,null,{"$error":"#N/A"},{"$error":"#N/A"},null,null,""]
[null,null,null,null,null,null,{"$error":"#N/A"},{"$error":"#N/A"},null,null,""]
[null,null,null,null,null,null,{"$error":"#N/A"},{"$error":"#N/A"},null,null,""]
[null,null,null,null,null,null,{"$error":"#N/A"},{"$error":"#N/A"},null,null,""]
[null,null,null,null,null,null,{"$error":"#N/A"},{"$error":"#N/A"},null,null,""]
[null,null,null,null,null,null,{"$error":"#N/A"},{"$error":"#N/A"},null,null,""]
[null,null,null,null,null,null,{"$error":"#N/A"},{"$error":"#N/A"},null,null,""]
[null,null,null,null,null,null,{"$error":"#N/A"},{"$error":"#N/A"},null,null,""]
[null,null,null,null,null,null,{"$error":"#N/A"},{"$error":"#N/A"},null,null,""]
[null,null,null,null,null,null,{"$error":"#N/A"},{"$error":"#N/A"},null,null,""]
[null,null,null,null,null,null,{"$error":"#N/A"},{"$error":"#N/A"},null,null,""]
[null,null,null,null,null,null,{"$error":"#N/A"},{"$error":"#N/A"},null,null,""]
[null,null,null,null,null,null,{"$error":"#N/A"},{"$error":"#N/A"},null,null,""]
[null,null,null,null,null,null,{"$error":"#N/A"},{"$error":"#N/A"},null,null,""]
[null,null,null,null,null,null,{"$error":"#N/A"},{"$error":"#N/A"},null,null,""]
[null,null,null,null,null,null,{"$error":"#N/A"},{"$error":"#N/A"},null,null,""]
[null,null,null,null,null,null,{"$error":"#N/A"},{"$error":"#N/A"},null,null,""]
[null,null,null,null,null,null,{"$error":"#N/A"},{"$error":"#N/A"},null,null,""]
[null,null,null,null,null,null,{"$error":"#N/A"},{"$error":"#N/A"},null,null,""]
[null,null,null,null,null,null,{"$error":"#N/A"},{"$error":"#N/A"},null,null,""]
[null,null,null,null,null,null,{"$error":"#N/A"},{"$error":"#N/A"},null,null,""]
[null,null,null,null,null,null,{"$error":"#N/A"},{"$error":"#N/A"},null,null,""]
[null,null,null,null,null,null,{"$error":"#N/A"},{"$error":"#N/A"},null,null,""]
[null,null,null,null,null,null,{"$error":"#N/A"},{"$error":"#N/A"},null,null,""]
[null,null,null,null,null,null,{"$error":"#N/A"},{"$error":"#N/A"},null,null,""]
[null,null,null,null,null,null,{"$error":"#N/A"},{"$error":"#N/A"},null,null,""]
[null,null,null,null,null,null,{"$error":"#N/A"},{"$error":"#N/A"},null,null,""]
[null,null,null,null,null,null,{"$error":"#N/A"},{"$error":"#N/A"},null,null,""]
[null,null,null,null,null,null,{"$error":"#N/A"},{"$error":"#N/A"},null,null,""]
[null,null,null,null,null,null,{"$error":"#N/A"},{"$error":"#N/A"},null,null,""]
[null,null,null,null,null,null,{"$error":"#N/A"},{"$error":"#N/A"},null,null,""]
[null,null,null,null,null,null,{"$error":"#N/A"},{"$error":"#N/A"},null,null,""]
[null,null,null,null,null,null,{"$error":"#N/A"},{"$error":"#N/A"},null,null,""]
[null,null,null,null,null,null,{"$error":"#N/A"},{"$error":"#N/A"},null,null,""]
[null,null,null,null,null,null,{"$error":"#N/A"},{"$error":"#N/A"},null,null,""]
[null,null,null,null,null,null,{"$error":"#N/A"},{"$error":"#N/A"},null,null,""]
[null,null,null,null,null,null,{"$error":"#N/A"},{"$error":"#N/A"},null,null,""]
[null,null,null,null,null,null,{"$error":"#N/A"},{"$error":"#N/A"},null,null,""]
[null,null,null,null,null,null,{"$error":"#N/A"},{"$error":"#N/A"},null,null,""]
[null,null,null,null,null,null,{"$error":"#N/A"},{"$error":"#N/A"},null,null,""]
[null,null,null,null,null,null,{"$error":"#N/A"},{"$error":"#N/A"},null,null,""]
[null,null,null,null,null,null,{"$error":"#N/A"},{"$error":"#N/A"},null,null,""]
[null,null,null,null,null,null,{"$error":"#N/A"},{"$error":"#N/A"},null,null,""]
[null,null,null,null,null,null,{"$f":"IF(COUNT(C264)=1,C264,#N/A)","v":{"$error":"#N/A"}},{"$f":"IF(COUNT(D264:E264)=2,ABS(D264-E264),#N/A)","v":{"$error":"#N/A"}},null,null,""]
[null,null,null,null,null,null,{"$error":"#N/A"},{"$error":"#N/A"},null,null,{"$f":"IFERROR(ABS((H265-J265)/J265),\"\")","v":""}]
[null,null,null,null,null,null,{"$error":"#N/A"},{"$error":"#N/A"},null,null,""]
[null,null,null,null,null,null,{"$error":"#N/A"},{"$error":"#N/A"},null,null,""]
[null,null,null,null,null,null,{"$error":"#N/A"},{"$error":"#N/A"},null,null,""]
[null,null,null,null,null,null,{"$error":"#N/A"},{"$error":"#N/A"},null,null,""]
[null,null,null,null,null,null,{"$error":"#N/A"},{"$error":"#N/A"},null,null,""]
[null,null,null,null,null,null,{"$error":"#N/A"},{"$error":"#N/A"},null,null,""]
[null,null,null,null,null,null,{"$error":"#N/A"},{"$error":"#N/A"},null,null,""]
[null,null,null,null,null,null,{"$error":"#N/A"},{"$error":"#N/A"},null,null,""]
[null,null,null,null,null,null,{"$error":"#N/A"},{"$error":"#N/A"},null,null,""]
[null,null,null,null,null,null,{"$error":"#N/A"},{"$error":"#N/A"},null,null,""]
[null,null,null,null,null,null,{"$error":"#N/A"},{"$error":"#N/A"},null,null,""]
[null,null,null,null,null,null,{"$error":"#N/A"},{"$error":"#N/A"},null,null,""]
[null,null,null,null,null,null,{"$error":"#N/A"},{"$error":"#N/A"},null,null,""]
[null,null,null,null,null,null,{"$error":"#N/A"},{"$error":"#N/A"},null,null,""]
[null,null,null,null,null,null,{"$error":"#N/A"},{"$error":"#N/A"},null,null,""]
[null,null,null,null,null,null,{"$error":"#N/A"},{"$error":"#N/A"},null,null,""]
[null,null,null,null,null,null,{"$error":"#N/A"},{"$error":"#N/A"},null,null,""]
[null,null,null,null,null,null,{"$error":"#N/A"},{"$error":"#N/A"},null,null,""]
[null,null,null,null,null,null,{"$error":"#N/A"},{"$error":"#N/A"},null,null,""]
[null,null,null,null,null,null,{"$error":"#N/A"},{"$error":"#N/A"},null,null,""]
[null,null,null,null,null,null,{"$error":"#N/A"},{"$error":"#N/A"},null,null,""]
[null,null,null,null,null,null,{"$error":"#N/A"},{"$error":"#N/A"},null,null,""]
[null,null,null,null,null,null,{"$error":"#N/A"},{"$error":"#N/A"},null,null,""]
[null,null,null,null,null,null,{"$error":"#N/A"},{"$error":"#N/A"},null,null,""]
[null,null,null,null,null,null,{"$error":"#N/A"},{"$error":"#N/A"},null,null,""]
[null,null,null,null,null,null,{"$error":"#N/A"},{"$error":"#N/A"},null,null,""]
[null,null,null,null,null,null,{"$error":"#N/A"},{"$error":"#N/A"},null,null,""]
[null,null,null,null,null,null,{"$error":"#N/A"},{"$error":"#N/A"},null,null,""]
[null,null,null,null,null,null,{"$error":"#N/A"},{"$error":"#N/A"},null,null,""]
[null,null,null,null,null,null,{"$error":"#N/A"},{"$error":"#N/A"},null,null,""]
[null,null,null,null,null,null,{"$error":"#N/A"},{"$error":"#N/A"},null,null,""]
[null,null,null,null,null,null,{"$error":"#N/A"},{"$error":"#N/A"},null,null,""]
[null,null,null,null,null,null,{"$error":"#N/A"},{"$error":"#N/A"},null,null,""]
[null,null,null,null,null,null,{"$error":"#N/A"},{"$error":"#N/A"},null,null,""]
[null,null,null,null,null,null,{"$error":"#N/A"},{"$error":"#N/A"},null,null,""]
[null,null,null,null,null,null,{"$error":"#N/A"},{"$error":"#N/A"},null,null,""]
[null,null,null,null,null,null,{"$error":"#N/A"},{"$error":"#N/A"},null,null,""]
[null,null,null,null,null,null,{"$error":"#N/A"},{"$error":"#N/A"},null,null,""]
[null,null,null,null,null,null,{"$error":"#N/A"},{"$error":"#N/A"},null,null,""]
[null,null,null,null,null,null,{"$error":"#N/A"},{"$error":"#N/A"},null,null,""]
[null,null,null,null,null,null,{"$error":"#N/A"},{"$error":"#N/A"},null,null,""]
[null,null,null,null,null,null,{"$error":"#N/A"},{"$error":"#N/A"},null,null,""]
[null,null,null,null,null,null,{"$error":"#N/A"},{"$error":"#N/A"},null,null,""]
[null,null,null,null,null,null,{"$error":"#N/A"},{"$error":"#N/A"},null,null,""]
[null,null,null,null,null,null,{"$error":"#N/A"},{"$error":"#N/A"},null,null,""]
[null,null,null,null,null,null,{"$error":"#N/A"},{"$error":"#N/A"},null,null,""]
[null,null,null,null,null,null,{"$error":"#N/A"},{"$error":"#N/A"},null,null,""]
[null,null,null,null,null,null,{"$error":"#N/A"},{"$error":"#N/A"},null,null,""]
[null,null,null,null,null,null,{"$error":"#N/A"},{"$error":"#N/A"},null,null,""]
[null,null,null,null,null,null,{"$error":"#N/A"},{"$error":"#N/A"},null,null,""]
[null,null,null,null,null,null,{"$error":"#N/A"},{"$error":"#N/A"},null,null,""]
[null,null,null,null,null,null,{"$error":"#N/A"},{"$error":"#N/A"},null,null,""]
[null,null,null,null,null,null,{"$error":"#N/A"},{"$error":"#N/A"},null,null,""]
[null,null,null,null,null,null,{"$error":"#N/A"},{"$error":"#N/A"},null,null,""]
[null,null,null,null,null,null,{"$error":"#N/A"},{"$error":"#N/A"},null,null,""]
[null,null,null,null,null,null,{"$error":"#N/A"},{"$error":"#N/A"},null,null,""]
[null,null,null,null,null,null,{"$error":"#N/A"},{"$error":"#N/A"},null,null,""]
[null,null,null,null,null,null,{"$error":"#N/A"},{"$error":"#N/A"},null,null,""]
[null,null,null,null,null,null,{"$error":"#N/A"},{"$error":"#N/A"},null,null,""]
[null,null,null,null,null,null,{"$error":"#N/A"},{"$error":"#N/A"},null,null,""]
[null,null,null,null,null,null,{"$error":"#N/A"},{"$error":"#N/A"},null,null,""]
[null,null,null,null,null,null,{"$error":"#N/A"},{"$error":"#N/A"},null,null,""]
[null,null,null,null,null,null,{"$f":"IF(COUNT(C328)=1,C328,#N/A)","v":{"$error":"#N/A"}},{"$f":"IF(COUNT(D328:E328)=2,ABS(D328-E328),#N/A)","v":{"$error":"#N/A"}},null,null,""]
[null,null,null,null,null,null,{"$error":"#N/A"},{"$error":"#N/A"},null,null,{"$f":"IFERROR(ABS((H329-J329)/J329),\"\")","v":""}]
[null,null,null,null,null,null,{"$error":"#N/A"},{"$error":"#N/A"},null,null,""]
[null,null,null,null,null,null,{"$error":"#N/A"},{"$error":"#N/A"},null,null,""]
[null,null,null,null,null,null,{"$error":"#N/A"},{"$error":"#N/A"},null,null,""]
[null,null,null,null,null,null,{"$error":"#N/A"},{"$error":"#N/A"},null,null,""]
[null,null,null,null,null,null,{"$error":"#N/A"},{"$error":"#N/A"},null,null,""]
[null,null,null,null,null,null,{"$error":"#N/A"},{"$error":"#N/A"},null,null,""]
[null,null,null,null,null,null,{"$error":"#N/A"},{"$error":"#N/A"},null,null,""]
[null,null,null,null,null,null,{"$error":"#N/A"},{"$error":"#N/A"},null,null,""]
[null,null,null,null,null,null,{"$error":"#N/A"},{"$error":"#N/A"},null,null,""]
[null,null,null,null,null,null,{"$error":"#N/A"},{"$error":"#N/A"},null,null,""]
[null,null,null,null,null,null,{"$error":"#N/A"},{"$error":"#N/A"},null,null,""]
[null,null,null,null,null,null,{"$error":"#N/A"},{"$error":"#N/A"},null,null,""]
[null,null,null,null,null,null,{"$error":"#N/A"},{"$error":"#N/A"},null,null,""]
[null,null,null,null,null,null,{"$error":"#N/A"},{"$error":"#N/A"},null,null,""]
[null,null,null,null,null,null,{"$error":"#N/A"},{"$error":"#N/A"},null,null,""]
[null,null,null,null,null,null,{"$error":"#N/A"},{"$error":"#N/A"},null,null,""]
[null,null,null,null,null,null,{"$error":"#N/A"},{"$error":"#N/A"},null,null,""]
[null,null,null,null,null,null,{"$error":"#N/A"},{"$error":"#N/A"},null,null,""]
[null,null,null,null,null,null,{"$error":"#N/A"},{"$error":"#N/A"},null,null,""]
[null,null,null,null,null,null,{"$error":"#N/A"},{"$error":"#N/A"},null,null,""]
[null,null,null,null,null,null,{"$error":"#N/A"},{"$error":"#N/A"},null,null,""]
[null,null,null,null,null,null,{"$error":"#N/A"},{"$error":"#N/A"},null,null,""]
[null,null,null,null,null,null,{"$error":"#N/A"},{"$error":"#N/A"},null,null,""]
[null,null,null,null,null,null,{"$error":"#N/A"},{"$error":"#N/A"},null,null,""]
[null,null,null,null,null,null,{"$error":"#N/A"},{"$error":"#N/A"},null,null,""]
[null,null,null,null,null,null,{"$error":"#N/A"},{"$error":"#N/A"},null,null,""]
[null,null,null,null,null,null,{"$error":"#N/A"},{"$error":"#N/A"},null,null,""]
[null,null,null,null,null,null,{"$error":"#N/A"},{"$error":"#N/A"},null,null,""]
[null,null,null,null,null,null,{"$error":"#N/A"},{"$error":"#N/A"},null,null,""]
[null,null,null,null,null,null,{"$error":"#N/A"},{"$error":"#N/A"},null,null,""]
[null,null,null,null,null,null,{"$error":"#N/A"},{"$error":"#N/A"},null,null,""]
[null,null,null,null,null,null,{"$error":"#N/A"},{"$error":"#N/A"},null,null,""]
[null,null,null,null,null,null,{"$error":"#N/A"},{"$error":"#N/A"},null,null,""]
[null,null,null,null,null,null,{"$error":"#N/A"},{"$error":"#N/A"},null,null,""]
[null,null,null,null,null,null,{"$error":"#N/A"},{"$error":"#N/A"},null,null,""]
[null,null,null,null,null,null,{"$error":"#N/A"},{"$error":"#N/A"},null,null,""]
[null,null,null,null,null,null,{"$error":"#N/A"},{"$error":"#N/A"},null,null,""]
[null,null,null,null,null,null,{"$error":"#N/A"},{"$error":"#N/A"},null,null,""]
[null,null,null,null,null,null,{"$error":"#N/A"},{"$error":"#N/A"},null,null,""]
[null,null,null,null,null,null,{"$error":"#N/A"},{"$error":"#N/A"},null,null,""]
[null,null,null,null,null,null,{"$error":"#N/A"},{"$error":"#N/A"},null,null,""]
[null,null,null,null,null,null,{"$error":"#N/A"},{"$error":"#N/A"},null,null,""]
[null,null,null,null,null,null,{"$error":"#N/A"},{"$error":"#N/A"},null,null,""]
[null,null,null,null,null,null,{"$error":"#N/A"},{"$error":"#N/A"},null,null,""]
[null,null,null,null,null,null,{"$error":"#N/A"},{"$error":"#N/A"},null,null,""]
[null,null,null,null,null,null,{"$error":"#N/A"},{"$error":"#N/A"},null,null,""]
[null,null,null,null,null,null,{"$error":"#N/A"},{"$error":"#N/A"},null,null,""]
[null,null,null,null,null,null,{"$error":"#N/A"},{"$error":"#N/A"},null,null,""]
[null,null,null,null,null,null,{"$error":"#N/A"},{"$error":"#N/A"},null,null,""]
[null,null,null,null,null,null,{"$error":"#N/A"},{"$error":"#N/A"},null,null,""]
[null,null,null,null,null,null,{"$error":"#N/A"},{"$error":"#N/A"},null,null,""]
[null,null,null,null,null,null,{"$error":"#N/A"},{"$error":"#N/A"},null,null,""]
[null,null,null,null,null,null,{"$error":"#N/A"},{"$error":"#N/A"},null,null,""]
[null,null,null,null,null,null,{"$error":"#N/A"},{"$error":"#N/A"},null,null,""]
[null,null,null,null,null,null,{"$error":"#N/A"},{"$error":"#N/A"},null,null,""]
[null,null,null,null,null,null,{"$error":"#N/A"},{"$error":"#N/A"},null,null,""]
[null,null,null,null,null,null,{"$error":"#N/A"},{"$error":"#N/A"},null,null,""]
[null,null,null,null,null,null,{"$error":"#N/A"},{"$error":"#N/A"},null,null,""]
[null,null,null,null,null,null,{"$error":"#N/A"},{"$error":"#N/A"},null,null,""]
[null,null,null,null,null,null,{"$error":"#N/A"},{"$error":"#N/A"},null,null,""]
[null,null,null,null,null,null,{"$error":"#N/A"},{"$error":"#N/A"},null,null,""]
[null,null,null,null,null,null,{"$error":"#N/A"},{"$error":"#N/A"},null,null,""]
[null,null,null,null,null,null,{"$f":"IF(COUNT(C392)=1,C392,#N/A)","v":{"$error":"#N/A"}},{"$f":"IF(COUNT(D392:E392)=2,ABS(D392-E392),#N/A)","v":{"$error":"#N/A"}},null,null,""]
[null,null,null,null,null,null,{"$error":"#N/A"},{"$error":"#N/A"},null,null,{"$f":"IFERROR(ABS((H393-J393)/J393),\"\")","v":""}]
[null,null,null,null,null,null,{"$error":"#N/A"},{"$error":"#N/A"},null,null,""]
[null,null,null,null,null,null,{"$error":"#N/A"},{"$error":"#N/A"},null,null,""]
[null,null,null,null,null,null,{"$error":"#N/A"},{"$error":"#N/A"},null,null,""]
[null,null,null,null,null,null,{"$error":"#N/A"},{"$error":"#N/A"},null,null,""]
[null,null,null,null,null,null,{"$error":"#N/A"},{"$error":"#N/A"},null,null,""]
[null,null,null,null,null,null,{"$error":"#N/A"},{"$error":"#N/A"},null,null,""]
[null,null,null,null,null,null,{"$error":"#N/A"},{"$error":"#N/A"},null,null,""]
[null,null,null,null,null,null,{"$error":"#N/A"},{"$error":"#N/A"},null,null,""]
[null,null,null,null,null,null,{"$error":"#N/A"},{"$error":"#N/A"},null,null,""]
[null,null,null,null,null,null,{"$error":"#N/A"},{"$error":"#N/A"},null,null,""]
[null,null,null,null,null,null,{"$error":"#N/A"},{"$error":"#N/A"},null,null,""]
[null,null,null,null,null,null,{"$error":"#N/A"},{"$error":"#N/A"},null,null,""]
[null,null,null,null,null,null,{"$error":"#N/A"},{"$error":"#N/A"},null,null,""]
[null,null,null,null,null,null,{"$error":"#N/A"},{"$error":"#N/A"},null,null,""]
[null,null,null,null,null,null,{"$error":"#N/A"},{"$error":"#N/A"},null,null,""]
[null,null,null,null,null,null,{"$error":"#N/A"},{"$error":"#N/A"},null,null,""]
[null,null,null,null,null,null,{"$error":"#N/A"},{"$error":"#N/A"},null,null,""]
[null,null,null,null,null,null,{"$error":"#N/A"},{"$error":"#N/A"},null,null,""]
[null,null,null,null,null,null,{"$error":"#N/A"},{"$error":"#N/A"},null,null,""]
[null,null,null,null,null,null,{"$error":"#N/A"},{"$error":"#N/A"},null,null,""]
[null,null,null,null,null,null,{"$error":"#N/A"},{"$error":"#N/A"},null,null,""]
[null,null,null,null,null,null,{"$error":"#N/A"},{"$error":"#N/A"},null,null,""]
[null,null,null,null,null,null,{"$error":"#N/A"},{"$error":"#N/A"},null,null,""]
[null,null,null,null,null,null,{"$error":"#N/A"},{"$error":"#N/A"},null,null,""]
[null,null,null,null,null,null,{"$error":"#N/A"},{"$error":"#N/A"},null,null,""]
[null,null,null,null,null,null,{"$error":"#N/A"},{"$error":"#N/A"},null,null,""]
[null,null,null,null,null,null,{"$error":"#N/A"},{"$error":"#N/A"},null,null,""]
[null,null,null,null,null,null,{"$error":"#N/A"},{"$error":"#N/A"},null,null,""]
[null,null,null,null,null,null,{"$error":"#N/A"},{"$error":"#N/A"},null,null,""]
[null,null,null,null,null,null,{"$error":"#N/A"},{"$error":"#N/A"},null,null,""]
[null,null,null,null,null,null,{"$error":"#N/A"},{"$error":"#N/A"},null,null,""]
[null,null,null,null,null,null,{"$error":"#N/A"},{"$error":"#N/A"},null,null,""]
[null,null,null,null,null,null,{"$error":"#N/A"},{"$error":"#N/A"},null,null,""]
[null,null,null,null,null,null,{"$error":"#N/A"},{"$error":"#N/A"},null,null,""]
[null,null,null,null,null,null,{"$error":"#N/A"},{"$error":"#N/A"},null,null,""]
[null,null,null,null,null,null,{"$error":"#N/A"},{"$error":"#N/A"},null,null,""]
[null,null,null,null,null,null,{"$error":"#N/A"},{"$error":"#N/A"},null,null,""]
[null,null,null,null,null,null,{"$error":"#N/A"},{"$error":"#N/A"},null,null,""]
[null,null,null,null,null,null,{"$error":"#N/A"},{"$error":"#N/A"},null,null,""]
[null,null,null,null,null,null,{"$error":"#N/A"},{"$error":"#N/A"},null,null,""]
[null,null,null,null,null,null,{"$error":"#N/A"},{"$error":"#N/A"},null,null,""]
[null,null,null,null,null,null,{"$error":"#N/A"},{"$error":"#N/A"},null,null,""]
[null,null,null,null,null,null,{"$error":"#N/A"},{"$error":"#N/A"},null,null,""]
[null,null,null,null,null,null,{"$error":"#N/A"},{"$error":"#N/A"},null,null,""]
[null,null,null,null,null,null,{"$error":"#N/A"},{"$error":"#N/A"},null,null,""]
[null,null,null,null,null,null,{"$error":"#N/A"},{"$error":"#N/A"},null,null,""]
[null,null,null,null,null,null,{"$error":"#N/A"},{"$error":"#N/A"},null,null,""]
[null,null,null,null,null,null,{"$error":"#N/A"},{"$error":"#N/A"},null,null,""]
[null,null,null,null,null,null,{"$error":"#N/A"},{"$error":"#N/A"},null,null,""]
[null,null,null,null,null,null,{"$error":"#N/A"},{"$error":"#N/A"},null,null,""]
[null,null,null,null,null,null,{"$error":"#N/A"},{"$error":"#N/A"},null,null,""]
[null,null,null,null,null,null,{"$error":"#N/A"},{"$error":"#N/A"},null,null,""]
[null,null,null,null,null,null,{"$error":"#N/A"},{"$error":"#N/A"},null,null,""]
[null,null,null,null,null,null,{"$error":"#N/A"},{"$error":"#N/A"},null,null,""]
[null,null,null,null,null,null,{"$error":"#N/A"},{"$error":"#N/A"},null,null,""]
[null,null,null,null,null,null,{"$error":"#N/A"},{"$error":"#N/A"},null,null,""]
[null,null,null,null,null,null,{"$error":"#N/A"},{"$error":"#N/A"},null,null,""]
[null,null,null,null,null,null,{"$error":"#N/A"},{"$error":"#N/A"},null,null,""]
[null,null,null,null,null,null,{"$error":"#N/A"},{"$error":"#N/A"},null,null,""]
[null,null,null,null,null,null,{"$error":"#N/A"},{"$error":"#N/A"},null,null,""]
[null,null,null,null,null,null,{"$error":"#N/A"},{"$error":"#N/A"},null,null,""]
[null,null,null,null,null,null,{"$error":"#N/A"},{"$error":"#N/A"},null,null,""]
[null,null,null,null,null,null,{"$f":"IF(COUNT(C456)=1,C456,#N/A)","v":{"$error":"#N/A"}},{"$f":"IF(COUNT(D456:E456)=2,ABS(D456-E456),#N/A)","v":{"$error":"#N/A"}},null,null,""]
[null,null,null,null,null,null,{"$error":"#N/A"},{"$error":"#N/A"},null,null,{"$f":"IFERROR(ABS((H457-J457)/J457),\"\")","v":""}]
[null,null,null,null,null,null,{"$error":"#N/A"},{"$error":"#N/A"},null,null,""]
[null,null,null,null,null,null,{"$error":"#N/A"},{"$error":"#N/A"},null,null,""]
[null,null,null,null,null,null,{"$error":"#N/A"},{"$error":"#N/A"},null,null,""]
[null,null,null,null,null,null,{"$error":"#N/A"},{"$error":"#N/A"},null,null,""]
[null,null,null,null,null,null,{"$error":"#N/A"},{"$error":"#N/A"},null,null,""]
[null,null,null,null,null,null,{"$error":"#N/A"},{"$error":"#N/A"},null,null,""]
[null,null,null,null,null,null,{"$error":"#N/A"},{"$error":"#N/A"},null,null,""]
[null,null,null,null,null,null,{"$error":"#N/A"},{"$error":"#N/A"},null,null,""]
[null,null,null,null,null,null,{"$error":"#N/A"},{"$error":"#N/A"},null,null,""]
[null,null,null,null,null,null,{"$error":"#N/A"},{"$error":"#N/A"},null,null,""]
[null,null,null,null,null,null,{"$error":"#N/A"},{"$error":"#N/A"},null,null,""]
[null,null,null,null,null,null,{"$error":"#N/A"},{"$error":"#N/A"},null,null,""]
[null,null,null,null,null,null,{"$error":"#N/A"},{"$error":"#N/A"},null,null,""]
[null,null,null,null,null,null,{"$error":"#N/A"},{"$error":"#N/A"},null,null,""]
[null,null,null,null,null,null,{"$error":"#N/A"},{"$error":"#N/A"},null,null,""]
[null,null,null,null,null,null,{"$error":"#N/A"},{"$error":"#N/A"},null,null,""]
[null,null,null,null,null,null,{"$error":"#N/A"},{"$error":"#N/A"},null,null,""]
[null,null,null,null,null,null,{"$error":"#N/A"},{"$error":"#N/A"},null,null,""]
[null,null,null,null,null,null,{"$error":"#N/A"},{"$error":"#N/A"},null,null,""]
[null,null,null,null,null,null,{"$error":"#N/A"},{"$error":"#N/A"},null,null,""]
[null,null,null,null,null,null,{"$error":"#N/A"},{"$error":"#N/A"},null,null,""]
[null,null,null,null,null,null,{"$error":"#N/A"},{"$error":"#N/A"},null,null,""]
[null,null,null,null,null,null,{"$error":"#N/A"},{"$error":"#N/A"},null,null,""]
[null,null,null,null,null,null,{"$error":"#N/A"},{"$error":"#N/A"},null,null,""]
[null,null,null,null,null,null,{"$error":"#N/A"},{"$error":"#N/A"},null,null,""]
[null,null,null,null,null,null,{"$error":"#N/A"},{"$error":"#N/A"},null,null,""]
[null,null,null,null,null,null,{"$error":"#N/A"},{"$error":"#N/A"},null,null,""]
[null,null,null,null,null,null,{"$error":"#N/A"},{"$error":"#N/A"},null,null,""]
[null,null,null,null,null,null,{"$error":"#N/A"},{"$error":"#N/A"},null,null,""]
[null,null,null,null,null,null,{"$error":"#N/A"},{"$error":"#N/A"},null,null,""]
[null,null,null,null,null,null,{"$error":"#N/A"},{"$error":"#N/A"},null,null,""]
[null,null,null,null,null,null,{"$error":"#N/A"},{"$error":"#N/A"},null,null,""]
[null,null,null,null,null,null,{"$error":"#N/A"},{"$error":"#N/A"},null,null,""]
[null,null,null,null,null,null,{"$error":"#N/A"},{"$error":"#N/A"},null,null,""]
[null,null,null,null,null,null,{"$error":"#N/A"},{"$error":"#N/A"},null,null,""]
[null,null,null,null,null,null,{"$error":"#N/A"},{"$error":"#N/A"},null,null,""]
[null,null,null,null,null,null,{"$error":"#N/A"},{"$error":"#N/A"},null,null,""]
[null,null,null,null,null,null,{"$error":"#N/A"},{"$error":"#N/A"},null,null,""]
[null,null,null,null,null,null,{"$error":"#N/A"},{"$error":"#N/A"},null,null,""]
[null,null,null,null,null,null,{"$error":"#N/A"},{"$error":"#N/A"},null,null,""]
[null,null,null,null,null,null,{"$error":"#N/A"},{"$error":"#N/A"},null,null,""]
[null,null,null,null,null,null,{"$error":"#N/A"},{"$error":"#N/A"},null,null,""]
[null,null,null,null,null,null,{"$error":"#N/A"},{"$error":"#N/A"},null,null,""]
[null,null,null,null,null,null,{"$error":"#N/A"},{"$error":"#N/A"},null,null,""]
[null,null,null,null,null,null,{"$error":"#N/A"},{"$error":"#N/A"},null,null,""]
[null,null,null,null,null,null,{"$error":"#N/A"},{"$error":"#N/A"},null,null,""]
[null,null,null,null,null,null,{"$error":"#N/A"},{"$error":"#N/A"},null,null,""]
[null,null,null,null,null,null,{"$error":"#N/A"},{"$error":"#N/A"},null,null,""]
[null,null,null,null,null,null,{"$error":"#N/A"},{"$error":"#N/A"},null,null,""]
[null,null,null,null,null,null,{"$error":"#N/A"},{"$error":"#N/A"},null,null,""]
[null,null,null,null,null,null,{"$error":"#N/A"},{"$error":"#N/A"},null,null,""]
[null,null,null,null,null,null,{"$error":"#N/A"},{"$error":"#N/A"},null,null,""]
[null,null,null,null,null,null,{"$error":"#N/A"},{"$error":"#N/A"},null,null,""]
[null,null,null,null,null,null,{"$error":"#N/A"},{"$error":"#N/A"},null,null,""]
[null,null,null,null,null,null,{"$error":"#N/A"},{"$error":"#N/A"},null,null,""]
[null,null,null,null,null,null,{"$error":"#N/A"},{"$error":"#N/A"},null,null,""]
[null,null,null,null,null,null,{"$error":"#N/A"},{"$error":"#N/A"},null,null,""]
[null,null,null,null,null,null,{"$error":"#N/A"},{"$error":"#N/A"},null,null,""]
[null,null,null,null,null,null,{"$error":"#N/A"},{"$error":"#N/A"},null,null,""]
[null,null,null,null,null,null,{"$error":"#N/A"},{"$error":"#N/A"},null,null,""]
[null,null,null,null,null,null,{"$error":"#N/A"},{"$error":"#N/A"},null,null,""]
[null,null,null,null,null,null,{"$error":"#N/A"},{"$error":"#N/A"},null,null,""]
[null,null,null,null,null,null,{"$f":"IF(COUNT(C520)=1,C520,#N/A)","v":{"$error":"#N/A"}},{"$f":"IF(COUNT(D520:E520)=2,ABS(D520-E520),#N/A)","v":{"$error":"#N/A"}},null,null,""]
[null,null,null,null,null,null,{"$error":"#N/A"},{"$error":"#N/A"},null,null,{"$f":"IFERROR(ABS((H521-J521)/J521),\"\")","v":""}]
[null,null,null,null,null,null,{"$error":"#N/A"},{"$error":"#N/A"},null,null,""]
[null,null,null,null,null,null,{"$error":"#N/A"},{"$error":"#N/A"},null,null,""]
[null,null,null,null,null,null,{"$error":"#N/A"},{"$error":"#N/A"},null,null,""]
[null,null,null,null,null,null,{"$error":"#N/A"},{"$error":"#N/A"},null,null,""]
[null,null,null,null,null,null,{"$error":"#N/A"},{"$error":"#N/A"},null,null,""]
[null,null,null,null,null,null,{"$error":"#N/A"},{"$error":"#N/A"},null,null,""]
[null,null,null,null,null,null,{"$error":"#N/A"},{"$error":"#N/A"},null,null,""]
[null,null,null,null,null,null,{"$error":"#N/A"},{"$error":"#N/A"},null,null,""]
[null,null,null,null,null,null,{"$error":"#N/A"},{"$error":"#N/A"},null,null,""]
[null,null,null,null,null,null,{"$error":"#N/A"},{"$error":"#N/A"},null,null,""]
[null,null,null,null,null,null,{"$error":"#N/A"},{"$error":"#N/A"},null,null,""]
[null,null,null,null,null,null,{"$error":"#N/A"},{"$error":"#N/A"},null,null,""]
[null,null,null,null,null,null,{"$error":"#N/A"},{"$error":"#N/A"},null,null,""]
[null,null,null,null,null,null,{"$error":"#N/A"},{"$error":"#N/A"},null,null,""]
[null,null,null,null,null,null,{"$error":"#N/A"},{"$error":"#N/A"},null,null,""]
[null,null,null,null,null,null,{"$error":"#N/A"},{"$error":"#N/A"},null,null,""]
[null,null,null,null,null,null,{"$error":"#N/A"},{"$error":"#N/A"},null,null,""]
[null,null,null,null,null,null,{"$error":"#N/A"},{"$error":"#N/A"},null,null,""]
[null,null,null,null,null,null,{"$error":"#N/A"},{"$error":"#N/A"},null,null,""]
[null,null,null,null,null,null,{"$error":"#N/A"},{"$error":"#N/A"},null,null,""]
[null,null,null,null,null,null,{"$error":"#N/A"},{"$error":"#N/A"},null,null,""]
[null,null,null,null,null,null,{"$error":"#N/A"},{"$error":"#N/A"},null,null,""]
[null,null,null,null,null,null,{"$error":"#N/A"},{"$error":"#N/A"},null,null,""]
[null,null,null,null,null,null,{"$error":"#N/A"},{"$error":"#N/A"},null,null,""]
[null,null,null,null,null,null,{"$error":"#N/A"},{"$error":"#N/A"},null,null,""]
[null,null,null,null,null,null,{"$error":"#N/A"},{"$error":"#N/A"},null,null,""]
[null,null,null,null,null,null,{"$error":"#N/A"},{"$error":"#N/A"},null,null,""]
[null,null,null,null,null,null,{"$error":"#N/A"},{"$error":"#N/A"},null,null,""]
[null,null,null,null,null,null,{"$error":"#N/A"},{"$error":"#N/A"},null,null,""]
[null,null,null,null,null,null,{"$error":"#N/A"},{"$error":"#N/A"},null,null,""]
[null,null,null,null,null,null,{"$error":"#N/A"},{"$error":"#N/A"},null,null,""]
[null,null,null,null,null,null,{"$error":"#N/A"},{"$error":"#N/A"},null,null,""]
[null,null,null,null,null,null,{"$error":"#N/A"},{"$error":"#N/A"},null,null,""]
[null,null,null,null,null,null,{"$error":"#N/A"},{"$error":"#N/A"},null,null,""]
[null,null,null,null,null,null,{"$error":"#N/A"},{"$error":"#N/A"},null,null,""]
[null,null,null,null,null,null,{"$error":"#N/A"},{"$error":"#N/A"},null,null,""]
[null,null,null,null,null,null,{"$error":"#N/A"},{"$error":"#N/A"},null,null,""]
[null,null,null,null,null,null,{"$error":"#N/A"},{"$error":"#N/A"},null,null,""]
[null,null,null,null,null,null,{"$error":"#N/A"},{"$error":"#N/A"},null,null,""]
[null,null,null,null,null,null,{"$error":"#N/A"},{"$error":"#N/A"},null,null,""]
[null,null,null,null,null,null,{"$error":"#N/A"},{"$error":"#N/A"},null,null,""]
[null,null,null,null,null,null,{"$error":"#N/A"},{"$error":"#N/A"},null,null,""]
[null,null,null,null,null,null,{"$error":"#N/A"},{"$error":"#N/A"},null,null,""]
[null,null,null,null,null,null,{"$error":"#N/A"},{"$error":"#N/A"},null,null,""]
[null,null,null,null,null,null,{"$error":"#N/A"},{"$error":"#N/A"},null,null,""]
[null,null,null,null,null,null,{"$error":"#N/A"},{"$error":"#N/A"},null,null,""]
[null,null,null,null,null,null,{"$error":"#N/A"},{"$error":"#N/A"},null,null,""]
[null,null,null,null,null,null,{"$error":"#N/A"},{"$error":"#N/A"},null,null,""]
[null,null,null,null,null,null,{"$error":"#N/A"},{"$error":"#N/A"},null,null,""]
[null,null,null,null,null,null,{"$error":"#N/A"},{"$error":"#N/A"},null,null,""]
[null,null,null,null,null,null,{"$error":"#N/A"},{"$error":"#N/A"},null,null,""]
[null,null,null,null,null,null,{"$error":"#N/A"},{"$error":"#N/A"},null,null,""]
[null,null,null,null,null,null,{"$error":"#N/A"},{"$error":"#N/A"},null,null,""]
[null,null,null,null,null,null,{"$error":"#N/A"},{"$error":"#N/A"},null,null,""]
[null,null,null,null,null,null,{"$error":"#N/A"},{"$error":"#N/A"},null,null,""]
[null,null,null,null,null,null,{"$error":"#N/A"},{"$error":"#N/A"},null,null,""]
[null,null,null,null,null,null,{"$error":"#N/A"},{"$error":"#N/A"},null,null,""]
[null,null,null,null,null,null,{"$error":"#N/A"},{"$error":"#N/A"},null,null,""]
[null,null,null,null,null,null,{"$error":"#N/A"},{"$error":"#N/A"},null,null,""]
[null,null,null,null,null,null,{"$error":"#N/A"},{"$error":"#N/A"},null,null,""]
[null,null,null,null,null,null,{"$error":"#N/A"},{"$error":"#N/A"},null,null,""]
[null,null,null,null,null,null,{"$error":"#N/A"},{"$error":"#N/A"},null,null,""]
[null,null,null,null,null,null,{"$f":"IF(COUNT(C584)=1,C584,#N/A)","v":{"$error":"#N/A"}},{"$f":"IF(COUNT(D584:E584)=2,ABS(D584-E584),#N/A)","v":{"$error":"#N/A"}},null,null,""]
[null,null,null,null,null,null,{"$error":"#N/A"},{"$error":"#N/A"},null,null,{"$f":"IFERROR(ABS((H585-J585)/J585),\"\")","v":""}]
[null,null,null,null,null,null,{"$error":"#N/A"},{"$error":"#N/A"},null,null,""]
[null,null,null,null,null,null,{"$error":"#N/A"},{"$error":"#N/A"},null,null,""]
[null,null,null,null,null,null,{"$error":"#N/A"},{"$error":"#N/A"},null,null,""]
[null,null,null,null,null,null,{"$error":"#N/A"},{"$error":"#N/A"},null,null,""]
[null,null,null,null,null,null,{"$error":"#N/A"},{"$error":"#N/A"},null,null,""]
[null,null,null,null,null,null,{"$error":"#N/A"},{"$error":"#N/A"},null,null,""]
[null,null,null,null,null,null,{"$error":"#N/A"},{"$error":"#N/A"},null,null,""]
[null,null,null,null,null,null,{"$error":"#N/A"},{"$error":"#N/A"},null,null,""]
[null,null,null,null,null,null,{"$error":"#N/A"},{"$error":"#N/A"},null,null,""]
[null,null,null,null,null,null,{"$error":"#N/A"},{"$error":"#N/A"},null,null,""]
[null,null,null,null,null,null,{"$error":"#N/A"},{"$error":"#N/A"},null,null,""]
[null,null,null,null,null,null,{"$error":"#N/A"},{"$error":"#N/A"},null,null,""]
[null,null,null,null,null,null,{"$error":"#N/A"},{"$error":"#N/A"},null,null,""]
[null,null,null,null,null,null,{"$error":"#N/A"},{"$error":"#N/A"},null,null,""]
[null,null,null,null,null,null,{"$error":"#N/A"},{"$error":"#N/A"},null,null,""]
[null,null,null,null,null,null,{"$error":"#N/A"},{"$error":"#N/A"},null,null,""]
[null,null,null,null,null,null,{"$error":"#N/A"},{"$error":"#N/A"},null,null,""]
[null,null,null,null,null,null,{"$error":"#N/A"},{"$error":"#N/A"},null,null,""]
[null,null,null,null,null,null,{"$error":"#N/A"},{"$error":"#N/A"},null,null,""]
[null,null,null,null,null,null,{"$error":"#N/A"},{"$error":"#N/A"},null,null,""]
[null,null,null,null,null,null,{"$error":"#N/A"},{"$error":"#N/A"},null,null,""]
[null,null,null,null,null,null,{"$error":"#N/A"},{"$error":"#N/A"},null,null,""]
[null,null,null,null,null,null,{"$error":"#N/A"},{"$error":"#N/A"},null,null,""]
[null,null,null,null,null,null,{"$error":"#N/A"},{"$error":"#N/A"},null,null,""]
[null,null,null,null,null,null,{"$error":"#N/A"},{"$error":"#N/A"},null,null,""]
[null,null,null,null,null,null,{"$error":"#N/A"},{"$error":"#N/A"},null,null,""]
[null,null,null,null,null,null,{"$error":"#N/A"},{"$error":"#N/A"},null,null,""]
[null,null,null,null,null,null,{"$error":"#N/A"},{"$error":"#N/A"},null,null,""]
[null,null,null,null,null,null,{"$error":"#N/A"},{"$error":"#N/A"},null,null,""]
[null,null,null,null,null,null,{"$error":"#N/A"},{"$error":"#N/A"},null,null,""]
[null,null,null,null,null,null,{"$error":"#N/A"},{"$error":"#N/A"},null,null,""]
[null,null,null,null,null,null,{"$error":"#N/A"},{"$error":"#N/A"},null,null,""]
[null,null,null,null,null,null,{"$error":"#N/A"},{"$error":"#N/A"},null,null,""]
[null,null,null,null,null,null,{"$error":"#N/A"},{"$error":"#N/A"},null,null,""]
[null,null,null,null,null,null,{"$error":"#N/A"},{"$error":"#N/A"},null,null,""]
[null,null,null,null,null,null,{"$error":"#N/A"},{"$error":"#N/A"},null,null,""]
[null,null,null,null,null,null,{"$error":"#N/A"},{"$error":"#N/A"},null,null,""]
[null,null,null,null,null,null,{"$error":"#N/A"},{"$error":"#N/A"},null,null,""]
[null,null,null,null,null,null,{"$error":"#N/A"},{"$error":"#N/A"},null,null,""]
[null,null,null,null,null,null,{"$error":"#N/A"},{"$error":"#N/A"},null,null,""]
[null,null,null,null,null,null,{"$error":"#N/A"},{"$error":"#N/A"},null,null,""]
[null,null,null,null,null,null,{"$error":"#N/A"},{"$error":"#N/A"},null,null,""]
[null,null,null,null,null,null,{"$error":"#N/A"},{"$error":"#N/A"},null,null,""]
[null,null,null,null,null,null,{"$error":"#N/A"},{"$error":"#N/A"},null,null,""]
[null,null,null,null,null,null,{"$error":"#N/A"},{"$error":"#N/A"},null,null,""]
[null,null,null,null,null,null,{"$error":"#N/A"},{"$error":"#N/A"},null,null,""]
[null,null,null,null,null,null,{"$error":"#N/A"},{"$error":"#N/A"},null,null,""]
[null,null,null,null,null,null,{"$error":"#N/A"},{"$error":"#N/A"},null,null,""]
[null,null,null,null,null,null,{"$error":"#N/A"},{"$error":"#N/A"},null,null,""]
[null,null,null,null,null,null,{"$error":"#N/A"},{"$error":"#N/A"},null,null,""]
[null,null,null,null,null,null,{"$error":"#N/A"},{"$error":"#N/A"},null,null,""]
[null,null,null,null,null,null,{"$error":"#N/A"},{"$error":"#N/A"},null,null,""]
[null,null,null,null,null,null,{"$error":"#N/A"},{"$error":"#N/A"},null,null,""]
[null,null,null,null,null,null,{"$error":"#N/A"},{"$error":"#N/A"},null,null,""]
[null,null,null,null,null,null,{"$error":"#N/A"},{"$error":"#N/A"},null,null,""]
[null,null,null,null,null,null,{"$error":"#N/A"},{"$error":"#N/A"},null,null,""]
[null,null,null,null,null,null,{"$error":"#N/A"},{"$error":"#N/A"},null,null,""]
[null,null,null,null,null,null,{"$error":"#N/A"},{"$error":"#N/A"},null,null,""]
[null,null,null,null,null,null,{"$error":"#N/A"},{"$error":"#N/A"},null,null,""]
[null,null,null,null,null,null,{"$error":"#N/A"},{"$error":"#N/A"},null,null,""]
[null,null,null,null,null,null,{"$error":"#N/A"},{"$error":"#N/A"},null,null,""]
[null,null,null,null,null,null,{"$error":"#N/A"},{"$error":"#N/A"},null,null,""]
[null,null,null,null,null,null,{"$f":"IF(COUNT(C648)=1,C648,#N/A)","v":{"$error":"#N/A"}},{"$f":"IF(COUNT(D648:E648)=2,ABS(D648-E648),#N/A)","v":{"$error":"#N/A"}},null,null,""]
[null,null,null,null,null,null,{"$error":"#N/A"},{"$error":"#N/A"},null,null,{"$f":"IFERROR(ABS((H649-J649)/J649),\"\")","v":""}]
[null,null,null,null,null,null,{"$error":"#N/A"},{"$error":"#N/A"},null,null,""]
[null,null,null,null,null,null,{"$error":"#N/A"},{"$error":"#N/A"},null,null,""]
[null,null,null,null,null,null,{"$error":"#N/A"},{"$error":"#N/A"},null,null,""]
[null,null,null,null,null,null,{"$error":"#N/A"},{"$error":"#N/A"},null,null,""]
[null,null,null,null,null,null,{"$error":"#N/A"},{"$error":"#N/A"},null,null,""]
[null,null,null,null,null,null,{"$error":"#N/A"},{"$error":"#N/A"},null,null,""]
[null,null,null,null,null,null,{"$error":"#N/A"},{"$error":"#N/A"},null,null,""]
[null,null,null,null,null,null,{"$error":"#N/A"},{"$error":"#N/A"},null,null,""]
[null,null,null,null,null,null,{"$error":"#N/A"},{"$error":"#N/A"},null,null,""]
[null,null,null,null,null,null,{"$error":"#N/A"},{"$error":"#N/A"},null,null,""]
[null,null,null,null,null,null,{"$error":"#N/A"},{"$error":"#N/A"},null,null,""]
[null,null,null,null,null,null,{"$error":"#N/A"},{"$error":"#N/A"},null,null,""]
[null,null,null,null,null,null,{"$error":"#N/A"},{"$error":"#N/A"},null,null,""]
[null,null,null,null,null,null,{"$error":"#N/A"},{"$error":"#N/A"},null,null,""]
[null,null,null,null,null,null,{"$error":"#N/A"},{"$error":"#N/A"},null,null,""]
[null,null,null,null,null,null,{"$error":"#N/A"},{"$error":"#N/A"},null,null,""]
[null,null,null,null,null,null,{"$error":"#N/A"},{"$error":"#N/A"},null,null,""]
[null,null,null,null,null,null,{"$error":"#N/A"},{"$error":"#N/A"},null,null,""]
[null,null,null,null,null,null,{"$error":"#N/A"},{"$error":"#N/A"},null,null,""]
[null,null,null,null,null,null,{"$error":"#N/A"},{"$error":"#N/A"},null,null,""]
[null,null,null,null,null,null,{"$error":"#N/A"},{"$error":"#N/A"},null,null,""]
[null,null,null,null,null,null,{"$error":"#N/A"},{"$error":"#N/A"},null,null,""]
[null,null,null,null,null,null,{"$error":"#N/A"},{"$error":"#N/A"},null,null,""]
[null,null,null,null,null,null,{"$error":"#N/A"},{"$error":"#N/A"},null,null,""]
[null,null,null,null,null,null,{"$error":"#N/A"},{"$error":"#N/A"},null,null,""]
[null,null,null,null,null,null,{"$error":"#N/A"},{"$error":"#N/A"},null,null,""]
[null,null,null,null,null,null,{"$error":"#N/A"},{"$error":"#N/A"},null,null,""]
[null,null,null,null,null,null,{"$error":"#N/A"},{"$error":"#N/A"},null,null,""]
[null,null,null,null,null,null,{"$error":"#N/A"},{"$error":"#N/A"},null,null,""]
[null,null,null,null,null,null,{"$error":"#N/A"},{"$error":"#N/A"},null,null,""]
[null,null,null,null,null,null,{"$error":"#N/A"},{"$error":"#N/A"},null,null,""]
[null,null,null,null,null,null,{"$error":"#N/A"},{"$error":"#N/A"},null,null,""]
[null,null,null,null,null,null,{"$error":"#N/A"},{"$error":"#N/A"},null,null,""]
[null,null,null,null,null,null,{"$error":"#N/A"},{"$error":"#N/A"},null,null,""]
[null,null,null,null,null,null,{"$error":"#N/A"},{"$error":"#N/A"},null,null,""]
[null,null,null,null,null,null,{"$error":"#N/A"},{"$error":"#N/A"},null,null,""]
[null,null,null,null,null,null,{"$error":"#N/A"},{"$error":"#N/A"},null,null,""]
[null,null,null,null,null,null,{"$error":"#N/A"},{"$error":"#N/A"},null,null,""]
[null,null,null,null,null,null,{"$error":"#N/A"},{"$error":"#N/A"},null,null,""]
[null,null,null,null,null,null,{"$error":"#N/A"},{"$error":"#N/A"},null,null,""]
[null,null,null,null,null,null,{"$error":"#N/A"},{"$error":"#N/A"},null,null,""]
[null,null,null,null,null,null,{"$error":"#N/A"},{"$error":"#N/A"},null,null,""]
[null,null,null,null,null,null,{"$error":"#N/A"},{"$error":"#N/A"},null,null,""]
[null,null,null,null,null,null,{"$error":"#N/A"},{"$error":"#N/A"},null,null,""]
[null,null,null,null,null,null,{"$error":"#N/A"},{"$error":"#N/A"},null,null,""]
[null,null,null,null,null,null,{"$error":"#N/A"},{"$error":"#N/A"},null,null,""]
[null,null,null,null,null,null,{"$error":"#N/A"},{"$error":"#N/A"},null,null,""]
[null,null,null,null,null,null,{"$error":"#N/A"},{"$error":"#N/A"},null,null,""]
[null,null,null,null,null,null,{"$error":"#N/A"},{"$error":"#N/A"},null,null,""]
[null,null,null,null,null,null,{"$error":"#N/A"},{"$error":"#N/A"},null,null,""]
[null,null,null,null,null,null,{"$error":"#N/A"},{"$error":"#N/A"},null,null,""]
[null,null,null,null,null,null,{"$error":"#N/A"},{"$error":"#N/A"},null,null,""]
[null,null,null,null,null,null,{"$error":"#N/A"},{"$error":"#N/A"},null,null,""]
[null,null,null,null,null,null,{"$error":"#N/A"},{"$error":"#N/A"},null,null,""]
[null,null,null,null,null,null,{"$error":"#N/A"},{"$error":"#N/A"},null,null,""]
[null,null,null,null,null,null,{"$error":"#N/A"},{"$error":"#N/A"},null,null,""]
[null,null,null,null,null,null,{"$error":"#N/A"},{"$error":"#N/A"},null,null,""]
[null,null,null,null,null,null,{"$error":"#N/A"},{"$error":"#N/A"},null,null,""]
[null,null,null,null,null,null,{"$error":"#N/A"},{"$error":"#N/A"},null,null,""]
[null,null,null,null,null,null,{"$error":"#N/A"},{"$error":"#N/A"},null,null,""]
[null,null,null,null,null,null,{"$error":"#N/A"},{"$error":"#N/A"},null,null,""]
[null,null,null,null,null,null,{"$error":"#N/A"},{"$error":"#N/A"},null,null,""]
[null,null,null,null,null,null,{"$f":"IF(COUNT(C712)=1,C712,#N/A)","v":{"$error":"#N/A"}},{"$f":"IF(COUNT(D712:E712)=2,ABS(D712-E712),#N/A)","v":{"$error":"#N/A"}},null,null,""]
[null,null,null,null,null,null,{"$error":"#N/A"},{"$error":"#N/A"},null,null,{"$f":"IFERROR(ABS((H713-J713)/J713),\"\")","v":""}]
[null,null,null,null,null,null,{"$error":"#N/A"},{"$error":"#N/A"},null,null,""]
[null,null,null,null,null,null,{"$error":"#N/A"},{"$error":"#N/A"},null,null,""]
[null,null,null,null,null,null,{"$error":"#N/A"},{"$error":"#N/A"},null,null,""]
[null,null,null,null,null,null,{"$error":"#N/A"},{"$error":"#N/A"},null,null,""]
[null,null,null,null,null,null,{"$error":"#N/A"},{"$error":"#N/A"},null,null,""]
[null,null,null,null,null,null,{"$error":"#N/A"},{"$error":"#N/A"},null,null,""]
[null,null,null,null,null,null,{"$error":"#N/A"},{"$error":"#N/A"},null,null,""]
[null,null,null,null,null,null,{"$error":"#N/A"},{"$error":"#N/A"},null,null,""]
[null,null,null,null,null,null,{"$error":"#N/A"},{"$error":"#N/A"},null,null,""]
[null,null,null,null,null,null,{"$error":"#N/A"},{"$error":"#N/A"},null,null,""]
[null,null,null,null,null,null,{"$error":"#N/A"},{"$error":"#N/A"},null,null,""]
[null,null,null,null,null,null,{"$error":"#N/A"},{"$error":"#N/A"},null,null,""]
[null,null,null,null,null,null,{"$error":"#N/A"},{"$error":"#N/A"},null,null,""]
[null,null,null,null,null,null,{"$error":"#N/A"},{"$error":"#N/A"},null,null,""]
[null,null,null,null,null,null,{"$error":"#N/A"},{"$error":"#N/A"},null,null,""]
[null,null,null,null,null,null,{"$error":"#N/A"},{"$error":"#N/A"},null,null,""]
[null,null,null,null,null,null,{"$error":"#N/A"},{"$error":"#N/A"},null,null,""]
[null,null,null,null,null,null,{"$error":"#N/A"},{"$error":"#N/A"},null,null,""]
[null,null,null,null,null,null,{"$error":"#N/A"},{"$error":"#N/A"},null,null,""]
[null,null,null,null,null,null,{"$error":"#N/A"},{"$error":"#N/A"},null,null,""]
[null,null,null,null,null,null,{"$error":"#N/A"},{"$error":"#N/A"},null,null,""]
[null,null,null,null,null,null,{"$error":"#N/A"},{"$error":"#N/A"},null,null,""]
[null,null,null,null,null,null,{"$error":"#N/A"},{"$error":"#N/A"},null,null,""]
[null,null,null,null,null,null,{"$error":"#N/A"},{"$error":"#N/A"},null,null,""]
[null,null,null,null,null,null,{"$error":"#N/A"},{"$error":"#N/A"},null,null,""]
[null,null,null,null,null,null,{"$error":"#N/A"},{"$error":"#N/A"},null,null,""]
[null,null,null,null,null,null,{"$error":"#N/A"},{"$error":"#N/A"},null,null,""]
[null,null,null,null,null,null,{"$error":"#N/A"},{"$error":"#N/A"},null,null,""]
[null,null,null,null,null,null,{"$error":"#N/A"},{"$error":"#N/A"},null,null,""]
[null,null,null,null,null,null,{"$error":"#N/A"},{"$error":"#N/A"},null,null,""]
[null,null,null,null,null,null,{"$error":"#N/A"},{"$error":"#N/A"},null,null,""]
[null,null,null,null,null,null,{"$error":"#N/A"},{"$error":"#N/A"},null,null,""]
[null,null,null,null,null,null,{"$error":"#N/A"},{"$error":"#N/A"},null,null,""]
[null,null,null,null,null,null,{"$error":"#N/A"},{"$error":"#N/A"},null,null,""]
[null,null,null,null,null,null,{"$error":"#N/A"},{"$error":"#N/A"},null,null,""]
[null,null,null,null,null,null,{"$error":"#N/A"},{"$error":"#N/A"},null,null,""]
[null,null,null,null,null,null,{"$error":"#N/A"},{"$error":"#N/A"},null,null,""]
[null,null,null,null,null,null,{"$error":"#N/A"},{"$error":"#N/A"},null,null,""]
[null,null,null,null,null,null,{"$error":"#N/A"},{"$error":"#N/A"},null,null,""]
[null,null,null,null,null,null,{"$error":"#N/A"},{"$error":"#N/A"},null,null,""]
[null,null,null,null,null,null,{"$error":"#N/A"},{"$error":"#N/A"},null,null,""]
[null,null,null,null,null,null,{"$error":"#N/A"},{"$error":"#N/A"},null,null,""]
[null,null,null,null,null,null,{"$error":"#N/A"},{"$error":"#N/A"},null,null,""]
[null,null,null,null,null,null,{"$error":"#N/A"},{"$error":"#N/A"},null,null,""]
[null,null,null,null,null,null,{"$error":"#N/A"},{"$error":"#N/A"},null,null,""]
[null,null,null,null,null,null,{"$error":"#N/A"},{"$error":"#N/A"},null,null,""]
[null,null,null,null,null,null,{"$error":"#N/A"},{"$error":"#N/A"},null,null,""]
[null,null,null,null,null,null,{"$error":"#N/A"},{"$error":"#N/A"},null,null,""]
[null,null,null,null,null,null,{"$error":"#N/A"},{"$error":"#N/A"},null,null,""]
[null,null,null,null,null,null,{"$error":"#N/A"},{"$error":"#N/A"},null,null,""]
[null,null,null,null,null,null,{"$error":"#N/A"},{"$error":"#N/A"},null,null,""]
[null,null,null,null,null,null,{"$error":"#N/A"},{"$error":"#N/A"},null,null,""]
[null,null,null,null,null,null,{"$error":"#N/A"},{"$error":"#N/A"},null,null,""]
[null,null,null,null,null,null,{"$error":"#N/A"},{"$error":"#N/A"},null,null,""]
[null,null,null,null,null,null,{"$error":"#N/A"},{"$error":"#N/A"},null,null,""]
[null,null,null,null,null,null,{"$error":"#N/A"},{"$error":"#N/A"},null,null,""]
[null,null,null,null,null,null,{"$error":"#N/A"},{"$error":"#N/A"},null,null,""]
[null,null,null,null,null,null,{"$error":"#N/A"},{"$error":"#N/A"},null,null,""]
[null,null,null,null,null,null,{"$error":"#N/A"},{"$error":"#N/A"},null,null,""]
[null,null,null,null,null,null,{"$error":"#N/A"},{"$error":"#N/A"},null,null,""]
[null,null,null,null,null,null,{"$error":"#N/A"},{"$error":"#N/A"},null,null,""]
[null,null,null,null,null,null,{"$error":"#N/A"},{"$error":"#N/A"},null,null,""]
[null,null,null,null,null,null,{"$f":"IF(COUNT(C776)=1,C776,#N/A)","v":{"$error":"#N/A"}},{"$f":"IF(COUNT(D776:E776)=2,ABS(D776-E776),#N/A)","v":{"$error":"#N/A"}},null,null,""]
[null,null,null,null,null,null,{"$error":"#N/A"},{"$error":"#N/A"},null,null,{"$f":"IFERROR(ABS((H777-J777)/J777),\"\")","v":""}]
[null,null,null,null,null,null,{"$error":"#N/A"},{"$error":"#N/A"},null,null,""]
[null,null,null,null,null,null,{"$error":"#N/A"},{"$error":"#N/A"},null,null,""]
[null,null,null,null,null,null,{"$error":"#N/A"},{"$error":"#N/A"},null,null,""]
[null,null,null,null,null,null,{"$error":"#N/A"},{"$error":"#N/A"},null,null,""]
[null,null,null,null,null,null,{"$error":"#N/A"},{"$error":"#N/A"},null,null,""]
[null,null,null,null,null,null,{"$error":"#N/A"},{"$error":"#N/A"},null,null,""]
[null,null,null,null,null,null,{"$error":"#N/A"},{"$error":"#N/A"},null,null,""]
[null,null,null,null,null,null,{"$error":"#N/A"},{"$error":"#N/A"},null,null,""]
[null,null,null,null,null,null,{"$error":"#N/A"},{"$error":"#N/A"},null,null,""]
[null,null,null,null,null,null,{"$error":"#N/A"},{"$error":"#N/A"},null,null,""]
[null,null,null,null,null,null,{"$error":"#N/A"},{"$error":"#N/A"},null,null,""]
[null,null,null,null,null,null,{"$error":"#N/A"},{"$error":"#N/A"},null,null,""]
[null,null,null,null,null,null,{"$error":"#N/A"},{"$error":"#N/A"},null,null,""]
[null,null,null,null,null,null,{"$error":"#N/A"},{"$error":"#N/A"},null,null,""]
[null,null,null,null,null,null,{"$error":"#N/A"},{"$error":"#N/A"},null,null,""]
[null,null,null,null,null,null,{"$error":"#N/A"},{"$error":"#N/A"},null,null,""]
[null,null,null,null,null,null,{"$error":"#N/A"},{"$error":"#N/A"},null,null,""]
[null,null,null,null,null,null,{"$error":"#N/A"},{"$error":"#N/A"},null,null,""]
[null,null,null,null,null,null,{"$error":"#N/A"},{"$error":"#N/A"},null,null,""]
[null,null,null,null,null,null,{"$error":"#N/A"},{"$error":"#N/A"},null,null,""]
[null,null,null,null,null,null,{"$error":"#N/A"},{"$error":"#N/A"},null,null,""]
[null,null,null,null,null,null,{"$error":"#N/A"},{"$error":"#N/A"},null,null,""]
[null,null,null,null,null,null,{"$error":"#N/A"},{"$error":"#N/A"},null,null,""]
[null,null,null,null,null,null,{"$error":"#N/A"},{"$error":"#N/A"},null,null,""]
[null,null,null,null,null,null,{"$error":"#N/A"},{"$error":"#N/A"},null,null,""]
[null,null,null,null,null,null,{"$error":"#N/A"},{"$error":"#N/A"},null,null,""]
[null,null,null,null,null,null,{"$error":"#N/A"},{"$error":"#N/A"},null,null,""]
[null,null,null,null,null,null,{"$error":"#N/A"},{"$error":"#N/A"},null,null,""]
[null,null,null,null,null,null,{"$error":"#N/A"},{"$error":"#N/A"},null,null,""]
[null,null,null,null,null,null,{"$error":"#N/A"},{"$error":"#N/A"},null,null,""]
[null,null,null,null,null,null,{"$error":"#N/A"},{"$error":"#N/A"},null,null,""]
[null,null,null,null,null,null,{"$error":"#N/A"},{"$error":"#N/A"},null,null,""]
[null,null,null,null,null,null,{"$error":"#N/A"},{"$error":"#N/A"},null,null,""]
[null,null,null,null,null,null,{"$error":"#N/A"},{"$error":"#N/A"},null,null,""]
[null,null,null,null,null,null,{"$error":"#N/A"},{"$error":"#N/A"},null,null,""]
[null,null,null,null,null,null,{"$error":"#N/A"},{"$error":"#N/A"},null,null,""]
[null,null,null,null,null,null,{"$error":"#N/A"},{"$error":"#N/A"},null,null,""]
[null,null,null,null,null,null,{"$error":"#N/A"},{"$error":"#N/A"},null,null,""]
[null,null,null,null,null,null,{"$error":"#N/A"},{"$error":"#N/A"},null,null,""]
[null,null,null,null,null,null,{"$error":"#N/A"},{"$error":"#N/A"},null,null,""]
[null,null,null,null,null,null,{"$error":"#N/A"},{"$error":"#N/A"},null,null,""]
[null,null,null,null,null,null,{"$error":"#N/A"},{"$error":"#N/A"},null,null,""]
[null,null,null,null,null,null,{"$error":"#N/A"},{"$error":"#N/A"},null,null,""]
[null,null,null,null,null,null,{"$error":"#N/A"},{"$error":"#N/A"},null,null,""]
[null,null,null,null,null,null,{"$error":"#N/A"},{"$error":"#N/A"},null,null,""]
[null,null,null,null,null,null,{"$error":"#N/A"},{"$error":"#N/A"},null,null,""]
[null,null,null,null,null,null,{"$error":"#N/A"},{"$error":"#N/A"},null,null,""]
[null,null,null,null,null,null,{"$error":"#N/A"},{"$error":"#N/A"},null,null,""]
[null,null,null,null,null,null,{"$error":"#N/A"},{"$error":"#N/A"},null,null,""]
[null,null,null,null,null,null,{"$error":"#N/A"},{"$error":"#N/A"},null,null,""]
[null,null,null,null,null,null,{"$error":"#N/A"},{"$error":"#N/A"},null,null,""]
[null,null,null,null,null,null,{"$error":"#N/A"},{"$error":"#N/A"},null,null,""]
[null,null,null,null,null,null,{"$error":"#N/A"},{"$error":"#N/A"},null,null,""]
[null,null,null,null,null,null,{"$error":"#N/A"},{"$error":"#N/A"},null,null,""]
[null,null,null,null,null,null,{"$error":"#N/A"},{"$error":"#N/A"},null,null,""]
[null,null,null,null,null,null,{"$error":"#N/A"},{"$error":"#N/A"},null,null,""]
[null,null,null,null,null,null,{"$error":"#N/A"},{"$error":"#N/A"},null,null,""]
[null,null,null,null,null,null,{"$error":"#N/A"},{"$error":"#N/A"},null,null,""]
[null,null,null,null,null,null,{"$error":"#N/A"},{"$error":"#N/A"},null,null,""]
[null,null,null,null,null,null,{"$error":"#N/A"},{"$error":"#N/A"},null,null,""]
[null,null,null,null,null,null,{"$error":"#N/A"},{"$error":"#N/A"},null,null,""]
[null,null,null,null,null,null,{"$error":"#N/A"},{"$error":"#N/A"},null,null,""]
[null,null,null,null,null,null,{"$f":"IF(COUNT(C840)=1,C840,#N/A)","v":{"$error":"#N/A"}},{"$f":"IF(COUNT(D840:E840)=2,ABS(D840-E840),#N/A)","v":{"$error":"#N/A"}},null,null,""]
[null,null,null,null,null,null,{"$error":"#N/A"},{"$error":"#N/A"},null,null,{"$f":"IFERROR(ABS((H841-J841)/J841),\"\")","v":""}]
[null,null,null,null,null,null,{"$error":"#N/A"},{"$error":"#N/A"},null,null,""]
[null,null,null,null,null,null,{"$error":"#N/A"},{"$error":"#N/A"},null,null,""]
[null,null,null,null,null,null,{"$error":"#N/A"},{"$error":"#N/A"},null,null,""]
[null,null,null,null,null,null,{"$error":"#N/A"},{"$error":"#N/A"},null,null,""]
[null,null,null,null,null,null,{"$error":"#N/A"},{"$error":"#N/A"},null,null,""]
[null,null,null,null,null,null,{"$error":"#N/A"},{"$error":"#N/A"},null,null,""]
[null,null,null,null,null,null,{"$error":"#N/A"},{"$error":"#N/A"},null,null,""]
[null,null,null,null,null,null,{"$error":"#N/A"},{"$error":"#N/A"},null,null,""]
[null,null,null,null,null,null,{"$error":"#N/A"},{"$error":"#N/A"},null,null,""]
[null,null,null,null,null,null,{"$error":"#N/A"},{"$error":"#N/A"},null,null,""]
[null,null,null,null,null,null,{"$error":"#N/A"},{"$error":"#N/A"},null,null,""]
[null,null,null,null,null,null,{"$error":"#N/A"},{"$error":"#N/A"},null,null,""]
[null,null,null,null,null,null,{"$error":"#N/A"},{"$error":"#N/A"},null,null,""]
[null,null,null,null,null,null,{"$error":"#N/A"},{"$error":"#N/A"},null,null,""]
[null,null,null,null,null,null,{"$error":"#N/A"},{"$error":"#N/A"},null,null,""]
[null,null,null,null,null,null,{"$error":"#N/A"},{"$error":"#N/A"},null,null,""]
[null,null,null,null,null,null,{"$error":"#N/A"},{"$error":"#N/A"},null,null,""]
[null,null,null,null,null,null,{"$error":"#N/A"},{"$error":"#N/A"},null,null,""]
[null,null,null,null,null,null,{"$error":"#N/A"},{"$error":"#N/A"},null,null,""]
[null,null,null,null,null,null,{"$error":"#N/A"},{"$error":"#N/A"},null,null,""]
[null,null,null,null,null,null,{"$error":"#N/A"},{"$error":"#N/A"},null,null,""]
[null,null,null,null,null,null,{"$error":"#N/A"},{"$error":"#N/A"},null,null,""]
[null,null,null,null,null,null,{"$error":"#N/A"},{"$error":"#N/A"},null,null,""]
[null,null,null,null,null,null,{"$error":"#N/A"},{"$error":"#N/A"},null,null,""]
[null,null,null,null,null,null,{"$error":"#N/A"},{"$error":"#N/A"},null,null,""]
[null,null,null,null,null,null,{"$error":"#N/A"},{"$error":"#N/A"},null,null,""]
[null,null,null,null,null,null,{"$error":"#N/A"},{"$error":"#N/A"},null,null,""]
[null,null,null,null,null,null,{"$error":"#N/A"},{"$error":"#N/A"},null,null,""]
[null,null,null,null,null,null,{"$error":"#N/A"},{"$error":"#N/A"},null,null,""]
[null,null,null,null,null,null,{"$error":"#N/A"},{"$error":"#N/A"},null,null,""]
[null,null,null,null,null,null,{"$error":"#N/A"},{"$error":"#N/A"},null,null,""]
[null,null,null,null,null,null,{"$error":"#N/A"},{"$error":"#N/A"},null,null,""]
[null,null,null,null,null,null,{"$error":"#N/A"},{"$error":"#N/A"},null,null,""]
[null,null,null,null,null,null,{"$error":"#N/A"},{"$error":"#N/A"},null,null,""]
[null,null,null,null,null,null,{"$error":"#N/A"},{"$error":"#N/A"},null,null,""]
[null,null,null,null,null,null,{"$error":"#N/A"},{"$error":"#N/A"},null,null,""]
[null,null,null,null,null,null,{"$error":"#N/A"},{"$error":"#N/A"},null,null,""]
[null,null,null,null,null,null,{"$error":"#N/A"},{"$error":"#N/A"},null,null,""]
[null,null,null,null,null,null,{"$error":"#N/A"},{"$error":"#N/A"},null,null,""]
[null,null,null,null,null,null,{"$error":"#N/A"},{"$error":"#N/A"},null,null,""]
[null,null,null,null,null,null,{"$error":"#N/A"},{"$error":"#N/A"},null,null,""]
[null,null,null,null,null,null,{"$error":"#N/A"},{"$error":"#N/A"},null,null,""]
[null,null,null,null,null,null,{"$error":"#N/A"},{"$error":"#N/A"},null,null,""]
[null,null,null,null,null,null,{"$error":"#N/A"},{"$error":"#N/A"},null,null,""]
[null,null,null,null,null,null,{"$error":"#N/A"},{"$error":"#N/A"},null,null,""]
[null,null,null,null,null,null,{"$error":"#N/A"},{"$error":"#N/A"},null,null,""]
[null,null,null,null,null,null,{"$error":"#N/A"},{"$error":"#N/A"},null,null,""]
[null,null,null,null,null,null,{"$error":"#N/A"},{"$error":"#N/A"},null,null,""]
[null,null,null,null,null,null,{"$error":"#N/A"},{"$error":"#N/A"},null,null,""]
[null,null,null,null,null,null,{"$error":"#N/A"},{"$error":"#N/A"},null,null,""]
[null,null,null,null,null,null,{"$error":"#N/A"},{"$error":"#N/A"},null,null,""]
[null,null,null,null,null,null,{"$error":"#N/A"},{"$error":"#N/A"},null,null,""]
[null,null,null,null,null,null,{"$error":"#N/A"},{"$error":"#N/A"},null,null,""]
[null,null,null,null,null,null,{"$error":"#N/A"},{"$error":"#N/A"},null,null,""]
[null,null,null,null,null,null,{"$error":"#N/A"},{"$error":"#N/A"},null,null,""]
[null,null,null,null,null,null,{"$error":"#N/A"},{"$error":"#N/A"},null,null,""]
[null,null,null,null,null,null,{"$error":"#N/A"},{"$error":"#N/A"},null,null,""]
[null,null,null,null,null,null,{"$error":"#N/A"},{"$error":"#N/A"},null,null,""]
[null,null,null,null,null,null,{"$error":"#N/A"},{"$error":"#N/A"},null,null,""]
[null,null,null,null,null,null,{"$error":"#N/A"},{"$error":"#N/A"},null,null,""]
[null,null,null,null,null,null,{"$error":"#N/A"},{"$error":"#N/A"},null,null,""]
[null,null,null,null,null,null,{"$error":"#N/A"},{"$error":"#N/A"},null,null,""]
[null,null,null,null,null,null,{"$f":"IF(COUNT(C904)=1,C904,#N/A)","v":{"$error":"#N/A"}},{"$f":"IF(COUNT(D904:E904)=2,ABS(D904-E904),#N/A)","v":{"$error":"#N/A"}},null,null,""]
[null,null,null,null,null,null,{"$error":"#N/A"},{"$error":"#N/A"},null,null,{"$f":"IFERROR(ABS((H905-J905)/J905),\"\")","v":""}]
[null,null,null,null,null,null,{"$error":"#N/A"},{"$error":"#N/A"},null,null,""]
[null,null,null,null,null,null,{"$error":"#N/A"},{"$error":"#N/A"},null,null,""]
[null,null,null,null,null,null,{"$error":"#N/A"},{"$error":"#N/A"},null,null,""]
[null,null,null,null,null,null,{"$error":"#N/A"},{"$error":"#N/A"},null,null,""]
[null,null,null,null,null,null,{"$error":"#N/A"},{"$error":"#N/A"},null,null,""]
[null,null,null,null,null,null,{"$error":"#N/A"},{"$error":"#N/A"},null,null,""]
[null,null,null,null,null,null,{"$error":"#N/A"},{"$error":"#N/A"},null,null,""]
[null,null,null,null,null,null,{"$error":"#N/A"},{"$error":"#N/A"},null,null,""]
[null,null,null,null,null,null,{"$error":"#N/A"},{"$error":"#N/A"},null,null,""]
[null,null,null,null,null,null,{"$error":"#N/A"},{"$error":"#N/A"},null,null,""]
[null,null,null,null,null,null,{"$error":"#N/A"},{"$error":"#N/A"},null,null,""]
[null,null,null,null,null,null,{"$error":"#N/A"},{"$error":"#N/A"},null,null,""]
[null,null,null,null,null,null,{"$error":"#N/A"},{"$error":"#N/A"},null,null,""]
[null,null,null,null,null,null,{"$error":"#N/A"},{"$error":"#N/A"},null,null,""]
[null,null,null,null,null,null,{"$error":"#N/A"},{"$error":"#N/A"},null,null,""]
[null,null,null,null,null,null,{"$error":"#N/A"},{"$error":"#N/A"},null,null,""]
[null,null,null,null,null,null,{"$error":"#N/A"},{"$error":"#N/A"},null,null,""]
[null,null,null,null,null,null,{"$error":"#N/A"},{"$error":"#N/A"},null,null,""]
[null,null,null,null,null,null,{"$error":"#N/A"},{"$error":"#N/A"},null,null,""]
[null,null,null,null,null,null,{"$error":"#N/A"},{"$error":"#N/A"},null,null,""]
[null,null,null,null,null,null,{"$error":"#N/A"},{"$error":"#N/A"},null,null,""]
[null,null,null,null,null,null,{"$error":"#N/A"},{"$error":"#N/A"},null,null,""]
[null,null,null,null,null,null,{"$error":"#N/A"},{"$error":"#N/A"},null,null,""]
[null,null,null,null,null,null,{"$error":"#N/A"},{"$error":"#N/A"},null,null,""]
[null,null,null,null,null,null,{"$error":"#N/A"},{"$error":"#N/A"},null,null,""]
[null,null,null,null,null,null,{"$error":"#N/A"},{"$error":"#N/A"},null,null,""]
[null,null,null,null,null,null,{"$error":"#N/A"},{"$error":"#N/A"},null,null,""]
[null,null,null,null,null,null,{"$error":"#N/A"},{"$error":"#N/A"},null,null,""]
[null,null,null,null,null,null,{"$error":"#N/A"},{"$error":"#N/A"},null,null,""]
[null,null,null,null,null,null,{"$error":"#N/A"},{"$error":"#N/A"},null,null,""]
[null,null,null,null,null,null,{"$error":"#N/A"},{"$error":"#N/A"},null,null,""]
[null,null,null,null,null,null,{"$error":"#N/A"},{"$error":"#N/A"},null,null,""]
[null,null,null,null,null,null,{"$error":"#N/A"},{"$error":"#N/A"},null,null,""]
[null,null,null,null,null,null,{"$error":"#N/A"},{"$error":"#N/A"},null,null,""]
[null,null,null,null,null,null,{"$error":"#N/A"},{"$error":"#N/A"},null,null,""]
[null,null,null,null,null,null,{"$error":"#N/A"},{"$error":"#N/A"},null,null,""]
[null,null,null,null,null,null,{"$error":"#N/A"},{"$error":"#N/A"},null,null,""]
[null,null,null,null,null,null,{"$error":"#N/A"},{"$error":"#N/A"},null,null,""]
[null,null,null,null,null,null,{"$error":"#N/A"},{"$error":"#N/A"},null,null,""]
[null,null,null,null,null,null,{"$error":"#N/A"},{"$error":"#N/A"},null,null,""]
[null,null,null,null,null,null,{"$error":"#N/A"},{"$error":"#N/A"},null,null,""]
[null,null,null,null,null,null,{"$error":"#N/A"},{"$error":"#N/A"},null,null,""]
[null,null,null,null,null,null,{"$error":"#N/A"},{"$error":"#N/A"},null,null,""]
[null,null,null,null,null,null,{"$error":"#N/A"},{"$error":"#N/A"},null,null,""]
[null,null,null,null,null,null,{"$error":"#N/A"},{"$error":"#N/A"},null,null,""]
[null,null,null,null,null,null,{"$error":"#N/A"},{"$error":"#N/A"},null,null,""]
[null,null,null,null,null,null,{"$error":"#N/A"},{"$error":"#N/A"},null,null,""]
[null,null,null,null,null,null,{"$error":"#N/A"},{"$error":"#N/A"},null,null,""]
[null,null,null,null,null,null,{"$error":"#N/A"},{"$error":"#N/A"},null,null,""]
[null,null,null,null,null,null,{"$error":"#N/A"},{"$error":"#N/A"},null,null,""]
[null,null,null,null,null,null,{"$error":"#N/A"},{"$error":"#N/A"},null,null,""]
[null,null,null,null,null,null,{"$error":"#N/A"},{"$error":"#N/A"},null,null,""]
[null,null,null,null,null,null,{"$error":"#N/A"},{"$error":"#N/A"},null,null,""]
[null,null,null,null,null,null,{"$error":"#N/A"},{"$error":"#N/A"},null,null,""]
[null,null,null,null,null,null,{"$error":"#N/A"},{"$error":"#N/A"},null,null,""]
[null,null,null,null,null,null,{"$error":"#N/A"},{"$error":"#N/A"},null,null,""]
[null,null,null,null,null,null,{"$error":"#N/A"},{"$error":"#N/A"},null,null,""]
[null,null,null,null,null,null,{"$error":"#N/A"},{"$error":"#N/A"},null,null,""]
[null,null,null,null,null,null,{"$error":"#N/A"},{"$error":"#N/A"},null,null,""]
[null,null,null,null,null,null,{"$error":"#N/A"},{"$error":"#N/A"},null,null,""]
[null,null,null,null,null,null,{"$error":"#N/A"},{"$error":"#N/A"},null,null,""]
[null,null,null,null,null,null,{"$error":"#N/A"},{"$error":"#N/A"},null,null,""]
[null,null,null,null,null,null,{"$f":"IF(COUNT(C968)=1,C968,#N/A)","v":{"$error":"#N/A"}},{"$f":"IF(COUNT(D968:E968)=2,ABS(D968-E968),#N/A)","v":{"$error":"#N/A"}},null,null,""]
[null,null,null,null,null,null,{"$error":"#N/A"},{"$error":"#N/A"},null,null,{"$f":"IFERROR(ABS((H969-J969)/J969),\"\")","v":""}]
[null,null,null,null,null,null,{"$error":"#N/A"},{"$error":"#N/A"},null,null,""]
[null,null,null,null,null,null,{"$error":"#N/A"},{"$error":"#N/A"},null,null,""]
[null,null,null,null,null,null,{"$error":"#N/A"},{"$error":"#N/A"},null,null,""]
[null,null,null,null,null,null,{"$error":"#N/A"},{"$error":"#N/A"},null,null,""]
[null,null,null,null,null,null,{"$error":"#N/A"},{"$error":"#N/A"},null,null,""]
[null,null,null,null,null,null,{"$error":"#N/A"},{"$error":"#N/A"},null,null,""]
[null,null,null,null,null,null,{"$error":"#N/A"},{"$error":"#N/A"},null,null,""]
[null,null,null,null,null,null,{"$error":"#N/A"},{"$error":"#N/A"},null,null,""]
[null,null,null,null,null,null,{"$error":"#N/A"},{"$error":"#N/A"},null,null,""]
[null,null,null,null,null,null,{"$error":"#N/A"},{"$error":"#N/A"},null,null,""]
[null,null,null,null,null,null,{"$error":"#N/A"},{"$error":"#N/A"},null,null,""]
[null,null,null,null,null,null,{"$error":"#N/A"},{"$error":"#N/A"},null,null,""]
[null,null,null,null,null,null,{"$error":"#N/A"},{"$error":"#N/A"},null,null,""]
[null,null,null,null,null,null,{"$error":"#N/A"},{"$error":"#N/A"},null,null,""]
[null,null,null,null,null,null,{"$error":"#N/A"},{"$error":"#N/A"},null,null,""]
[null,null,null,null,null,null,{"$error":"#N/A"},{"$error":"#N/A"},null,null,""]
[null,null,null,null,null,null,{"$error":"#N/A"},{"$error":"#N/A"},null,null,""]
[null,null,null,null,null,null,{"$error":"#N/A"},{"$error":"#N/A"},null,null,""]
[null,null,null,null,null,null,{"$error":"#N/A"},{"$error":"#N/A"},null,null,""]
[null,null,null,null,null,null,{"$error":"#N/A"},{"$error":"#N/A"},null,null,""]
[null,null,null,null,null,null,{"$error":"#N/A"},{"$error":"#N/A"},null,null,""]
[null,null,null,null,null,null,{"$error":"#N/A"},{"$error":"#N/A"},null,null,""]
[null,null,null,null,null,null,{"$error":"#N/A"},{"$error":"#N/A"},null,null,""]
[null,null,null,null,null,null,{"$error":"#N/A"},{"$error":"#N/A"},null,null,""]
[null,null,null,null,null,null,{"$error":"#N/A"},{"$error":"#N/A"},null,null,""]
[null,null,null,null,null,null,{"$error":"#N/A"},{"$error":"#N/A"},null,null,""]
[null,null,null,null,null,null,{"$error":"#N/A"},{"$error":"#N/A"},null,null,""]
[null,null,null,null,null,null,{"$error":"#N/A"},{"$error":"#N/A"},null,null,""]
[null,null,null,null,null,null,{"$error":"#N/A"},{"$error":"#N/A"},null,null,""]
[null,null,null,null,null,null,{"$error":"#N/A"},{"$error":"#N/A"},null,null,""]
[null,null,null,null,null,null,{"$error":"#N/A"},{"$error":"#N/A"},null,null,""]
[null,null,null,null,null,null,{"$error":"#N/A"},{"$error":"#N/A"},null,null,""]
[null,null,null,null,null,null,{"$error":"#N/A"},{"$error":"#N/A"},null,null,""]
[null,null,null,null,null,null,{"$error":"#N/A"},{"$error":"#N/A"},null,null,""]
[null,null,null,null,null,null,{"$error":"#N/A"},{"$error":"#N/A"},null,null,""]
[null,null,null,null,null,null,{"$error":"#N/A"},{"$error":"#N/A"},null,null,""]
[null,null,null,null,null,null,{"$error":"#N/A"},{"$error":"#N/A"},null,null,""]
[null,null,null,null,null,null,{"$error":"#N/A"},{"$error":"#N/A"},null,null,""]
[null,null,null,null,null,null,{"$error":"#N/A"},{"$error":"#N/A"},null,null,""]
[null,null,null,null,null,null,{"$error":"#N/A"},{"$error":"#N/A"},null,null,""]
[null,null,null,null,null,null,{"$error":"#N/A"},{"$error":"#N/A"},null,null,""]
[null,null,null,null,null,null,{"$error":"#N/A"},{"$error":"#N/A"},null,null,""]
[null,null,null,null,null,null,{"$error":"#N/A"},{"$error":"#N/A"},null,null,""]
[null,null,null,null,null,null,{"$error":"#N/A"},{"$error":"#N/A"},null,null,""]
[null,null,null,null,null,null,{"$error":"#N/A"},{"$error":"#N/A"},null,null,""]
[null,null,null,null,null,null,{"$error":"#N/A"},{"$error":"#N/A"},null,null,""]
[null,null,null,null,null,null,{"$error":"#N/A"},{"$error":"#N/A"},null,null,""]
[null,null,null,null,null,null,{"$error":"#N/A"},{"$error":"#N/A"},null,null,""]
[null,null,null,null,null,null,{"$error":"#N/A"},{"$error":"#N/A"},null,null,""]
[null,null,null,null,null,null,{"$error":"#N/A"},{"$error":"#N/A"},null,null,""]
[null,null,null,null,null,null,{"$error":"#N/A"},{"$error":"#N/A"},null,null,""]
[null,null,null,null,null,null,{"$error":"#N/A"},{"$error":"#N/A"},null,null,""]
[null,null,null,null,null,null,{"$error":"#N/A"},{"$error":"#N/A"},null,null,""]
[null,null,null,null,null,null,{"$error":"#N/A"},{"$error":"#N/A"},null,null,""]
[null,null,null,null,null,null,{"$error":"#N/A"},{"$error":"#N/A"},null,null,""]
[null,null,null,null,null,null,{"$error":"#N/A"},{"$error":"#N/A"},null,null,""]
[null,null,null,null,null,null,{"$error":"#N/A"},{"$error":"#N/A"},null,null,""]
[null,null,null,null,null,null,{"$error":"#N/A"},{"$error":"#N/A"},null,null,""]
[null,null,null,null,null,null,{"$error":"#N/A"},{"$error":"#N/A"},null,null,""]
[null,null,null,null,null,null,{"$error":"#N/A"},{"$error":"#N/A"},null,null,""]
[null,null,null,null,null,null,{"$error":"#N/A"},{"$error":"#N/A"},null,null,""]
[null,null,null,null,null,null,{"$error":"#N/A"},{"$error":"#N/A"},null,null,""]
[null,null,null,null,null,null,{"$f":"IF(COUNT(C1032)=1,C1032,#N/A)","v":{"$error":"#N/A"}},{"$f":"IF(COUNT(D1032:E1032)=2,ABS(D1032-E1032),#N/A)","v":{"$error":"#N/A"}},null,null,""]
[null,null,null,null,null,null,{"$error":"#N/A"},{"$error":"#N/A"},null,null,{"$f":"IFERROR(ABS((H1033-J1033)/J1033),\"\")","v":""}]
[null,null,null,null,null,null,{"$error":"#N/A"},{"$error":"#N/A"},null,null,""]
[null,null,null,null,null,null,{"$error":"#N/A"},{"$error":"#N/A"},null,null,""]
[null,null,null,null,null,null,{"$error":"#N/A"},{"$error":"#N/A"},null,null,""]
[null,null,null,null,null,null,{"$error":"#N/A"},{"$error":"#N/A"},null,null,""]
[null,null,null,null,null,null,{"$error":"#N/A"},{"$error":"#N/A"},null,null,""]
[null,null,null,null,null,null,{"$error":"#N/A"},{"$error":"#N/A"},null,null,""]
[null,null,null,null,null,null,{"$error":"#N/A"},{"$error":"#N/A"},null,null,""]
[null,null,null,null,null,null,{"$error":"#N/A"},{"$error":"#N/A"},null,null,""]
[null,null,null,null,null,null,{"$error":"#N/A"},{"$error":"#N/A"},null,null,""]
[null,null,null,null,null,null,{"$error":"#N/A"},{"$error":"#N/A"},null,null,""]
[null,null,null,null,null,null,{"$error":"#N/A"},{"$error":"#N/A"},null,null,""]
[null,null,null,null,null,null,{"$error":"#N/A"},{"$error":"#N/A"},null,null,""]
[null,null,null,null,null,null,{"$error":"#N/A"},{"$error":"#N/A"},null,null,""]
[null,null,null,null,null,null,{"$error":"#N/A"},{"$error":"#N/A"},null,null,""]
[null,null,null,null,null,null,{"$error":"#N/A"},{"$error":"#N/A"},null,null,""]
[null,null,null,null,null,null,{"$error":"#N/A"},{"$error":"#N/A"},null,null,""]
[null,null,null,null,null,null,{"$error":"#N/A"},{"$error":"#N/A"},null,null,""]
[null,null,null,null,null,null,{"$error":"#N/A"},{"$error":"#N/A"},null,null,""]
[null,null,null,null,null,null,{"$error":"#N/A"},{"$error":"#N/A"},null,null,""]
[null,null,null,null,null,null,{"$error":"#N/A"},{"$error":"#N/A"},null,null,""]
[null,null,null,null,null,null,{"$error":"#N/A"},{"$error":"#N/A"},null,null,""]
[null,null,null,null,null,null,{"$error":"#N/A"},{"$error":"#N/A"},null,null,""]
[null,null,null,null,null,null,{"$error":"#N/A"},{"$error":"#N/A"},null,null,""]
[null,null,null,null,null,null,{"$error":"#N/A"},{"$error":"#N/A"},null,null,""]
[null,null,null,null,null,null,{"$error":"#N/A"},{"$error":"#N/A"},null,null,""]
[null,null,null,null,null,null,{"$error":"#N/A"},{"$error":"#N/A"},null,null,""]
[null,null,null,null,null,null,{"$error":"#N/A"},{"$error":"#N/A"},null,null,""]
[null,null,null,null,null,null,{"$error":"#N/A"},{"$error":"#N/A"},null,null,""]
[null,null,null,null,null,null,{"$error":"#N/A"},{"$error":"#N/A"},null,null,""]
[null,null,null,null,null,null,{"$error":"#N/A"},{"$error":"#N/A"},null,null,""]
[null,null,null,null,null,null,{"$error":"#N/A"},{"$error":"#N/A"},null,null,""]
[null,null,null,null,null,null,{"$error":"#N/A"},{"$error":"#N/A"},null,null,""]
[null,null,null,null,null,null,{"$error":"#N/A"},{"$error":"#N/A"},null,null,""]
[null,null,null,null,null,null,{"$error":"#N/A"},{"$error":"#N/A"},null,null,""]
[null,null,null,null,null,null,{"$error":"#N/A"},{"$error":"#N/A"},null,null,""]
[null,null,null,null,null,null,{"$error":"#N/A"},{"$error":"#N/A"},null,null,""]
[null,null,null,null,null,null,{"$error":"#N/A"},{"$error":"#N/A"},null,null,""]
[null,null,null,null,null,null,{"$error":"#N/A"},{"$error":"#N/A"},null,null,""]
[null,null,null,null,null,null,{"$error":"#N/A"},{"$error":"#N/A"},null,null,""]
[null,null,null,null,null,null,{"$error":"#N/A"},{"$error":"#N/A"},null,null,""]
[null,null,null,null,null,null,{"$error":"#N/A"},{"$error":"#N/A"},null,null,""]
[null,null,null,null,null,null,{"$error":"#N/A"},{"$error":"#N/A"},null,null,""]
[null,null,null,null,null,null,{"$error":"#N/A"},{"$error":"#N/A"},null,null,""]
[null,null,null,null,null,null,{"$error":"#N/A"},{"$error":"#N/A"},null,null,""]
[null,null,null,null,null,null,{"$error":"#N/A"},{"$error":"#N/A"},null,null,""]
[null,null,null,null,null,null,{"$error":"#N/A"},{"$error":"#N/A"},null,null,""]
[null,null,null,null,null,null,{"$error":"#N/A"},{"$error":"#N/A"},null,null,""]
[null,null,null,null,null,null,{"$error":"#N/A"},{"$error":"#N/A"},null,null,""]
[null,null,null,null,null,null,{"$error":"#N/A"},{"$error":"#N/A"},null,null,""]
[null,null,null,null,null,null,{"$error":"#N/A"},{"$error":"#N/A"},null,null,""]
[null,null,null,null,null,null,{"$error":"#N/A"},{"$error":"#N/A"},null,null,""]
[null,null,null,null,null,null,{"$error":"#N/A"},{"$error":"#N/A"},null,null,""]
[null,null,null,null,null,null,{"$error":"#N/A"},{"$error":"#N/A"},null,null,""]
[null,null,null,null,null,null,{"$error":"#N/A"},{"$error":"#N/A"},null,null,""]
[null,null,null,null,null,null,{"$error":"#N/A"},{"$error":"#N/A"},null,null,""]
[null,null,null,null,null,null,{"$error":"#N/A"},{"$error":"#N/A"},null,null,""]
[null,null,null,null,null,null,{"$error":"#N/A"},{"$error":"#N/A"},null,null,""]
[null,null,null,null,null,null,{"$error":"#N/A"},{"$error":"#N/A"},null,null,""]
[null,null,null,null,null,null,{"$error":"#N/A"},{"$error":"#N/A"},null,null,""]
[null,null,null,null,null,null,{"$error":"#N/A"},{"$error":"#N/A"},null,null,""]
[null,null,null,null,null,null,{"$error":"#N/A"},{"$error":"#N/A"},null,null,""]
[null,null,null,null,null,null,{"$error":"#N/A"},{"$error":"#N/A"},null,null,""]
[null,null,null,null,null,null,{"$f":"IF(COUNT(C1096)=1,C1096,#N/A)","v":{"$error":"#N/A"}},{"$f":"IF(COUNT(D1096:E1096)=2,ABS(D1096-E1096),#N/A)","v":{"$error":"#N/A"}},null,null,""]
[null,null,null,null,null,null,{"$error":"#N/A"},{"$error":"#N/A"},null,null,{"$f":"IFERROR(ABS((H1097-J1097)/J1097),\"\")","v":""}]
[null,null,null,null,null,null,{"$error":"#N/A"},{"$error":"#N/A"},null,null,""]
[null,null,null,null,null,null,{"$error":"#N/A"},{"$error":"#N/A"},null,null,""]
[null,null,null,null,null,null,{"$error":"#N/A"},{"$error":"#N/A"},null,null,""]
[null,null,null,null,null,null,{"$error":"#N/A"},{"$error":"#N/A"},null,null,""]
[null,null,null,null,null,null,{"$error":"#N/A"},{"$error":"#N/A"},null,null,""]
[null,null,null,null,null,null,{"$error":"#N/A"},{"$error":"#N/A"},null,null,""]
[null,null,null,null,null,null,{"$error":"#N/A"},{"$error":"#N/A"},null,null,""]
[null,null,null,null,null,null,{"$error":"#N/A"},{"$error":"#N/A"},null,null,""]
[null,null,null,null,null,null,{"$error":"#N/A"},{"$error":"#N/A"},null,null,""]
[null,null,null,null,null,null,{"$error":"#N/A"},{"$error":"#N/A"},null,null,""]
[null,null,null,null,null,null,{"$error":"#N/A"},{"$error":"#N/A"},null,null,""]
[null,null,null,null,null,null,{"$error":"#N/A"},{"$error":"#N/A"},null,null,""]
[null,null,null,null,null,null,{"$error":"#N/A"},{"$error":"#N/A"},null,null,""]
[null,null,null,null,null,null,{"$error":"#N/A"},{"$error":"#N/A"},null,null,""]
[null,null,null,null,null,null,{"$error":"#N/A"},{"$error":"#N/A"},null,null,""]
[null,null,null,null,null,null,{"$error":"#N/A"},{"$error":"#N/A"},null,null,""]
[null,null,null,null,null,null,{"$error":"#N/A"},{"$error":"#N/A"},null,null,""]
[null,null,null,null,null,null,{"$error":"#N/A"},{"$error":"#N/A"},null,null,""]
[null,null,null,null,null,null,{"$error":"#N/A"},{"$error":"#N/A"},null,null,""]
[null,null,null,null,null,null,{"$error":"#N/A"},{"$error":"#N/A"},null,null,""]
[null,null,null,null,null,null,{"$error":"#N/A"},{"$error":"#N/A"},null,null,""]
[null,null,null,null,null,null,{"$error":"#N/A"},{"$error":"#N/A"},null,null,""]
[null,null,null,null,null,null,{"$error":"#N/A"},{"$error":"#N/A"},null,null,""]
[null,null,null,null,null,null,{"$error":"#N/A"},{"$error":"#N/A"},null,null,""]
[null,null,null,null,null,null,{"$error":"#N/A"},{"$error":"#N/A"},null,null,""]
[null,null,null,null,null,null,{"$error":"#N/A"},{"$error":"#N/A"},null,null,""]
[null,null,null,null,null,null,{"$error":"#N/A"},{"$error":"#N/A"},null,null,""]
[null,null,null,null,null,null,{"$error":"#N/A"},{"$error":"#N/A"},null,null,""]
[null,null,null,null,null,null,{"$error":"#N/A"},{"$error":"#N/A"},null,null,""]
[null,null,null,null,null,null,{"$error":"#N/A"},{"$error":"#N/A"},null,null,""]
[null,null,null,null,null,null,{"$error":"#N/A"},{"$error":"#N/A"},null,null,""]
[null,null,null,null,null,null,{"$error":"#N/A"},{"$error":"#N/A"},null,null,""]
[null,null,null,null,null,null,{"$error":"#N/A"},{"$error":"#N/A"},null,null,""]
[null,null,null,null,null,null,{"$error":"#N/A"},{"$error":"#N/A"},null,null,""]
[null,null,null,null,null,null,{"$error":"#N/A"},{"$error":"#N/A"},null,null,""]
[null,null,null,null,null,null,{"$error":"#N/A"},{"$error":"#N/A"},null,null,""]
[null,null,null,null,null,null,{"$error":"#N/A"},{"$error":"#N/A"},null,null,""]
[null,null,null,null,null,null,{"$error":"#N/A"},{"$error":"#N/A"},null,null,""]
[null,null,null,null,null,null,{"$error":"#N/A"},{"$error":"#N/A"},null,null,""]
[null,null,null,null,null,null,{"$error":"#N/A"},{"$error":"#N/A"},null,null,""]
[null,null,null,null,null,null,{"$error":"#N/A"},{"$error":"#N/A"},null,null,""]
[null,null,null,null,null,null,{"$error":"#N/A"},{"$error":"#N/A"},null,null,""]
[null,null,null,null,null,null,{"$error":"#N/A"},{"$error":"#N/A"},null,null,""]
[null,null,null,null,null,null,{"$error":"#N/A"},{"$error":"#N/A"},null,null,""]
[null,null,null,null,null,null,{"$error":"#N/A"},{"$error":"#N/A"},null,null,""]
[null,null,null,null,null,null,{"$error":"#N/A"},{"$error":"#N/A"},null,null,""]
[null,null,null,null,null,null,{"$error":"#N/A"},{"$error":"#N/A"},null,null,""]
[null,null,null,null,null,null,{"$error":"#N/A"},{"$error":"#N/A"},null,null,""]
[null,null,null,null,null,null,{"$error":"#N/A"},{"$error":"#N/A"},null,null,""]
[null,null,null,null,null,null,{"$error":"#N/A"},{"$error":"#N/A"},null,null,""]
[null,null,null,null,null,null,{"$error":"#N/A"},{"$error":"#N/A"},null,null,""]
[null,null,null,null,null,null,{"$error":"#N/A"},{"$error":"#N/A"},null,null,""]
[null,null,null,null,null,null,{"$error":"#N/A"},{"$error":"#N/A"},null,null,""]
[null,null,null,null,null,null,{"$error":"#N/A"},{"$error":"#N/A"},null,null,""]
[null,null,null,null,null,null,{"$error":"#N/A"},{"$error":"#N/A"},null,null,""]
[null,null,null,null,null,null,{"$error":"#N/A"},{"$error":"#N/A"},null,null,""]
[null,null,null,null,null,null,{"$error":"#N/A"},{"$error":"#N/A"},null,null,""]
[null,null,null,null,null,null,{"$error":"#N/A"},{"$error":"#N/A"},null,null,""]
[null,null,null,null,null,null,{"$error":"#N/A"},{"$error":"#N/A"},null,null,""]
[null,null,null,null,null,null,{"$error":"#N/A"},{"$error":"#N/A"},null,null,""]
[null,null,null,null,null,null,{"$error":"#N/A"},{"$error":"#N/A"},null,null,""]
[null,null,null,null,null,null,{"$error":"#N/A"},{"$error":"#N/A"},null,null,""]
[null,null,null,null,null,null,{"$f":"IF(COUNT(C1160)=1,C1160,#N/A)","v":{"$error":"#N/A"}},{"$f":"IF(COUNT(D1160:E1160)=2,ABS(D1160-E1160),#N/A)","v":{"$error":"#N/A"}},null,null,""]
[null,null,null,null,null,null,{"$error":"#N/A"},{"$error":"#N/A"},null,null,{"$f":"IFERROR(ABS((H1161-J1161)/J1161),\"\")","v":""}]
[null,null,null,null,null,null,{"$error":"#N/A"},{"$error":"#N/A"},null,null,""]
[null,null,null,null,null,null,{"$error":"#N/A"},{"$error":"#N/A"},null,null,""]
[null,null,null,null,null,null,{"$error":"#N/A"},{"$error":"#N/A"},null,null,""]
[null,null,null,null,null,null,{"$error":"#N/A"},{"$error":"#N/A"},null,null,""]
[null,null,null,null,null,null,{"$error":"#N/A"},{"$error":"#N/A"},null,null,""]
[null,null,null,null,null,null,{"$error":"#N/A"},{"$error":"#N/A"},null,null,""]
[null,null,null,null,null,null,{"$error":"#N/A"},{"$error":"#N/A"},null,null,""]
[null,null,null,null,null,null,{"$error":"#N/A"},{"$error":"#N/A"},null,null,""]
[null,null,null,null,null,null,{"$error":"#N/A"},{"$error":"#N/A"},null,null,""]
[null,null,null,null,null,null,{"$error":"#N/A"},{"$error":"#N/A"},null,null,""]
[null,null,null,null,null,null,{"$error":"#N/A"},{"$error":"#N/A"},null,null,""]
[null,null,null,null,null,null,{"$error":"#N/A"},{"$error":"#N/A"},null,null,""]
[null,null,null,null,null,null,{"$error":"#N/A"},{"$error":"#N/A"},null,null,""]
[null,null,null,null,null,null,{"$error":"#N/A"},{"$error":"#N/A"},null,null,""]
[null,null,null,null,null,null,{"$error":"#N/A"},{"$error":"#N/A"},null,null,""]
[null,null,null,null,null,null,{"$error":"#N/A"},{"$error":"#N/A"},null,null,""]
[null,null,null,null,null,null,{"$error":"#N/A"},{"$error":"#N/A"},null,null,""]
[null,null,null,null,null,null,{"$error":"#N/A"},{"$error":"#N/A"},null,null,""]
[null,null,null,null,null,null,{"$error":"#N/A"},{"$error":"#N/A"},null,null,""]
[null,null,null,null,null,null,{"$error":"#N/A"},{"$error":"#N/A"},null,null,""]
[null,null,null,null,null,null,{"$error":"#N/A"},{"$error":"#N/A"},null,null,""]
[null,null,null,null,null,null,{"$error":"#N/A"},{"$error":"#N/A"},null,null,""]
[null,null,null,null,null,null,{"$error":"#N/A"},{"$error":"#N/A"},null,null,""]
[null,null,null,null,null,null,{"$error":"#N/A"},{"$error":"#N/A"},null,null,""]
[null,null,null,null,null,null,{"$error":"#N/A"},{"$error":"#N/A"},null,null,""]
[null,null,null,null,null,null,{"$error":"#N/A"},{"$error":"#N/A"},null,null,""]
[null,null,null,null,null,null,{"$error":"#N/A"},{"$error":"#N/A"},null,null,""]
[null,null,null,null,null,null,{"$error":"#N/A"},{"$error":"#N/A"},null,null,""]
[null,null,null,null,null,null,{"$error":"#N/A"},{"$error":"#N/A"},null,null,""]
[null,null,null,null,null,null,{"$error":"#N/A"},{"$error":"#N/A"},null,null,""]
[null,null,null,null,null,null,{"$error":"#N/A"},{"$error":"#N/A"},null,null,""]
[null,null,null,null,null,null,{"$error":"#N/A"},{"$error":"#N/A"},null,null,""]
[null,null,null,null,null,null,{"$error":"#N/A"},{"$error":"#N/A"},null,null,""]
[null,null,null,null,null,null,{"$error":"#N/A"},{"$error":"#N/A"},null,null,""]
[null,null,null,null,null,null,{"$error":"#N/A"},{"$error":"#N/A"},null,null,""]
[null,null,null,null,null,null,{"$error":"#N/A"},{"$error":"#N/A"},null,null,""]
[null,null,null,null,null,null,{"$error":"#N/A"},{"$error":"#N/A"},null,null,""]
[null,null,null,null,null,null,{"$error":"#N/A"},{"$error":"#N/A"},null,null,""]
[null,null,null,null,null,null,{"$error":"#N/A"},{"$error":"#N/A"},null,null,""]
[null,null,null,null,null,null,{"$error":"#N/A"},{"$error":"#N/A"},null,null,""]
[null,null,null,null,null,null,{"$error":"#N/A"},{"$error":"#N/A"},null,null,""]
[null,null,null,null,null,null,{"$error":"#N/A"},{"$error":"#N/A"},null,null,""]
[null,null,null,null,null,null,{"$error":"#N/A"},{"$error":"#N/A"},null,null,""]
[null,null,null,null,null,null,{"$error":"#N/A"},{"$error":"#N/A"},null,null,""]
[null,null,null,null,null,null,{"$error":"#N/A"},{"$error":"#N/A"},null,null,""]
[null,null,null,null,null,null,{"$error":"#N/A"},{"$error":"#N/A"},null,null,""]
[null,null,null,null,null,null,{"$error":"#N/A"},{"$error":"#N/A"},null,null,""]
[null,null,null,null,null,null,{"$error":"#N/A"},{"$error":"#N/A"},null,null,""]
[null,null,null,null,null,null,{"$error":"#N/A"},{"$error":"#N/A"},null,null,""]
[null,null,null,null,null,null,{"$error":"#N/A"},{"$error":"#N/A"},null,null,""]
[null,null,null,null,null,null,{"$error":"#N/A"},{"$error":"#N/A"},null,null,""]
[null,null,null,null,null,null,{"$error":"#N/A"},{"$error":"#N/A"},null,null,""]
[null,null,null,null,null,null,{"$error":"#N/A"},{"$error":"#N/A"},null,null,""]
[null,null,null,null,null,null,{"$error":"#N/A"},{"$error":"#N/A"},null,null,""]
[null,null,null,null,null,null,{"$error":"#N/A"},{"$error":"#N/A"},null,null,""]
[null,null,null,null,null,null,{"$error":"#N/A"},{"$error":"#N/A"},null,null,""]
[null,null,null,null,null,null,{"$error":"#N/A"},{"$error":"#N/A"},null,null,""]
[null,null,null,null,null,null,{"$error":"#N/A"},{"$error":"#N/A"},null,null,""]
[null,null,null,null,null,null,{"$error":"#N/A"},{"$error":"#N/A"},null,null,""]
[null,null,null,null,null,null,{"$error":"#N/A"},{"$error":"#N/A"},null,null,""]
[null,null,null,null,null,null,{"$error":"#N/A"},{"$error":"#N/A"},null,null,""]
[null,null,null,null,null,null,{"$error":"#N/A"},{"$error":"#N/A"},null,null,""]
[null,null,null,null,null,null,{"$f":"IF(COUNT(C1224)=1,C1224,#N/A)","v":{"$error":"#N/A"}},{"$f":"IF(COUNT(D1224:E1224)=2,ABS(D1224-E1224),#N/A)","v":{"$error":"#N/A"}},null,null,""]
[null,null,null,null,null,null,{"$error":"#N/A"},{"$error":"#N/A"},null,null,{"$f":"IFERROR(ABS((H1225-J1225)/J1225),\"\")","v":""}]
[null,null,null,null,null,null,{"$error":"#N/A"},{"$error":"#N/A"},null,null,""]
[null,null,null,null,null,null,{"$error":"#N/A"},{"$error":"#N/A"},null,null,""]
[null,null,null,null,null,null,{"$error":"#N/A"},{"$error":"#N/A"},null,null,""]
[null,null,null,null,null,null,{"$error":"#N/A"},{"$error":"#N/A"},null,null,""]
[null,null,null,null,null,null,{"$error":"#N/A"},{"$error":"#N/A"},null,null,""]
[null,null,null,null,null,null,{"$error":"#N/A"},{"$error":"#N/A"},null,null,""]
[null,null,null,null,null,null,{"$error":"#N/A"},{"$error":"#N/A"},null,null,""]
[null,null,null,null,null,null,{"$error":"#N/A"},{"$error":"#N/A"},null,null,""]
[null,null,null,null,null,null,{"$error":"#N/A"},{"$error":"#N/A"},null,null,""]
[null,null,null,null,null,null,{"$error":"#N/A"},{"$error":"#N/A"},null,null,""]
[null,null,null,null,null,null,{"$error":"#N/A"},{"$error":"#N/A"},null,null,""]
[null,null,null,null,null,null,{"$error":"#N/A"},{"$error":"#N/A"},null,null,""]
[null,null,null,null,null,null,{"$error":"#N/A"},{"$error":"#N/A"},null,null,""]
[null,null,null,null,null,null,{"$error":"#N/A"},{"$error":"#N/A"},null,null,""]
[null,null,null,null,null,null,{"$error":"#N/A"},{"$error":"#N/A"},null,null,""]
[null,null,null,null,null,null,{"$error":"#N/A"},{"$error":"#N/A"},null,null,""]
[null,null,null,null,null,null,{"$error":"#N/A"},{"$error":"#N/A"},null,null,""]
[null,null,null,null,null,null,{"$error":"#N/A"},{"$error":"#N/A"},null,null,""]
[null,null,null,null,null,null,{"$error":"#N/A"},{"$error":"#N/A"},null,null,""]
[null,null,null,null,null,null,{"$error":"#N/A"},{"$error":"#N/A"},null,null,""]
[null,null,null,null,null,null,{"$error":"#N/A"},{"$error":"#N/A"},null,null,""]
[null,null,null,null,null,null,{"$error":"#N/A"},{"$error":"#N/A"},null,null,""]
[null,null,null,null,null,null,{"$error":"#N/A"},{"$error":"#N/A"},null,null,""]
[null,null,null,null,null,null,{"$error":"#N/A"},{"$error":"#N/A"},null,null,""]
[null,null,null,null,null,null,{"$error":"#N/A"},{"$error":"#N/A"},null,null,""]
[null,null,null,null,null,null,{"$error":"#N/A"},{"$error":"#N/A"},null,null,""]
[null,null,null,null,null,null,{"$error":"#N/A"},{"$error":"#N/A"},null,null,""]
[null,null,null,null,null,null,{"$error":"#N/A"},{"$error":"#N/A"},null,null,""]
[null,null,null,null,null,null,{"$error":"#N/A"},{"$error":"#N/A"},null,null,""]
[null,null,null,null,null,null,{"$error":"#N/A"},{"$error":"#N/A"},null,null,""]
[null,null,null,null,null,null,{"$error":"#N/A"},{"$error":"#N/A"},null,null,""]
[null,null,null,null,null,null,{"$error":"#N/A"},{"$error":"#N/A"},null,null,""]
[null,null,null,null,null,null,{"$error":"#N/A"},{"$error":"#N/A"},null,null,""]
[null,null,null,null,null,null,{"$error":"#N/A"},{"$error":"#N/A"},null,null,""]
[null,null,null,null,null,null,{"$error":"#N/A"},{"$error":"#N/A"},null,null,""]
[null,null,null,null,null,null,{"$error":"#N/A"},{"$error":"#N/A"},null,null,""]
[null,null,null,null,null,null,{"$error":"#N/A"},{"$error":"#N/A"},null,null,""]
[null,null,null,null,null,null,{"$error":"#N/A"},{"$error":"#N/A"},null,null,""]
[null,null,null,null,null,null,{"$error":"#N/A"},{"$error":"#N/A"},null,null,""]
[null,null,null,null,null,null,{"$error":"#N/A"},{"$error":"#N/A"},null,null,""]
[null,null,null,null,null,null,{"$error":"#N/A"},{"$error":"#N/A"},null,null,""]
[null,null,null,null,null,null,{"$error":"#N/A"},{"$error":"#N/A"},null,null,""]
[null,null,null,null,null,null,{"$error":"#N/A"},{"$error":"#N/A"},null,null,""]
[null,null,null,null,null,null,{"$error":"#N/A"},{"$error":"#N/A"},null,null,""]
[null,null,null,null,null,null,{"$error":"#N/A"},{"$error":"#N/A"},null,null,""]
[null,null,null,null,null,null,{"$error":"#N/A"},{"$error":"#N/A"},null,null,""]
[null,null,null,null,null,null,{"$error":"#N/A"},{"$error":"#N/A"},null,null,""]
[null,null,null,null,null,null,{"$error":"#N/A"},{"$error":"#N/A"},null,null,""]
[null,null,null,null,null,null,{"$error":"#N/A"},{"$error":"#N/A"},null,null,""]
[null,null,null,null,null,null,{"$error":"#N/A"},{"$error":"#N/A"},null,null,""]
[null,null,null,null,null,null,{"$error":"#N/A"},{"$error":"#N/A"},null,null,""]
[null,null,null,null,null,null,{"$error":"#N/A"},{"$error":"#N/A"},null,null,""]
[null,null,null,null,null,null,{"$error":"#N/A"},{"$error":"#N/A"},null,null,""]
[null,null,null,null,null,null,{"$error":"#N/A"},{"$error":"#N/A"},null,null,""]
[null,null,null,null,null,null,{"$error":"#N/A"},{"$error":"#N/A"},null,null,""]
[null,null,null,null,null,null,{"$error":"#N/A"},{"$error":"#N/A"},null,null,""]
[null,null,null,null,null,null,{"$error":"#N/A"},{"$error":"#N/A"},null,null,""]
[null,null,null,null,null,null,{"$error":"#N/A"},{"$error":"#N/A"},null,null,""]
[null,null,null,null,null,null,{"$error":"#N/A"},{"$error":"#N/A"},null,null,""]
[null,null,null,null,null,null,{"$error":"#N/A"},{"$error":"#N/A"},null,null,""]
[null,null,null,null,null,null,{"$error":"#N/A"},{"$error":"#N/A"},null,null,""]
[null,null,null,null,null,null,{"$error":"#N/A"},{"$error":"#N/A"},null,null,""]
[null,null,null,null,null,null,{"$f":"IF(COUNT(C1288)=1,C1288,#N/A)","v":{"$error":"#N/A"}},{"$f":"IF(COUNT(D1288:E1288)=2,ABS(D1288-E1288),#N/A)","v":{"$error":"#N/A"}},null,null,""]
[null,null,null,null,null,null,{"$error":"#N/A"},{"$error":"#N/A"},null,null,{"$f":"IFERROR(ABS((H1289-J1289)/J1289),\"\")","v":""}]
[null,null,null,null,null,null,{"$error":"#N/A"},{"$error":"#N/A"},null,null,""]
[null,null,null,null,null,null,{"$error":"#N/A"},{"$error":"#N/A"},null,null,""]
[null,null,null,null,null,null,{"$error":"#N/A"},{"$error":"#N/A"},null,null,""]
[null,null,null,null,null,null,{"$error":"#N/A"},{"$error":"#N/A"},null,null,""]
[null,null,null,null,null,null,{"$error":"#N/A"},{"$error":"#N/A"},null,null,""]
[null,null,null,null,null,null,{"$error":"#N/A"},{"$error":"#N/A"},null,null,""]
[null,null,null,null,null,null,{"$error":"#N/A"},{"$error":"#N/A"},null,null,""]
[null,null,null,null,null,null,{"$error":"#N/A"},{"$error":"#N/A"},null,null,""]
[null,null,null,null,null,null,{"$error":"#N/A"},{"$error":"#N/A"},null,null,""]
[null,null,null,null,null,null,{"$error":"#N/A"},{"$error":"#N/A"},null,null,""]
[null,null,null,null,null,null,{"$error":"#N/A"},{"$error":"#N/A"},null,null,""]
[null,null,null,null,null,null,{"$error":"#N/A"},{"$error":"#N/A"},null,null,""]
[null,null,null,null,null,null,{"$error":"#N/A"},{"$error":"#N/A"},null,null,""]
[null,null,null,null,null,null,{"$error":"#N/A"},{"$error":"#N/A"},null,null,""]
[null,null,null,null,null,null,{"$error":"#N/A"},{"$error":"#N/A"},null,null,""]
[null,null,null,null,null,null,{"$error":"#N/A"},{"$error":"#N/A"},null,null,""]
[null,null,null,null,null,null,{"$error":"#N/A"},{"$error":"#N/A"},null,null,""]
[null,null,null,null,null,null,{"$error":"#N/A"},{"$error":"#N/A"},null,null,""]
[null,null,null,null,null,null,{"$error":"#N/A"},{"$error":"#N/A"},null,null,""]
[null,null,null,null,null,null,{"$error":"#N/A"},{"$error":"#N/A"},null,null,""]
[null,null,null,null,null,null,{"$error":"#N/A"},{"$error":"#N/A"},null,null,""]
[null,null,null,null,null,null,{"$error":"#N/A"},{"$error":"#N/A"},null,null,""]
[null,null,null,null,null,null,{"$error":"#N/A"},{"$error":"#N/A"},null,null,""]
[null,null,null,null,null,null,{"$error":"#N/A"},{"$error":"#N/A"},null,null,""]
[null,null,null,null,null,null,{"$error":"#N/A"},{"$error":"#N/A"},null,null,""]
[null,null,null,null,null,null,{"$error":"#N/A"},{"$error":"#N/A"},null,null,""]
[null,null,null,null,null,null,{"$error":"#N/A"},{"$error":"#N/A"},null,null,""]
[null,null,null,null,null,null,{"$error":"#N/A"},{"$error":"#N/A"},null,null,""]
[null,null,null,null,null,null,{"$error":"#N/A"},{"$error":"#N/A"},null,null,""]
[null,null,null,null,null,null,{"$error":"#N/A"},{"$error":"#N/A"},null,null,""]
[null,null,null,null,null,null,{"$error":"#N/A"},{"$error":"#N/A"},null,null,""]
[null,null,null,null,null,null,{"$error":"#N/A"},{"$error":"#N/A"},null,null,""]
[null,null,null,null,null,null,{"$error":"#N/A"},{"$error":"#N/A"},null,null,""]
[null,null,null,null,null,null,{"$error":"#N/A"},{"$error":"#N/A"},null,null,""]
[null,null,null,null,null,null,{"$error":"#N/A"},{"$error":"#N/A"},null,null,""]
[null,null,null,null,null,null,{"$error":"#N/A"},{"$error":"#N/A"},null,null,""]
[null,null,null,null,null,null,{"$error":"#N/A"},{"$error":"#N/A"},null,null,""]
[null,null,null,null,null,null,{"$error":"#N/A"},{"$error":"#N/A"},null,null,""]
[null,null,null,null,null,null,{"$error":"#N/A"},{"$error":"#N/A"},null,null,""]
[null,null,null,null,null,null,{"$error":"#N/A"},{"$error":"#N/A"},null,null,""]
[null,null,null,null,null,null,{"$error":"#N/A"},{"$error":"#N/A"},null,null,""]
[null,null,null,null,null,null,{"$error":"#N/A"},{"$error":"#N/A"},null,null,""]
[null,null,null,null,null,null,{"$error":"#N/A"},{"$error":"#N/A"},null,null,""]
[null,null,null,null,null,null,{"$error":"#N/A"},{"$error":"#N/A"},null,null,""]
[null,null,null,null,null,null,{"$error":"#N/A"},{"$error":"#N/A"},null,null,""]
[null,null,null,null,null,null,{"$error":"#N/A"},{"$error":"#N/A"},null,null,""]
[null,null,null,null,null,null,{"$error":"#N/A"},{"$error":"#N/A"},null,null,""]
[null,null,null,null,null,null,{"$error":"#N/A"},{"$error":"#N/A"},null,null,""]
[null,null,null,null,null,null,{"$error":"#N/A"},{"$error":"#N/A"},null,null,""]
[null,null,null,null,null,null,{"$error":"#N/A"},{"$error":"#N/A"},null,null,""]
[null,null,null,null,null,null,{"$error":"#N/A"},{"$error":"#N/A"},null,null,""]
[null,null,null,null,null,null,{"$error":"#N/A"},{"$error":"#N/A"},null,null,""]
[null,null,null,null,null,null,{"$error":"#N/A"},{"$error":"#N/A"},null,null,""]
[null,null,null,null,null,null,{"$error":"#N/A"},{"$error":"#N/A"},null,null,""]
[null,null,null,null,null,null,{"$error":"#N/A"},{"$error":"#N/A"},null,null,""]
[null,null,null,null,null,null,{"$error":"#N/A"},{"$error":"#N/A"},null,null,""]
[null,null,null,null,null,null,{"$error":"#N/A"},{"$error":"#N/A"},null,null,""]
[null,null,null,null,null,null,{"$error":"#N/A"},{"$error":"#N/A"},null,null,""]
[null,null,null,null,null,null,{"$error":"#N/A"},{"$error":"#N/A"},null,null,""]
[null,null,null,null,null,null,{"$error":"#N/A"},{"$error":"#N/A"},null,null,""]
[null,null,null,null,null,null,{"$error":"#N/A"},{"$error":"#N/A"},null,null,""]
[null,null,null,null,null,null,{"$error":"#N/A"},{"$error":"#N/A"},null,null,""]
[null,null,null,null,null,null,{"$f":"IF(COUNT(C1352)=1,C1352,#N/A)","v":{"$error":"#N/A"}},{"$f":"IF(COUNT(D1352:E1352)=2,ABS(D1352-E1352),#N/A)","v":{"$error":"#N/A"}},null,null,""]
[null,null,null,null,null,null,{"$error":"#N/A"},{"$error":"#N/A"},null,null,{"$f":"IFERROR(ABS((H1353-J1353)/J1353),\"\")","v":""}]
[null,null,null,null,null,null,{"$error":"#N/A"},{"$error":"#N/A"},null,null,""]
[null,null,null,null,null,null,{"$error":"#N/A"},{"$error":"#N/A"},null,null,""]
[null,null,null,null,null,null,{"$error":"#N/A"},{"$error":"#N/A"},null,null,""]
[null,null,null,null,null,null,{"$error":"#N/A"},{"$error":"#N/A"},null,null,""]
[null,null,null,null,null,null,{"$error":"#N/A"},{"$error":"#N/A"},null,null,""]
[null,null,null,null,null,null,{"$error":"#N/A"},{"$error":"#N/A"},null,null,""]
[null,null,null,null,null,null,{"$error":"#N/A"},{"$error":"#N/A"},null,null,""]
[null,null,null,null,null,null,{"$error":"#N/A"},{"$error":"#N/A"},null,null,""]
[null,null,null,null,null,null,{"$error":"#N/A"},{"$error":"#N/A"},null,null,""]
[null,null,null,null,null,null,{"$error":"#N/A"},{"$error":"#N/A"},null,null,""]
[null,null,null,null,null,null,{"$error":"#N/A"},{"$error":"#N/A"},null,null,""]
[null,null,null,null,null,null,{"$error":"#N/A"},{"$error":"#N/A"},null,null,""]
[null,null,null,null,null,null,{"$error":"#N/A"},{"$error":"#N/A"},null,null,""]
[null,null,null,null,null,null,{"$error":"#N/A"},{"$error":"#N/A"},null,null,""]
[null,null,null,null,null,null,{"$error":"#N/A"},{"$error":"#N/A"},null,null,""]
[null,null,null,null,null,null,{"$error":"#N/A"},{"$error":"#N/A"},null,null,""]
[null,null,null,null,null,null,{"$error":"#N/A"},{"$error":"#N/A"},null,null,""]
[null,null,null,null,null,null,{"$error":"#N/A"},{"$error":"#N/A"},null,null,""]
[null,null,null,null,null,null,{"$error":"#N/A"},{"$error":"#N/A"},null,null,""]
[null,null,null,null,null,null,{"$error":"#N/A"},{"$error":"#N/A"},null,null,""]
[null,null,null,null,null,null,{"$error":"#N/A"},{"$error":"#N/A"},null,null,""]
[null,null,null,null,null,null,{"$error":"#N/A"},{"$error":"#N/A"},null,null,""]
[null,null,null,null,null,null,{"$error":"#N/A"},{"$error":"#N/A"},null,null,""]
[null,null,null,null,null,null,{"$error":"#N/A"},{"$error":"#N/A"},null,null,""]
[null,null,null,null,null,null,{"$error":"#N/A"},{"$error":"#N/A"},null,null,""]
[null,null,null,null,null,null,{"$error":"#N/A"},{"$error":"#N/A"},null,null,""]
[null,null,null,null,null,null,{"$error":"#N/A"},{"$error":"#N/A"},null,null,""]
[null,null,null,null,null,null,{"$error":"#N/A"},{"$error":"#N/A"},null,null,""]
[null,null,null,null,null,null,{"$error":"#N/A"},{"$error":"#N/A"},null,null,""]
[null,null,null,null,null,null,{"$error":"#N/A"},{"$error":"#N/A"},null,null,""]
[null,null,null,null,null,null,{"$error":"#N/A"},{"$error":"#N/A"},null,null,""]
[null,null,null,null,null,null,{"$error":"#N/A"},{"$error":"#N/A"},null,null,""]
[null,null,null,null,null,null,{"$error":"#N/A"},{"$error":"#N/A"},null,null,""]
[null,null,null,null,null,null,{"$error":"#N/A"},{"$error":"#N/A"},null,null,""]
[null,null,null,null,null,null,{"$error":"#N/A"},{"$error":"#N/A"},null,null,""]
[null,null,null,null,null,null,{"$error":"#N/A"},{"$error":"#N/A"},null,null,""]
[null,null,null,null,null,null,{"$error":"#N/A"},{"$error":"#N/A"},null,null,""]
[null,null,null,null,null,null,{"$error":"#N/A"},{"$error":"#N/A"},null,null,""]
[null,null,null,null,null,null,{"$error":"#N/A"},{"$error":"#N/A"},null,null,""]
[null,null,null,null,null,null,{"$error":"#N/A"},{"$error":"#N/A"},null,null,""]
[null,null,null,null,null,null,{"$error":"#N/A"},{"$error":"#N/A"},null,null,""]
[null,null,null,null,null,null,{"$error":"#N/A"},{"$error":"#N/A"},null,null,""]
[null,null,null,null,null,null,{"$error":"#N/A"},{"$error":"#N/A"},null,null,""]
[null,null,null,null,null,null,{"$error":"#N/A"},{"$error":"#N/A"},null,null,""]
[null,null,null,null,null,null,{"$error":"#N/A"},{"$error":"#N/A"},null,null,""]
[null,null,null,null,null,null,{"$error":"#N/A"},{"$error":"#N/A"},null,null,""]
[null,null,null,null,null,null,{"$error":"#N/A"},{"$error":"#N/A"},null,null,""]
[null,null,null,null,null,null,{"$error":"#N/A"},{"$error":"#N/A"},null,null,""]
[null,null,null,null,null,null,{"$error":"#N/A"},{"$error":"#N/A"},null,null,""]
[null,null,null,null,null,null,{"$error":"#N/A"},{"$error":"#N/A"},null,null,""]
[null,null,null,null,null,null,{"$error":"#N/A"},{"$error":"#N/A"},null,null,""]
[null,null,null,null,null,null,{"$error":"#N/A"},{"$error":"#N/A"},null,null,""]
[null,null,null,null,null,null,{"$error":"#N/A"},{"$error":"#N/A"},null,null,""]
[null,null,null,null,null,null,{"$error":"#N/A"},{"$error":"#N/A"},null,null,""]
[null,null,null,null,null,null,{"$error":"#N/A"},{"$error":"#N/A"},null,null,""]
[null,null,null,null,null,null,{"$error":"#N/A"},{"$error":"#N/A"},null,null,""]
[null,null,null,null,null,null,{"$error":"#N/A"},{"$error":"#N/A"},null,null,""]
[null,null,null,null,null,null,{"$error":"#N/A"},{"$error":"#N/A"},null,null,""]
[null,null,null,null,null,null,{"$error":"#N/A"},{"$error":"#N/A"},null,null,""]
[null,null,null,null,null,null,{"$error":"#N/A"},{"$error":"#N/A"},null,null,""]
[null,null,null,null,null,null,{"$error":"#N/A"},{"$error":"#N/A"},null,null,""]
[null,null,null,null,null,null,{"$error":"#N/A"},{"$error":"#N/A"},null,null,""]
[null,null,null,null,null,null,{"$f":"IF(COUNT(C1416)=1,C1416,#N/A)","v":{"$error":"#N/A"}},{"$f":"IF(COUNT(D1416:E1416)=2,ABS(D1416-E1416),#N/A)","v":{"$error":"#N/A"}},null,null,""]
[null,null,null,null,null,null,{"$error":"#N/A"},{"$error":"#N/A"},null,null,{"$f":"IFERROR(ABS((H1417-J1417)/J1417),\"\")","v":""}]
[null,null,null,null,null,null,{"$error":"#N/A"},{"$error":"#N/A"},null,null,""]
[null,null,null,null,null,null,{"$error":"#N/A"},{"$error":"#N/A"},null,null,""]
[null,null,null,null,null,null,{"$error":"#N/A"},{"$error":"#N/A"},null,null,""]
[null,null,null,null,null,null,{"$error":"#N/A"},{"$error":"#N/A"},null,null,""]
[null,null,null,null,null,null,{"$error":"#N/A"},{"$error":"#N/A"},null,null,""]
[null,null,null,null,null,null,{"$error":"#N/A"},{"$error":"#N/A"},null,null,""]
[null,null,null,null,null,null,{"$error":"#N/A"},{"$error":"#N/A"},null,null,""]
[null,null,null,null,null,null,{"$error":"#N/A"},{"$error":"#N/A"},null,null,""]
[null,null,null,null,null,null,{"$error":"#N/A"},{"$error":"#N/A"},null,null,""]
[null,null,null,null,null,null,{"$error":"#N/A"},{"$error":"#N/A"},null,null,""]
[null,null,null,null,null,null,{"$error":"#N/A"},{"$error":"#N/A"},null,null,""]
[null,null,null,null,null,null,{"$error":"#N/A"},{"$error":"#N/A"},null,null,""]
[null,null,null,null,null,null,{"$error":"#N/A"},{"$error":"#N/A"},null,null,""]
[null,null,null,null,null,null,{"$error":"#N/A"},{"$error":"#N/A"},null,null,""]
[null,null,null,null,null,null,{"$error":"#N/A"},{"$error":"#N/A"},null,null,""]
[null,null,null,null,null,null,{"$error":"#N/A"},{"$error":"#N/A"},null,null,""]
[null,null,null,null,null,null,{"$error":"#N/A"},{"$error":"#N/A"},null,null,""]
[null,null,null,null,null,null,{"$error":"#N/A"},{"$error":"#N/A"},null,null,""]
[null,null,null,null,null,null,{"$error":"#N/A"},{"$error":"#N/A"},null,null,""]
[null,null,null,null,null,null,{"$error":"#N/A"},{"$error":"#N/A"},null,null,""]
[null,null,null,null,null,null,{"$error":"#N/A"},{"$error":"#N/A"},null,null,""]
[null,null,null,null,null,null,{"$error":"#N/A"},{"$error":"#N/A"},null,null,""]
[null,null,null,null,null,null,{"$error":"#N/A"},{"$error":"#N/A"},null,null,""]
[null,null,null,null,null,null,{"$error":"#N/A"},{"$error":"#N/A"},null,null,""]
[null,null,null,null,null,null,{"$error":"#N/A"},{"$error":"#N/A"},null,null,""]
[null,null,null,null,null,null,{"$error":"#N/A"},{"$error":"#N/A"},null,null,""]
[null,null,null,null,null,null,{"$error":"#N/A"},{"$error":"#N/A"},null,null,""]
[null,null,null,null,null,null,{"$error":"#N/A"},{"$error":"#N/A"},null,null,""]
[null,null,null,null,null,null,{"$error":"#N/A"},{"$error":"#N/A"},null,null,""]
[null,null,null,null,null,null,{"$error":"#N/A"},{"$error":"#N/A"},null,null,""]
[null,null,null,null,null,null,{"$error":"#N/A"},{"$error":"#N/A"},null,null,""]
[null,null,null,null,null,null,{"$error":"#N/A"},{"$error":"#N/A"},null,null,""]
[null,null,null,null,null,null,{"$error":"#N/A"},{"$error":"#N/A"},null,null,""]
[null,null,null,null,null,null,{"$error":"#N/A"},{"$error":"#N/A"},null,null,""]
[null,null,null,null,null,null,{"$error":"#N/A"},{"$error":"#N/A"},null,null,""]
[null,null,null,null,null,null,{"$error":"#N/A"},{"$error":"#N/A"},null,null,""]
[null,null,null,null,null,null,{"$error":"#N/A"},{"$error":"#N/A"},null,null,""]
[null,null,null,null,null,null,{"$error":"#N/A"},{"$error":"#N/A"},null,null,""]
[null,null,null,null,null,null,{"$error":"#N/A"},{"$error":"#N/A"},null,null,""]
[null,null,null,null,null,null,{"$error":"#N/A"},{"$error":"#N/A"},null,null,""]
[null,null,null,null,null,null,{"$error":"#N/A"},{"$error":"#N/A"},null,null,""]
[null,null,null,null,null,null,{"$error":"#N/A"},{"$error":"#N/A"},null,null,""]
[null,null,null,null,null,null,{"$error":"#N/A"},{"$error":"#N/A"},null,null,""]
[null,null,null,null,null,null,{"$error":"#N/A"},{"$error":"#N/A"},null,null,""]
[null,null,null,null,null,null,{"$error":"#N/A"},{"$error":"#N/A"},null,null,""]
[null,null,null,null,null,null,{"$error":"#N/A"},{"$error":"#N/A"},null,null,""]
[null,null,null,null,null,null,{"$error":"#N/A"},{"$error":"#N/A"},null,null,""]
[null,null,null,null,null,null,{"$error":"#N/A"},{"$error":"#N/A"},null,null,""]
[null,null,null,null,null,null,{"$error":"#N/A"},{"$error":"#N/A"},null,null,""]
[null,null,null,null,null,null,{"$error":"#N/A"},{"$error":"#N/A"},null,null,""]
[null,null,null,null,null,null,{"$error":"#N/A"},{"$error":"#N/A"},null,null,""]
[null,null,null,null,null,null,{"$error":"#N/A"},{"$error":"#N/A"},null,null,""]
[null,null,null,null,null,null,{"$error":"#N/A"},{"$error":"#N/A"},null,null,""]
[null,null,null,null,null,null,{"$error":"#N/A"},{"$error":"#N/A"},null,null,""]
[null,null,null,null,null,null,{"$error":"#N/A"},{"$error":"#N/A"},null,null,""]
[null,null,null,null,null,null,{"$error":"#N/A"},{"$error":"#N/A"},null,null,""]
[null,null,null,null,null,null,{"$error":"#N/A"},{"$error":"#N/A"},null,null,""]
[null,null,null,null,null,null,{"$error":"#N/A"},{"$error":"#N/A"},null,null,""]
[null,null,null,null,null,null,{"$error":"#N/A"},{"$error":"#N/A"},null,null,""]
[null,null,null,null,null,null,{"$error":"#N/A"},{"$error":"#N/A"},null,null,""]
[null,null,null,null,null,null,{"$error":"#N/A"},{"$error":"#N/A"},null,null,""]
[null,null,null,null,null,null,{"$error":"#N/A"},{"$error":"#N/A"},null,null,""]
[null,null,null,null,null,null,{"$f":"IF(COUNT(C1480)=1,C1480,#N/A)","v":{"$error":"#N/A"}},{"$f":"IF(COUNT(D1480:E1480)=2,ABS(D1480-E1480),#N/A)","v":{"$error":"#N/A"}},null,null,""]
[null,null,null,null,null,null,{"$error":"#N/A"},{"$error":"#N/A"},null,null,{"$f":"IFERROR(ABS((H1481-J1481)/J1481),\"\")","v":""}]
[null,null,null,null,null,null,{"$error":"#N/A"},{"$error":"#N/A"},null,null,""]
[null,null,null,null,null,null,{"$error":"#N/A"},{"$error":"#N/A"},null,null,""]
[null,null,null,null,null,null,{"$error":"#N/A"},{"$error":"#N/A"},null,null,""]
[null,null,null,null,null,null,{"$error":"#N/A"},{"$error":"#N/A"},null,null,""]
[null,null,null,null,null,null,{"$error":"#N/A"},{"$error":"#N/A"},null,null,""]
[null,null,null,null,null,null,{"$error":"#N/A"},{"$error":"#N/A"},null,null,""]
[null,null,null,null,null,null,{"$error":"#N/A"},{"$error":"#N/A"},null,null,""]
[null,null,null,null,null,null,{"$error":"#N/A"},{"$error":"#N/A"},null,null,""]
[null,null,null,null,null,null,{"$error":"#N/A"},{"$error":"#N/A"},null,null,""]
[null,null,null,null,null,null,{"$error":"#N/A"},{"$error":"#N/A"},null,null,""]
[null,null,null,null,null,null,{"$error":"#N/A"},{"$error":"#N/A"},null,null,""]
[null,null,null,null,null,null,{"$error":"#N/A"},{"$error":"#N/A"},null,null,""]
[null,null,null,null,null,null,{"$error":"#N/A"},{"$error":"#N/A"},null,null,""]
[null,null,null,null,null,null,{"$error":"#N/A"},{"$error":"#N/A"},null,null,""]
[null,null,null,null,null,null,{"$error":"#N/A"},{"$error":"#N/A"},null,null,""]
[null,null,null,null,null,null,{"$error":"#N/A"},{"$error":"#N/A"},null,null,""]
[null,null,null,null,null,null,{"$error":"#N/A"},{"$error":"#N/A"},null,null,""]
[null,null,null,null,null,null,{"$error":"#N/A"},{"$error":"#N/A"},null,null,""]
[null,null,null,null,null,null,{"$error":"#N/A"},{"$error":"#N/A"},null,null,""]
[null,null,null,null,null,null,{"$error":"#N/A"},{"$error":"#N/A"},null,null,""]
[null,null,null,null,null,null,{"$error":"#N/A"},{"$error":"#N/A"},null,null,""]
[null,null,null,null,null,null,{"$error":"#N/A"},{"$error":"#N/A"},null,null,""]
[null,null,null,null,null,null,{"$error":"#N/A"},{"$error":"#N/A"},null,null,""]
[null,null,null,null,null,null,{"$error":"#N/A"},{"$error":"#N/A"},null,null,""]
[null,null,null,null,null,null,{"$error":"#N/A"},{"$error":"#N/A"},null,null,""]
[null,null,null,null,null,null,{"$error":"#N/A"},{"$error":"#N/A"},null,null,""]
[null,null,null,null,null,null,{"$error":"#N/A"},{"$error":"#N/A"},null,null,""]
[null,null,null,null,null,null,{"$error":"#N/A"},{"$error":"#N/A"},null,null,""]
[null,null,null,null,null,null,{"$error":"#N/A"},{"$error":"#N/A"},null,null,""]
[null,null,null,null,null,null,{"$error":"#N/A"},{"$error":"#N/A"},null,null,""]
[null,null,null,null,null,null,{"$error":"#N/A"},{"$error":"#N/A"},null,null,""]
[null,null,null,null,null,null,{"$error":"#N/A"},{"$error":"#N/A"},null,null,""]
[null,null,null,null,null,null,{"$error":"#N/A"},{"$error":"#N/A"},null,null,""]
[null,null,null,null,null,null,{"$error":"#N/A"},{"$error":"#N/A"},null,null,""]
[null,null,null,null,null,null,{"$error":"#N/A"},{"$error":"#N/A"},null,null,""]
[null,null,null,null,null,null,{"$error":"#N/A"},{"$error":"#N/A"},null,null,""]
[null,null,null,null,null,null,{"$error":"#N/A"},{"$error":"#N/A"},null,null,""]
[null,null,null,null,null,null,{"$error":"#N/A"},{"$error":"#N/A"},null,null,""]
[null,null,null,null,null,null,{"$error":"#N/A"},{"$error":"#N/A"},null,null,""]
[null,null,null,null,null,null,{"$error":"#N/A"},{"$error":"#N/A"},null,null,""]
[null,null,null,null,null,null,{"$error":"#N/A"},{"$error":"#N/A"},null,null,""]
[null,null,null,null,null,null,{"$error":"#N/A"},{"$error":"#N/A"},null,null,""]
[null,null,null,null,null,null,{"$error":"#N/A"},{"$error":"#N/A"},null,null,""]
[null,null,null,null,null,null,{"$error":"#N/A"},{"$error":"#N/A"},null,null,""]
[null,null,null,null,null,null,{"$error":"#N/A"},{"$error":"#N/A"},null,null,""]
[null,null,null,null,null,null,{"$error":"#N/A"},{"$error":"#N/A"},null,null,""]
[null,null,null,null,null,null,{"$error":"#N/A"},{"$error":"#N/A"},null,null,""]
[null,null,null,null,null,null,{"$error":"#N/A"},{"$error":"#N/A"},null,null,""]
[null,null,null,null,null,null,{"$error":"#N/A"},{"$error":"#N/A"},null,null,""]
[null,null,null,null,null,null,{"$error":"#N/A"},{"$error":"#N/A"},null,null,""]
[null,null,null,null,null,null,{"$error":"#N/A"},{"$error":"#N/A"},null,null,""]
[null,null,null,null,null,null,{"$error":"#N/A"},{"$error":"#N/A"},null,null,""]
[null,null,null,null,null,null,{"$error":"#N/A"},{"$error":"#N/A"},null,null,""]
[null,null,null,null,null,null,{"$error":"#N/A"},{"$error":"#N/A"},null,null,""]
[null,null,null,null,null,null,{"$error":"#N/A"},{"$error":"#N/A"},null,null,""]
[null,null,null,null,null,null,{"$error":"#N/A"},{"$error":"#N/A"},null,null,""]
[null,null,null,null,null,null,{"$error":"#N/A"},{"$error":"#N/A"},null,null,""]
[null,null,null,null,null,null,{"$error":"#N/A"},{"$error":"#N/A"},null,null,""]
[null,null,null,null,null,null,{"$error":"#N/A"},{"$error":"#N/A"},null,null,""]
[null,null,null,null,null,null,{"$error":"#N/A"},{"$error":"#N/A"},null,null,""]
[null,null,null,null,null,null,{"$error":"#N/A"},{"$error":"#N/A"},null,null,""]
[null,null,null,null,null,null,{"$error":"#N/A"},{"$error":"#N/A"},null,null,""]
[null,null,null,null,null,null,{"$f":"IF(COUNT(C1544)=1,C1544,#N/A)","v":{"$error":"#N/A"}},{"$f":"IF(COUNT(D1544:E1544)=2,ABS(D1544-E1544),#N/A)","v":{"$error":"#N/A"}},null,null,""]
[null,null,null,null,null,null,{"$error":"#N/A"},{"$error":"#N/A"},null,null,{"$f":"IFERROR(ABS((H1545-J1545)/J1545),\"\")","v":""}]
[null,null,null,null,null,null,{"$error":"#N/A"},{"$error":"#N/A"},null,null,""]
[null,null,null,null,null,null,{"$error":"#N/A"},{"$error":"#N/A"},null,null,""]
[null,null,null,null,null,null,{"$error":"#N/A"},{"$error":"#N/A"},null,null,""]
[null,null,null,null,null,null,{"$error":"#N/A"},{"$error":"#N/A"},null,null,""]
[null,null,null,null,null,null,{"$error":"#N/A"},{"$error":"#N/A"},null,null,""]
[null,null,null,null,null,null,{"$error":"#N/A"},{"$error":"#N/A"},null,null,""]
[null,null,null,null,null,null,{"$error":"#N/A"},{"$error":"#N/A"},null,null,""]
[null,null,null,null,null,null,{"$error":"#N/A"},{"$error":"#N/A"},null,null,""]
[null,null,null,null,null,null,{"$error":"#N/A"},{"$error":"#N/A"},null,null,""]
[null,null,null,null,null,null,{"$error":"#N/A"},{"$error":"#N/A"},null,null,""]
[null,null,null,null,null,null,{"$error":"#N/A"},{"$error":"#N/A"},null,null,""]
[null,null,null,null,null,null,{"$error":"#N/A"},{"$error":"#N/A"},null,null,""]
[null,null,null,null,null,null,{"$error":"#N/A"},{"$error":"#N/A"},null,null,""]
[null,null,null,null,null,null,{"$error":"#N/A"},{"$error":"#N/A"},null,null,""]
[null,null,null,null,null,null,{"$error":"#N/A"},{"$error":"#N/A"},null,null,""]
[null,null,null,null,null,null,{"$error":"#N/A"},{"$error":"#N/A"},null,null,""]
[null,null,null,null,null,null,{"$error":"#N/A"},{"$error":"#N/A"},null,null,""]
[null,null,null,null,null,null,{"$error":"#N/A"},{"$error":"#N/A"},null,null,""]
[null,null,null,null,null,null,{"$error":"#N/A"},{"$error":"#N/A"},null,null,""]
[null,null,null,null,null,null,{"$error":"#N/A"},{"$error":"#N/A"},null,null,""]
[null,null,null,null,null,null,{"$error":"#N/A"},{"$error":"#N/A"},null,null,""]
[null,null,null,null,null,null,{"$error":"#N/A"},{"$error":"#N/A"},null,null,""]
[null,null,null,null,null,null,{"$error":"#N/A"},{"$error":"#N/A"},null,null,""]
[null,null,null,null,null,null,{"$error":"#N/A"},{"$error":"#N/A"},null,null,""]
[null,null,null,null,null,null,{"$error":"#N/A"},{"$error":"#N/A"},null,null,""]
[null,null,null,null,null,null,{"$error":"#N/A"},{"$error":"#N/A"},null,null,""]
[null,null,null,null,null,null,{"$error":"#N/A"},{"$error":"#N/A"},null,null,""]
[null,null,null,null,null,null,{"$error":"#N/A"},{"$error":"#N/A"},null,null,""]
[null,null,null,null,null,null,{"$error":"#N/A"},{"$error":"#N/A"},null,null,""]
[null,null,null,null,null,null,{"$error":"#N/A"},{"$error":"#N/A"},null,null,""]
[null,null,null,null,null,null,{"$error":"#N/A"},{"$error":"#N/A"},null,null,""]
[null,null,null,null,null,null,{"$error":"#N/A"},{"$error":"#N/A"},null,null,""]
[null,null,null,null,null,null,{"$error":"#N/A"},{"$error":"#N/A"},null,null,""]
[null,null,null,null,null,null,{"$error":"#N/A"},{"$error":"#N/A"},null,null,""]
[null,null,null,null,null,null,{"$error":"#N/A"},{"$error":"#N/A"},null,null,""]
[null,null,null,null,null,null,{"$error":"#N/A"},{"$error":"#N/A"},null,null,""]
[null,null,null,null,null,null,{"$error":"#N/A"},{"$error":"#N/A"},null,null,""]
[null,null,null,null,null,null,{"$error":"#N/A"},{"$error":"#N/A"},null,null,""]
[null,null,null,null,null,null,{"$error":"#N/A"},{"$error":"#N/A"},null,null,""]
[null,null,null,null,null,null,{"$error":"#N/A"},{"$error":"#N/A"},null,null,""]
[null,null,null,null,null,null,{"$error":"#N/A"},{"$error":"#N/A"},null,null,""]
[null,null,null,null,null,null,{"$error":"#N/A"},{"$error":"#N/A"},null,null,""]
[null,null,null,null,null,null,{"$error":"#N/A"},{"$error":"#N/A"},null,null,""]
[null,null,null,null,null,null,{"$error":"#N/A"},{"$error":"#N/A"},null,null,""]
[null,null,null,null,null,null,{"$error":"#N/A"},{"$error":"#N/A"},null,null,""]
[null,null,null,null,null,null,{"$error":"#N/A"},{"$error":"#N/A"},null,null,""]
[null,null,null,null,null,null,{"$error":"#N/A"},{"$error":"#N/A"},null,null,""]
[null,null,null,null,null,null,{"$error":"#N/A"},{"$error":"#N/A"},null,null,""]
[null,null,null,null,null,null,{"$error":"#N/A"},{"$error":"#N/A"},null,null,""]
[null,null,null,null,null,null,{"$error":"#N/A"},{"$error":"#N/A"},null,null,""]
[null,null,null,null,null,null,{"$error":"#N/A"},{"$error":"#N/A"},null,null,""]
[null,null,null,null,null,null,{"$error":"#N/A"},{"$error":"#N/A"},null,null,""]
[null,null,null,null,null,null,{"$error":"#N/A"},{"$error":"#N/A"},null,null,""]
[null,null,null,null,null,null,{"$error":"#N/A"},{"$error":"#N/A"},null,null,""]
[null,null,null,null,null,null,{"$error":"#N/A"},{"$error":"#N/A"},null,null,""]
[null,null,null,null,null,null,{"$error":"#N/A"},{"$error":"#N/A"},null,null,""]
[null,null,null,null,null,null,{"$error":"#N/A"},{"$error":"#N/A"},null,null,""]
[null,null,null,null,null,null,{"$error":"#N/A"},{"$error":"#N/A"},null,null,""]
[null,null,null,null,null,null,{"$error":"#N/A"},{"$error":"#N/A"},null,null,""]
[null,null,null,null,null,null,{"$error":"#N/A"},{"$error":"#N/A"},null,null,""]
[null,null,null,null,null,null,{"$error":"#N/A"},{"$error":"#N/A"},null,null,""]
[null,null,null,null,null,null,{"$error":"#N/A"},{"$error":"#N/A"},null,null,""]
[null,null,null,null,null,null,{"$f":"IF(COUNT(C1608)=1,C1608,#N/A)","v":{"$error":"#N/A"}},{"$f":"IF(COUNT(D1608:E1608)=2,ABS(D1608-E1608),#N/A)","v":{"$error":"#N/A"}},null,null,""]
[null,null,null,null,null,null,{"$error":"#N/A"},{"$error":"#N/A"},null,null,{"$f":"IFERROR(ABS((H1609-J1609)/J1609),\"\")","v":""}]
[null,null,null,null,null,null,{"$error":"#N/A"},{"$error":"#N/A"},null,null,""]
[null,null,null,null,null,null,{"$error":"#N/A"},{"$error":"#N/A"},null,null,""]
[null,null,null,null,null,null,{"$error":"#N/A"},{"$error":"#N/A"},null,null,""]
[null,null,null,null,null,null,{"$error":"#N/A"},{"$error":"#N/A"},null,null,""]
[null,null,null,null,null,null,{"$error":"#N/A"},{"$error":"#N/A"},null,null,""]
[null,null,null,null,null,null,{"$error":"#N/A"},{"$error":"#N/A"},null,null,""]
[null,null,null,null,null,null,{"$error":"#N/A"},{"$error":"#N/A"},null,null,""]
[null,null,null,null,null,null,{"$error":"#N/A"},{"$error":"#N/A"},null,null,""]
[null,null,null,null,null,null,{"$error":"#N/A"},{"$error":"#N/A"},null,null,""]
[null,null,null,null,null,null,{"$error":"#N/A"},{"$error":"#N/A"},null,null,""]
[null,null,null,null,null,null,{"$error":"#N/A"},{"$error":"#N/A"},null,null,""]
[null,null,null,null,null,null,{"$error":"#N/A"},{"$error":"#N/A"},null,null,""]
[null,null,null,null,null,null,{"$error":"#N/A"},{"$error":"#N/A"},null,null,""]
[null,null,null,null,null,null,{"$error":"#N/A"},{"$error":"#N/A"},null,null,""]
[null,null,null,null,null,null,{"$error":"#N/A"},{"$error":"#N/A"},null,null,""]
[null,null,null,null,null,null,{"$error":"#N/A"},{"$error":"#N/A"},null,null,""]
[null,null,null,null,null,null,{"$error":"#N/A"},{"$error":"#N/A"},null,null,""]
[null,null,null,null,null,null,{"$error":"#N/A"},{"$error":"#N/A"},null,null,""]
[null,null,null,null,null,null,{"$error":"#N/A"},{"$error":"#N/A"},null,null,""]
[null,null,null,null,null,null,{"$error":"#N/A"},{"$error":"#N/A"},null,null,""]
[null,null,null,null,null,null,{"$error":"#N/A"},{"$error":"#N/A"},null,null,""]
[null,null,null,null,null,null,{"$error":"#N/A"},{"$error":"#N/A"},null,null,""]
[null,null,null,null,null,null,{"$error":"#N/A"},{"$error":"#N/A"},null,null,""]
[null,null,null,null,null,null,{"$error":"#N/A"},{"$error":"#N/A"},null,null,""]
[null,null,null,null,null,null,{"$error":"#N/A"},{"$error":"#N/A"},null,null,""]
[null,null,null,null,null,null,{"$error":"#N/A"},{"$error":"#N/A"},null,null,""]
[null,null,null,null,null,null,{"$error":"#N/A"},{"$error":"#N/A"},null,null,""]
[null,null,null,null,null,null,{"$error":"#N/A"},{"$error":"#N/A"},null,null,""]
[null,null,null,null,null,null,{"$error":"#N/A"},{"$error":"#N/A"},null,null,""]
[null,null,null,null,null,null,{"$error":"#N/A"},{"$error":"#N/A"},null,null,""]
[null,null,null,null,null,null,{"$error":"#N/A"},{"$error":"#N/A"},null,null,""]
[null,null,null,null,null,null,{"$error":"#N/A"},{"$error":"#N/A"},null,null,""]
[null,null,null,null,null,null,{"$error":"#N/A"},{"$error":"#N/A"},null,null,""]
[null,null,null,null,null,null,{"$error":"#N/A"},{"$error":"#N/A"},null,null,""]
[null,null,null,null,null,null,{"$error":"#N/A"},{"$error":"#N/A"},null,null,""]
[null,null,null,null,null,null,{"$error":"#N/A"},{"$error":"#N/A"},null,null,""]
[null,null,null,null,null,null,{"$error":"#N/A"},{"$error":"#N/A"},null,null,""]
[null,null,null,null,null,null,{"$error":"#N/A"},{"$error":"#N/A"},null,null,""]
[null,null,null,null,null,null,{"$error":"#N/A"},{"$error":"#N/A"},null,null,""]
[null,null,null,null,null,null,{"$error":"#N/A"},{"$error":"#N/A"},null,null,""]
[null,null,null,null,null,null,{"$error":"#N/A"},{"$error":"#N/A"},null,null,""]
[null,null,null,null,null,null,{"$error":"#N/A"},{"$error":"#N/A"},null,null,""]
[null,null,null,null,null,null,{"$error":"#N/A"},{"$error":"#N/A"},null,null,""]
[null,null,null,null,null,null,{"$error":"#N/A"},{"$error":"#N/A"},null,null,""]
[null,null,null,null,null,null,{"$error":"#N/A"},{"$error":"#N/A"},null,null,""]
[null,null,null,null,null,null,{"$error":"#N/A"},{"$error":"#N/A"},null,null,""]
[null,null,null,null,null,null,{"$error":"#N/A"},{"$error":"#N/A"},null,null,""]
[null,null,null,null,null,null,{"$error":"#N/A"},{"$error":"#N/A"},null,null,""]
[null,null,null,null,null,null,{"$error":"#N/A"},{"$error":"#N/A"},null,null,""]
[null,null,null,null,null,null,{"$error":"#N/A"},{"$error":"#N/A"},null,null,""]
[null,null,null,null,null,null,{"$error":"#N/A"},{"$error":"#N/A"},null,null,""]
[null,null,null,null,null,null,{"$error":"#N/A"},{"$error":"#N/A"},null,null,""]
[null,null,null,null,null,null,{"$error":"#N/A"},{"$error":"#N/A"},null,null,""]
[null,null,null,null,null,null,{"$error":"#N/A"},{"$error":"#N/A"},null,null,""]
[null,null,null,null,null,null,{"$error":"#N/A"},{"$error":"#N/A"},null,null,""]
[null,null,null,null,null,null,{"$error":"#N/A"},{"$error":"#N/A"},null,null,""]
[null,null,null,null,null,null,{"$error":"#N/A"},{"$error":"#N/A"},null,null,""]
[null,null,null,null,null,null,{"$error":"#N/A"},{"$error":"#N/A"},null,null,""]
[null,null,null,null,null,null,{"$error":"#N/A"},{"$error":"#N/A"},null,null,""]
[null,null,null,null,null,null,{"$error":"#N/A"},{"$error":"#N/A"},null,null,""]
[null,null,null,null,null,null,{"$error":"#N/A"},{"$error":"#N/A"},null,null,""]
[null,null,null,null,null,null,{"$error":"#N/A"},{"$error":"#N/A"},null,null,""]
[null,null,null,null,null,null,{"$f":"IF(COUNT(C1672)=1,C1672,#N/A)","v":{"$error":"#N/A"}},{"$f":"IF(COUNT(D1672:E1672)=2,ABS(D1672-E1672),#N/A)","v":{"$error":"#N/A"}},null,null,""]
[null,null,null,null,null,null,{"$error":"#N/A"},{"$error":"#N/A"},null,null,{"$f":"IFERROR(ABS((H1673-J1673)/J1673),\"\")","v":""}]
[null,null,null,null,null,null,{"$error":"#N/A"},{"$error":"#N/A"},null,null,""]
[null,null,null,null,null,null,{"$error":"#N/A"},{"$error":"#N/A"},null,null,""]
[null,null,null,null,null,null,{"$error":"#N/A"},{"$error":"#N/A"},null,null,""]
[null,null,null,null,null,null,{"$error":"#N/A"},{"$error":"#N/A"},null,null,""]
[null,null,null,null,null,null,{"$error":"#N/A"},{"$error":"#N/A"},null,null,""]
[null,null,null,null,null,null,{"$error":"#N/A"},{"$error":"#N/A"},null,null,""]
[null,null,null,null,null,null,{"$error":"#N/A"},{"$error":"#N/A"},null,null,""]
[null,null,null,null,null,null,{"$error":"#N/A"},{"$error":"#N/A"},null,null,""]
[null,null,null,null,null,null,{"$error":"#N/A"},{"$error":"#N/A"},null,null,""]
[null,null,null,null,null,null,{"$error":"#N/A"},{"$error":"#N/A"},null,null,""]
[null,null,null,null,null,null,{"$error":"#N/A"},{"$error":"#N/A"},null,null,""]
[null,null,null,null,null,null,{"$error":"#N/A"},{"$error":"#N/A"},null,null,""]
[null,null,null,null,null,null,{"$error":"#N/A"},{"$error":"#N/A"},null,null,""]
[null,null,null,null,null,null,{"$error":"#N/A"},{"$error":"#N/A"},null,null,""]
[null,null,null,null,null,null,{"$error":"#N/A"},{"$error":"#N/A"},null,null,""]
[null,null,null,null,null,null,{"$error":"#N/A"},{"$error":"#N/A"},null,null,""]
[null,null,null,null,null,null,{"$error":"#N/A"},{"$error":"#N/A"},null,null,""]
[null,null,null,null,null,null,{"$error":"#N/A"},{"$error":"#N/A"},null,null,""]
[null,null,null,null,null,null,{"$error":"#N/A"},{"$error":"#N/A"},null,null,""]
[null,null,null,null,null,null,{"$error":"#N/A"},{"$error":"#N/A"},null,null,""]
[null,null,null,null,null,null,{"$error":"#N/A"},{"$error":"#N/A"},null,null,""]
[null,null,null,null,null,null,{"$error":"#N/A"},{"$error":"#N/A"},null,null,""]
[null,null,null,null,null,null,{"$error":"#N/A"},{"$error":"#N/A"},null,null,""]
[null,null,null,null,null,null,{"$error":"#N/A"},{"$error":"#N/A"},null,null,""]
[null,null,null,null,null,null,{"$error":"#N/A"},{"$error":"#N/A"},null,null,""]
[null,null,null,null,null,null,{"$error":"#N/A"},{"$error":"#N/A"},null,null,""]
[null,null,null,null,null,null,{"$error":"#N/A"},{"$error":"#N/A"},null,null,""]
[null,null,null,null,null,null,{"$error":"#N/A"},{"$error":"#N/A"},null,null,""]
[null,null,null,null,null,null,{"$error":"#N/A"},{"$error":"#N/A"},null,null,""]
[null,null,null,null,null,null,{"$error":"#N/A"},{"$error":"#N/A"},null,null,""]
[null,null,null,null,null,null,{"$error":"#N/A"},{"$error":"#N/A"},null,null,""]
[null,null,null,null,null,null,{"$error":"#N/A"},{"$error":"#N/A"},null,null,""]
[null,null,null,null,null,null,{"$error":"#N/A"},{"$error":"#N/A"},null,null,""]
[null,null,null,null,null,null,{"$error":"#N/A"},{"$error":"#N/A"},null,null,""]
[null,null,null,null,null,null,{"$error":"#N/A"},{"$error":"#N/A"},null,null,""]
[null,null,null,null,null,null,{"$error":"#N/A"},{"$error":"#N/A"},null,null,""]
[null,null,null,null,null,null,{"$error":"#N/A"},{"$error":"#N/A"},null,null,""]
[null,null,null,null,null,null,{"$error":"#N/A"},{"$error":"#N/A"},null,null,""]
[null,null,null,null,null,null,{"$error":"#N/A"},{"$error":"#N/A"},null,null,""]
[null,null,null,null,null,null,{"$error":"#N/A"},{"$error":"#N/A"},null,null,""]
[null,null,null,null,null,null,{"$error":"#N/A"},{"$error":"#N/A"},null,null,""]
[null,null,null,null,null,null,{"$error":"#N/A"},{"$error":"#N/A"},null,null,""]
[null,null,null,null,null,null,{"$error":"#N/A"},{"$error":"#N/A"},null,null,""]
[null,null,null,null,null,null,{"$error":"#N/A"},{"$error":"#N/A"},null,null,""]
[null,null,null,null,null,null,{"$error":"#N/A"},{"$error":"#N/A"},null,null,""]
[null,null,null,null,null,null,{"$error":"#N/A"},{"$error":"#N/A"},null,null,""]
[null,null,null,null,null,null,{"$error":"#N/A"},{"$error":"#N/A"},null,null,""]
[null,null,null,null,null,null,{"$error":"#N/A"},{"$error":"#N/A"},null,null,""]
[null,null,null,null,null,null,{"$error":"#N/A"},{"$error":"#N/A"},null,null,""]
[null,null,null,null,null,null,{"$error":"#N/A"},{"$error":"#N/A"},null,null,""]
[null,null,null,null,null,null,{"$error":"#N/A"},{"$error":"#N/A"},null,null,""]
[null,null,null,null,null,null,{"$error":"#N/A"},{"$error":"#N/A"},null,null,""]
[null,null,null,null,null,null,{"$error":"#N/A"},{"$error":"#N/A"},null,null,""]
[null,null,null,null,null,null,{"$error":"#N/A"},{"$error":"#N/A"},null,null,""]
[null,null,null,null,null,null,{"$error":"#N/A"},{"$error":"#N/A"},null,null,""]
[null,null,null,null,null,null,{"$error":"#N/A"},{"$error":"#N/A"},null,null,""]
[null,null,null,null,null,null,{"$error":"#N/A"},{"$error":"#N/A"},null,null,""]
[null,null,null,null,null,null,{"$error":"#N/A"},{"$error":"#N/A"},null,null,""]
[null,null,null,null,null,null,{"$error":"#N/A"},{"$error":"#N/A"},null,null,""]
[null,null,null,null,null,null,{"$error":"#N/A"},{"$error":"#N/A"},null,null,""]
[null,null,null,null,null,null,{"$error":"#N/A"},{"$error":"#N/A"},null,null,""]
[null,null,null,null,null,null,{"$error":"#N/A"},{"$error":"#N/A"},null,null,""]
[null,null,null,null,null,null,{"$f":"IF(COUNT(C1736)=1,C1736,#N/A)","v":{"$error":"#N/A"}},{"$f":"IF(COUNT(D1736:E1736)=2,ABS(D1736-E1736),#N/A)","v":{"$error":"#N/A"}},null,null,""]
[null,null,null,null,null,null,{"$error":"#N/A"},{"$error":"#N/A"},null,null,{"$f":"IFERROR(ABS((H1737-J1737)/J1737),\"\")","v":""}]
[null,null,null,null,null,null,{"$error":"#N/A"},{"$error":"#N/A"},null,null,""]
[null,null,null,null,null,null,{"$error":"#N/A"},{"$error":"#N/A"},null,null,""]
[null,null,null,null,null,null,{"$error":"#N/A"},{"$error":"#N/A"},null,null,""]
[null,null,null,null,null,null,{"$error":"#N/A"},{"$error":"#N/A"},null,null,""]
[null,null,null,null,null,null,{"$error":"#N/A"},{"$error":"#N/A"},null,null,""]
[null,null,null,null,null,null,{"$error":"#N/A"},{"$error":"#N/A"},null,null,""]
[null,null,null,null,null,null,{"$error":"#N/A"},{"$error":"#N/A"},null,null,""]
[null,null,null,null,null,null,{"$error":"#N/A"},{"$error":"#N/A"},null,null,""]
[null,null,null,null,null,null,{"$error":"#N/A"},{"$error":"#N/A"},null,null,""]
[null,null,null,null,null,null,{"$error":"#N/A"},{"$error":"#N/A"},null,null,""]
[null,null,null,null,null,null,{"$error":"#N/A"},{"$error":"#N/A"},null,null,""]
[null,null,null,null,null,null,{"$error":"#N/A"},{"$error":"#N/A"},null,null,""]
[null,null,null,null,null,null,{"$error":"#N/A"},{"$error":"#N/A"},null,null,""]
[null,null,null,null,null,null,{"$error":"#N/A"},{"$error":"#N/A"},null,null,""]
[null,null,null,null,null,null,{"$error":"#N/A"},{"$error":"#N/A"},null,null,""]
[null,null,null,null,null,null,{"$error":"#N/A"},{"$error":"#N/A"},null,null,""]
[null,null,null,null,null,null,{"$error":"#N/A"},{"$error":"#N/A"},null,null,""]
[null,null,null,null,null,null,{"$error":"#N/A"},{"$error":"#N/A"},null,null,""]
[null,null,null,null,null,null,{"$error":"#N/A"},{"$error":"#N/A"},null,null,""]
[null,null,null,null,null,null,{"$error":"#N/A"},{"$error":"#N/A"},null,null,""]
[null,null,null,null,null,null,{"$error":"#N/A"},{"$error":"#N/A"},null,null,""]
[null,null,null,null,null,null,{"$error":"#N/A"},{"$error":"#N/A"},null,null,""]
[null,null,null,null,null,null,{"$error":"#N/A"},{"$error":"#N/A"},null,null,""]
[null,null,null,null,null,null,{"$error":"#N/A"},{"$error":"#N/A"},null,null,""]
[null,null,null,null,null,null,{"$error":"#N/A"},{"$error":"#N/A"},null,null,""]
[null,null,null,null,null,null,{"$error":"#N/A"},{"$error":"#N/A"},null,null,""]
[null,null,null,null,null,null,{"$error":"#N/A"},{"$error":"#N/A"},null,null,""]
[null,null,null,null,null,null,{"$error":"#N/A"},{"$error":"#N/A"},null,null,""]
[null,null,null,null,null,null,{"$error":"#N/A"},{"$error":"#N/A"},null,null,""]
[null,null,null,null,null,null,{"$error":"#N/A"},{"$error":"#N/A"},null,null,""]
[null,null,null,null,null,null,{"$error":"#N/A"},{"$error":"#N/A"},null,null,""]
[null,null,null,null,null,null,{"$error":"#N/A"},{"$error":"#N/A"},null,null,""]
[null,null,null,null,null,null,{"$error":"#N/A"},{"$error":"#N/A"},null,null,""]
[null,null,null,null,null,null,{"$error":"#N/A"},{"$error":"#N/A"},null,null,""]
[null,null,null,null,null,null,{"$error":"#N/A"},{"$error":"#N/A"},null,null,""]
[null,null,null,null,null,null,{"$error":"#N/A"},{"$error":"#N/A"},null,null,""]
[null,null,null,null,null,null,{"$error":"#N/A"},{"$error":"#N/A"},null,null,""]
[null,null,null,null,null,null,{"$error":"#N/A"},{"$error":"#N/A"},null,null,""]
[null,null,null,null,null,null,{"$error":"#N/A"},{"$error":"#N/A"},null,null,""]
[null,null,null,null,null,null,{"$error":"#N/A"},{"$error":"#N/A"},null,null,""]
[null,null,null,null,null,null,{"$error":"#N/A"},{"$error":"#N/A"},null,null,""]
[null,null,null,null,null,null,{"$error":"#N/A"},{"$error":"#N/A"},null,null,""]
[null,null,null,null,null,null,{"$error":"#N/A"},{"$error":"#N/A"},null,null,""]
[null,null,null,null,null,null,{"$error":"#N/A"},{"$error":"#N/A"},null,null,""]
[null,null,null,null,null,null,{"$error":"#N/A"},{"$error":"#N/A"},null,null,""]
[null,null,null,null,null,null,{"$error":"#N/A"},{"$error":"#N/A"},null,null,""]
[null,null,null,null,null,null,{"$error":"#N/A"},{"$error":"#N/A"},null,null,""]
[null,null,null,null,null,null,{"$error":"#N/A"},{"$error":"#N/A"},null,null,""]
[null,null,null,null,null,null,{"$error":"#N/A"},{"$error":"#N/A"},null,null,""]
[null,null,null,null,null,null,{"$error":"#N/A"},{"$error":"#N/A"},null,null,""]
[null,null,null,null,null,null,{"$error":"#N/A"},{"$error":"#N/A"},null,null,""]
[null,null,null,null,null,null,{"$error":"#N/A"},{"$error":"#N/A"},null,null,""]
[null,null,null,null,null,null,{"$error":"#N/A"},{"$error":"#N/A"},null,null,""]
[null,null,null,null,null,null,{"$error":"#N/A"},{"$error":"#N/A"},null,null,""]
[null,null,null,null,null,null,{"$error":"#N/A"},{"$error":"#N/A"},null,null,""]
[null,null,null,null,null,null,{"$error":"#N/A"},{"$error":"#N/A"},null,null,""]
[null,null,null,null,null,null,{"$error":"#N/A"},{"$error":"#N/A"},null,null,""]
[null,null,null,null,null,null,{"$error":"#N/A"},{"$error":"#N/A"},null,null,""]
[null,null,null,null,null,null,{"$error":"#N/A"},{"$error":"#N/A"},null,null,""]
[null,null,null,null,null,null,{"$error":"#N/A"},{"$error":"#N/A"},null,null,""]
[null,null,null,null,null,null,{"$error":"#N/A"},{"$error":"#N/A"},null,null,""]
[null,null,null,null,null,null,{"$error":"#N/A"},{"$error":"#N/A"},null,null,""]
[null,null,null,null,null,null,{"$f":"IF(COUNT(C1800)=1,C1800,#N/A)","v":{"$error":"#N/A"}},{"$f":"IF(COUNT(D1800:E1800)=2,ABS(D1800-E1800),#N/A)","v":{"$error":"#N/A"}},null,null,""]
[null,null,null,null,null,null,{"$error":"#N/A"},{"$error":"#N/A"},null,null,{"$f":"IFERROR(ABS((H1801-J1801)/J1801),\"\")","v":""}]
[null,null,null,null,null,null,{"$error":"#N/A"},{"$error":"#N/A"},null,null,""]
[null,null,null,null,null,null,{"$error":"#N/A"},{"$error":"#N/A"},null,null,""]
[null,null,null,null,null,null,{"$error":"#N/A"},{"$error":"#N/A"},null,null,""]
[null,null,null,null,null,null,{"$error":"#N/A"},{"$error":"#N/A"},null,null,""]
[null,null,null,null,null,null,{"$error":"#N/A"},{"$error":"#N/A"},null,null,""]
[null,null,null,null,null,null,{"$error":"#N/A"},{"$error":"#N/A"},null,null,""]
[null,null,null,null,null,null,{"$error":"#N/A"},{"$error":"#N/A"},null,null,""]
[null,null,null,null,null,null,{"$error":"#N/A"},{"$error":"#N/A"},null,null,""]
[null,null,null,null,null,null,{"$error":"#N/A"},{"$error":"#N/A"},null,null,""]
[null,null,null,null,null,null,{"$error":"#N/A"},{"$error":"#N/A"},null,null,""]
[null,null,null,null,null,null,{"$error":"#N/A"},{"$error":"#N/A"},null,null,""]
[null,null,null,null,null,null,{"$error":"#N/A"},{"$error":"#N/A"},null,null,""]
[null,null,null,null,null,null,{"$error":"#N/A"},{"$error":"#N/A"},null,null,""]
[null,null,null,null,null,null,{"$error":"#N/A"},{"$error":"#N/A"},null,null,""]
[null,null,null,null,null,null,{"$error":"#N/A"},{"$error":"#N/A"},null,null,""]
[null,null,null,null,null,null,{"$error":"#N/A"},{"$error":"#N/A"},null,null,""]
[null,null,null,null,null,null,{"$error":"#N/A"},{"$error":"#N/A"},null,null,""]
[null,null,null,null,null,null,{"$error":"#N/A"},{"$error":"#N/A"},null,null,""]
[null,null,null,null,null,null,{"$error":"#N/A"},{"$error":"#N/A"},null,null,""]
[null,null,null,null,null,null,{"$error":"#N/A"},{"$error":"#N/A"},null,null,""]
[null,null,null,null,null,null,{"$error":"#N/A"},{"$error":"#N/A"},null,null,""]
[null,null,null,null,null,null,{"$error":"#N/A"},{"$error":"#N/A"},null,null,""]
[null,null,null,null,null,null,{"$error":"#N/A"},{"$error":"#N/A"},null,null,""]
[null,null,null,null,null,null,{"$error":"#N/A"},{"$error":"#N/A"},null,null,""]
[null,null,null,null,null,null,{"$error":"#N/A"},{"$error":"#N/A"},null,null,""]
[null,null,null,null,null,null,{"$error":"#N/A"},{"$error":"#N/A"},null,null,""]
[null,null,null,null,null,null,{"$error":"#N/A"},{"$error":"#N/A"},null,null,""]
[null,null,null,null,null,null,{"$error":"#N/A"},{"$error":"#N/A"},null,null,""]
[null,null,null,null,null,null,{"$error":"#N/A"},{"$error":"#N/A"},null,null,""]
[null,null,null,null,null,null,{"$error":"#N/A"},{"$error":"#N/A"},null,null,""]
[null,null,null,null,null,null,{"$error":"#N/A"},{"$error":"#N/A"},null,null,""]
[null,null,null,null,null,null,{"$error":"#N/A"},{"$error":"#N/A"},null,null,""]
[null,null,null,null,null,null,{"$error":"#N/A"},{"$error":"#N/A"},null,null,""]
[null,null,null,null,null,null,{"$error":"#N/A"},{"$error":"#N/A"},null,null,""]
[null,null,null,null,null,null,{"$error":"#N/A"},{"$error":"#N/A"},null,null,""]
[null,null,null,null,null,null,{"$error":"#N/A"},{"$error":"#N/A"},null,null,""]
[null,null,null,null,null,null,{"$error":"#N/A"},{"$error":"#N/A"},null,null,""]
[null,null,null,null,null,null,{"$error":"#N/A"},{"$error":"#N/A"},null,null,""]
[null,null,null,null,null,null,{"$error":"#N/A"},{"$error":"#N/A"},null,null,""]
[null,null,null,null,null,null,{"$error":"#N/A"},{"$error":"#N/A"},null,null,""]
[null,null,null,null,null,null,{"$error":"#N/A"},{"$error":"#N/A"},null,null,""]
[null,null,null,null,null,null,{"$error":"#N/A"},{"$error":"#N/A"},null,null,""]
[null,null,null,null,null,null,{"$error":"#N/A"},{"$error":"#N/A"},null,null,""]
[null,null,null,null,null,null,{"$error":"#N/A"},{"$error":"#N/A"},null,null,""]
[null,null,null,null,null,null,{"$error":"#N/A"},{"$error":"#N/A"},null,null,""]
[null,null,null,null,null,null,{"$error":"#N/A"},{"$error":"#N/A"},null,null,""]
[null,null,null,null,null,null,{"$error":"#N/A"},{"$error":"#N/A"},null,null,""]
[null,null,null,null,null,null,{"$error":"#N/A"},{"$error":"#N/A"},null,null,""]
[null,null,null,null,null,null,{"$error":"#N/A"},{"$error":"#N/A"},null,null,""]
[null,null,null,null,null,null,{"$error":"#N/A"},{"$error":"#N/A"},null,null,""]
[null,null,null,null,null,null,{"$error":"#N/A"},{"$error":"#N/A"},null,null,""]
[null,null,null,null,null,null,{"$error":"#N/A"},{"$error":"#N/A"},null,null,""]
[null,null,null,null,null,null,{"$error":"#N/A"},{"$error":"#N/A"},null,null,""]
[null,null,null,null,null,null,{"$error":"#N/A"},{"$error":"#N/A"},null,null,""]
[null,null,null,null,null,null,{"$error":"#N/A"},{"$error":"#N/A"},null,null,""]
[null,null,null,null,null,null,{"$error":"#N/A"},{"$error":"#N/A"},null,null,""]
[null,null,null,null,null,null,{"$error":"#N/A"},{"$error":"#N/A"},null,null,""]
[null,null,null,null,null,null,{"$error":"#N/A"},{"$error":"#N/A"},null,null,""]
[null,null,null,null,null,null,{"$error":"#N/A"},{"$error":"#N/A"},null,null,""]
[null,null,null,null,null,null,{"$error":"#N/A"},{"$error":"#N/A"},null,null,""]
[null,null,null,null,null,null,{"$error":"#N/A"},{"$error":"#N/A"},null,null,""]
[null,null,null,null,null,null,{"$error":"#N/A"},{"$error":"#N/A"},null,null,""]
[null,null,null,null,null,null,{"$f":"IF(COUNT(C1864)=1,C1864,#N/A)","v":{"$error":"#N/A"}},{"$f":"IF(COUNT(D1864:E1864)=2,ABS(D1864-E1864),#N/A)","v":{"$error":"#N/A"}},null,null,""]
[null,null,null,null,null,null,{"$error":"#N/A"},{"$error":"#N/A"},null,null,{"$f":"IFERROR(ABS((H1865-J1865)/J1865),\"\")","v":""}]
[null,null,null,null,null,null,{"$error":"#N/A"},{"$error":"#N/A"},null,null,""]
[null,null,null,null,null,null,{"$error":"#N/A"},{"$error":"#N/A"},null,null,""]
[null,null,null,null,null,null,{"$error":"#N/A"},{"$error":"#N/A"},null,null,""]
[null,null,null,null,null,null,{"$error":"#N/A"},{"$error":"#N/A"},null,null,""]
[null,null,null,null,null,null,{"$error":"#N/A"},{"$error":"#N/A"},null,null,""]
[null,null,null,null,null,null,{"$error":"#N/A"},{"$error":"#N/A"},null,null,""]
[null,null,null,null,null,null,{"$error":"#N/A"},{"$error":"#N/A"},null,null,""]
[null,null,null,null,null,null,{"$error":"#N/A"},{"$error":"#N/A"},null,null,""]
[null,null,null,null,null,null,{"$error":"#N/A"},{"$error":"#N/A"},null,null,""]
[null,null,null,null,null,null,{"$error":"#N/A"},{"$error":"#N/A"},null,null,""]
[null,null,null,null,null,null,{"$error":"#N/A"},{"$error":"#N/A"},null,null,""]
[null,null,null,null,null,null,{"$error":"#N/A"},{"$error":"#N/A"},null,null,""]
[null,null,null,null,null,null,{"$error":"#N/A"},{"$error":"#N/A"},null,null,""]
[null,null,null,null,null,null,{"$error":"#N/A"},{"$error":"#N/A"},null,null,""]
[null,null,null,null,null,null,{"$error":"#N/A"},{"$error":"#N/A"},null,null,""]
[null,null,null,null,null,null,{"$error":"#N/A"},{"$error":"#N/A"},null,null,""]
[null,null,null,null,null,null,{"$error":"#N/A"},{"$error":"#N/A"},null,null,""]
[null,null,null,null,null,null,{"$error":"#N/A"},{"$error":"#N/A"},null,null,""]
[null,null,null,null,null,null,{"$error":"#N/A"},{"$error":"#N/A"},null,null,""]
[null,null,null,null,null,null,{"$error":"#N/A"},{"$error":"#N/A"},null,null,""]
[null,null,null,null,null,null,{"$error":"#N/A"},{"$error":"#N/A"},null,null,""]
[null,null,null,null,null,null,{"$error":"#N/A"},{"$error":"#N/A"},null,null,""]
[null,null,null,null,null,null,{"$error":"#N/A"},{"$error":"#N/A"},null,null,""]
[null,null,null,null,null,null,{"$error":"#N/A"},{"$error":"#N/A"},null,null,""]
[null,null,null,null,null,null,{"$error":"#N/A"},{"$error":"#N/A"},null,null,""]
[null,null,null,null,null,null,{"$error":"#N/A"},{"$error":"#N/A"},null,null,""]
[null,null,null,null,null,null,{"$error":"#N/A"},{"$error":"#N/A"},null,null,""]
[null,null,null,null,null,null,{"$error":"#N/A"},{"$error":"#N/A"},null,null,""]
[null,null,null,null,null,null,{"$error":"#N/A"},{"$error":"#N/A"},null,null,""]
[null,null,null,null,null,null,{"$error":"#N/A"},{"$error":"#N/A"},null,null,""]
[null,null,null,null,null,null,{"$error":"#N/A"},{"$error":"#N/A"},null,null,""]
[null,null,null,null,null,null,{"$error":"#N/A"},{"$error":"#N/A"},null,null,""]
[null,null,null,null,null,null,{"$error":"#N/A"},{"$error":"#N/A"},null,null,""]
[null,null,null,null,null,null,{"$error":"#N/A"},{"$error":"#N/A"},null,null,""]
[null,null,null,null,null,null,{"$error":"#N/A"},{"$error":"#N/A"},null,null,""]
[null,null,null,null,null,null,{"$error":"#N/A"},{"$error":"#N/A"},null,null,""]
[null,null,null,null,null,null,{"$error":"#N/A"},{"$error":"#N/A"},null,null,""]
[null,null,null,null,null,null,{"$error":"#N/A"},{"$error":"#N/A"},null,null,""]
[null,null,null,null,null,null,{"$error":"#N/A"},{"$error":"#N/A"},null,null,""]
[null,null,null,null,null,null,{"$error":"#N/A"},{"$error":"#N/A"},null,null,""]
[null,null,null,null,null,null,{"$error":"#N/A"},{"$error":"#N/A"},null,null,""]
[null,null,null,null,null,null,{"$error":"#N/A"},{"$error":"#N/A"},null,null,""]
[null,null,null,null,null,null,{"$error":"#N/A"},{"$error":"#N/A"},null,null,""]
[null,null,null,null,null,null,{"$error":"#N/A"},{"$error":"#N/A"},null,null,""]
[null,null,null,null,null,null,{"$error":"#N/A"},{"$error":"#N/A"},null,null,""]
[null,null,null,null,null,null,{"$error":"#N/A"},{"$error":"#N/A"},null,null,""]
[null,null,null,null,null,null,{"$error":"#N/A"},{"$error":"#N/A"},null,null,""]
[null,null,null,null,null,null,{"$error":"#N/A"},{"$error":"#N/A"},null,null,""]
[null,null,null,null,null,null,{"$error":"#N/A"},{"$error":"#N/A"},null,null,""]
[null,null,null,null,null,null,{"$error":"#N/A"},{"$error":"#N/A"},null,null,""]
[null,null,null,null,null,null,{"$error":"#N/A"},{"$error":"#N/A"},null,null,""]
[null,null,null,null,null,null,{"$error":"#N/A"},{"$error":"#N/A"},null,null,""]
[null,null,null,null,null,null,{"$error":"#N/A"},{"$error":"#N/A"},null,null,""]
[null,null,null,null,null,null,{"$error":"#N/A"},{"$error":"#N/A"},null,null,""]
[null,null,null,null,null,null,{"$error":"#N/A"},{"$error":"#N/A"},null,null,""]
[null,null,null,null,null,null,{"$error":"#N/A"},{"$error":"#N/A"},null,null,""]
[null,null,null,null,null,null,{"$error":"#N/A"},{"$error":"#N/A"},null,null,""]
[null,null,null,null,null,null,{"$error":"#N/A"},{"$error":"#N/A"},null,null,""]
[null,null,null,null,null,null,{"$error":"#N/A"},{"$error":"#N/A"},null,null,""]
[null,null,null,null,null,null,{"$error":"#N/A"},{"$error":"#N/A"},null,null,""]
[null,null,null,null,null,null,{"$error":"#N/A"},{"$error":"#N/A"},null,null,""]
[null,null,null,null,null,null,{"$error":"#N/A"},{"$error":"#N/A"},null,null,""]
[null,null,null,null,null,null,{"$f":"IF(COUNT(C1928)=1,C1928,#N/A)","v":{"$error":"#N/A"}},{"$f":"IF(COUNT(D1928:E1928)=2,ABS(D1928-E1928),#N/A)","v":{"$error":"#N/A"}},null,null,""]
[null,null,null,null,null,null,{"$error":"#N/A"},{"$error":"#N/A"},null,null,{"$f":"IFERROR(ABS((H1929-J1929)/J1929),\"\")","v":""}]
[null,null,null,null,null,null,{"$error":"#N/A"},{"$error":"#N/A"},null,null,""]
[null,null,null,null,null,null,{"$error":"#N/A"},{"$error":"#N/A"},null,null,""]
[null,null,null,null,null,null,{"$error":"#N/A"},{"$error":"#N/A"},null,null,""]
[null,null,null,null,null,null,{"$error":"#N/A"},{"$error":"#N/A"},null,null,""]
[null,null,null,null,null,null,{"$error":"#N/A"},{"$error":"#N/A"},null,null,""]
[null,null,null,null,null,null,{"$error":"#N/A"},{"$error":"#N/A"},null,null,""]
[null,null,null,null,null,null,{"$error":"#N/A"},{"$error":"#N/A"},null,null,""]
[null,null,null,null,null,null,{"$error":"#N/A"},{"$error":"#N/A"},null,null,""]
[null,null,null,null,null,null,{"$error":"#N/A"},{"$error":"#N/A"},null,null,""]
[null,null,null,null,null,null,{"$error":"#N/A"},{"$error":"#N/A"},null,null,""]
[null,null,null,null,null,null,{"$error":"#N/A"},{"$error":"#N/A"},null,null,""]
[null,null,null,null,null,null,{"$error":"#N/A"},{"$error":"#N/A"},null,null,""]
[null,null,null,null,null,null,{"$error":"#N/A"},{"$error":"#N/A"},null,null,""]
[null,null,null,null,null,null,{"$error":"#N/A"},{"$error":"#N/A"},null,null,""]
[null,null,null,null,null,null,{"$error":"#N/A"},{"$error":"#N/A"},null,null,""]
[null,null,null,null,null,null,{"$error":"#N/A"},{"$error":"#N/A"},null,null,""]
[null,null,null,null,null,null,{"$error":"#N/A"},{"$error":"#N/A"},null,null,""]
[null,null,null,null,null,null,{"$error":"#N/A"},{"$error":"#N/A"},null,null,""]
[null,null,null,null,null,null,{"$error":"#N/A"},{"$error":"#N/A"},null,null,""]
[null,null,null,null,null,null,{"$error":"#N/A"},{"$error":"#N/A"},null,null,""]
[null,null,null,null,null,null,{"$error":"#N/A"},{"$error":"#N/A"},null,null,""]
[null,null,null,null,null,null,{"$error":"#N/A"},{"$error":"#N/A"},null,null,""]
[null,null,null,null,null,null,{"$error":"#N/A"},{"$error":"#N/A"},null,null,""]
[null,null,null,null,null,null,{"$error":"#N/A"},{"$error":"#N/A"},null,null,""]
[null,null,null,null,null,null,{"$error":"#N/A"},{"$error":"#N/A"},null,null,""]
[null,null,null,null,null,null,{"$error":"#N/A"},{"$error":"#N/A"},null,null,""]
[null,null,null,null,null,null,{"$error":"#N/A"},{"$error":"#N/A"},null,null,""]
[null,null,null,null,null,null,{"$error":"#N/A"},{"$error":"#N/A"},null,null,""]
[null,null,null,null,null,null,{"$error":"#N/A"},{"$error":"#N/A"},null,null,""]
[null,null,null,null,null,null,{"$error":"#N/A"},{"$error":"#N/A"},null,null,""]
[null,null,null,null,null,null,{"$error":"#N/A"},{"$error":"#N/A"},null,null,""]
[null,null,null,null,null,null,{"$error":"#N/A"},{"$error":"#N/A"},null,null,""]
[null,null,null,null,null,null,{"$error":"#N/A"},{"$error":"#N/A"},null,null,""]
[null,null,null,null,null,null,{"$error":"#N/A"},{"$error":"#N/A"},null,null,""]
[null,null,null,null,null,null,{"$error":"#N/A"},{"$error":"#N/A"},null,null,""]
[null,null,null,null,null,null,{"$error":"#N/A"},{"$error":"#N/A"},null,null,""]
[null,null,null,null,null,null,{"$error":"#N/A"},{"$error":"#N/A"},null,null,""]
[null,null,null,null,null,null,{"$error":"#N/A"},{"$error":"#N/A"},null,null,""]
[null,null,null,null,null,null,{"$error":"#N/A"},{"$error":"#N/A"},null,null,""]
[null,null,null,null,null,null,{"$error":"#N/A"},{"$error":"#N/A"},null,null,""]
[null,null,null,null,null,null,{"$error":"#N/A"},{"$error":"#N/A"},null,null,""]
[null,null,null,null,null,null,{"$error":"#N/A"},{"$error":"#N/A"},null,null,""]
[null,null,null,null,null,null,{"$error":"#N/A"},{"$error":"#N/A"},null,null,""]
[null,null,null,null,null,null,{"$error":"#N/A"},{"$error":"#N/A"},null,null,""]
[null,null,null,null,null,null,{"$error":"#N/A"},{"$error":"#N/A"},null,null,""]
[null,null,null,null,null,null,{"$error":"#N/A"},{"$error":"#N/A"},null,null,""]
[null,null,null,null,null,null,{"$error":"#N/A"},{"$error":"#N/A"},null,null,""]
[null,null,null,null,null,null,{"$error":"#N/A"},{"$error":"#N/A"},null,null,""]
[null,null,null,null,null,null,{"$error":"#N/A"},{"$error":"#N/A"},null,null,""]
[null,null,null,null,null,null,{"$error":"#N/A"},{"$error":"#N/A"},null,null,""]
[null,null,null,null,null,null,{"$error":"#N/A"},{"$error":"#N/A"},null,null,""]
[null,null,null,null,null,null,{"$error":"#N/A"},{"$error":"#N/A"},null,null,""]
[null,null,null,null,null,null,{"$error":"#N/A"},{"$error":"#N/A"},null,null,""]
[null,null,null,null,null,null,{"$error":"#N/A"},{"$error":"#N/A"},null,null,""]
[null,null,null,null,null,null,{"$error":"#N/A"},{"$error":"#N/A"},null,null,""]
[null,null,null,null,null,null,{"$error":"#N/A"},{"$error":"#N/A"},null,null,""]
[null,null,null,null,null,null,{"$error":"#N/A"},{"$error":"#N/A"},null,null,""]
[null,null,null,null,null,null,{"$error":"#N/A"},{"$error":"#N/A"},null,null,""]
[null,null,null,null,null,null,{"$error":"#N/A"},{"$error":"#N/A"},null,null,""]
[null,null,null,null,null,null,{"$error":"#N/A"},{"$error":"#N/A"},null,null,""]
[null,null,null,null,null,null,{"$error":"#N/A"},{"$error":"#N/A"},null,null,""]
[null,null,null,null,null,null,{"$error":"#N/A"},{"$error":"#N/A"},null,null,""]
[null,null,null,null,null,null,{"$f":"IF(COUNT(C1992)=1,C1992,#N/A)","v":{"$error":"#N/A"}},{"$f":"IF(COUNT(D1992:E1992)=2,ABS(D1992-E1992),#N/A)","v":{"$error":"#N/A"}},null,null,""]
[null,null,null,null,null,null,{"$error":"#N/A"},{"$error":"#N/A"},null,null,{"$f":"IFERROR(ABS((H1993-J1993)/J1993),\"\")","v":""}]
[null,null,null,null,null,null,{"$error":"#N/A"},{"$error":"#N/A"},null,null,""]
[null,null,null,null,null,null,{"$error":"#N/A"},{"$error":"#N/A"},null,null,""]
[null,null,null,null,null,null,{"$error":"#N/A"},{"$error":"#N/A"},null,null,""]
[null,null,null,null,null,null,{"$error":"#N/A"},{"$error":"#N/A"},null,null,""]
[null,null,null,null,null,null,{"$error":"#N/A"},{"$error":"#N/A"},null,null,""]
[null,null,null,null,null,null,{"$error":"#N/A"},{"$error":"#N/A"},null,null,""]
[null,null,null,null,null,null,{"$error":"#N/A"},{"$error":"#N/A"},null,null,""]
[null,null,null,null,null,null,{"$error":"#N/A"},{"$error":"#N/A"},null,null,""]
[null,null,null,null,null,null,{"$error":"#N/A"},{"$error":"#N/A"},null,null,""]
[null,null,null,null,null,null,{"$error":"#N/A"},{"$error":"#N/A"},null,null,""]
[null,null,null,null,null,null,{"$error":"#N/A"},{"$error":"#N/A"},null,null,""]
[null,null,null,null,null,null,{"$error":"#N/A"},{"$error":"#N/A"},null,null,""]
[null,null,null,null,null,null,{"$error":"#N/A"},{"$error":"#N/A"},null,null,""]
[null,null,null,null,null,null,{"$error":"#N/A"},{"$error":"#N/A"},null,null,""]

{"sheet":"Integrace","index":2,"n_rows":37,"n_cols":31,"rows_kept":37,"cut":false,"hidden":false,"merged":[[6,17,6,18],[7,17,7,18],[8,17,8,18],[4,17,4,20],[1,1,1,21]]}
[]
[null,"ALTERNATIVNÍ VÝPOČET INTEGRÁLŮ PRO ZÍSKÁNÍ STŘEDNÍ AERODYNAMICKÉ TĚTIVY"]
[]
[null,null,null,null,null,null,"dz","b(z)","b(z)^2","b(z)*z","x(z)","b(z)*x(z)","nosná plocha","bsat'","zsat'","xsat'"]
[null,null,null,null,null,null,10,null,null,null,null,null,null,null,null,null,null,"VÝSLEDNÉ HODNOTY "]
[]
[null,null,null,null,null,null,0,{"$f":"3.469446951954E-18*G7^2 - 0.166666666666669*G7 + 100","v":100},{"$f":"H7^2","v":10000},{"$f":"H7*G7","v":0},{"$f":"0.0833333333333335*G7 - 1.4210854715202E-14","v":-1.4210854715202001E-14},{"$f":"H7*K7","v":-1.4210854715202E-12},0,0,0,0,null,"Střední aerodynamická hloubka",null,{"$f":"2/MAX(M7:M2007)*(MAX(N7:N2007)-N7)/2","v":77.78395061728375}]
[null,null,null,null,null,null,{"$f":"G7+G$5","v":10},{"$f":"3.469446951954E-18*G8^2 - 0.166666666666669*G8 + 100","v":98.333333333333314},{"$f":"H8^2","v":9669.4444444444416},{"$f":"H8*G8","v":983.33333333333314},{"$f":"0.0833333333333335*G8 - 1.4210854715202E-14","v":0.83333333333332071},{"$f":"H8*K8","v":81.944444444443192},{"$f":"M7+0.5*(H8+H7)*G$5","v":991.66666666666652},{"$f":"N7+0.5*(I8+I7)*G$5","v":98347.222222222204},{"$f":"O7+0.5*(J8+J7)*G$5","v":4916.6666666666661},{"$f":"P7+0.5*(L8+L7)*G$5","v":409.72222222220887},null,"Poloha SAT na rozpětí ",null,{"$f":"2/MAX(M7:M2007)*(MAX(O7:O2007)-O7)/2","v":133.29629629629611}]
[null,null,null,null,null,null,{"$f":"G8+G$5","v":20},96.666666666666629,9344.444444444438,1933.3333333333326,1.6666666666666556,161.11111111110998,{"$f":"M8+0.5*(H9+H8)*G$5","v":1966.6666666666663},{"$f":"N8+0.5*(I9+I8)*G$5","v":193416.6666666666},{"$f":"O8+0.5*(J9+J8)*G$5","v":19499.999999999993},{"$f":"P8+0.5*(L9+L8)*G$5","v":1624.9999999999745},null,"Vzdálenost náběžné hrany ",null,{"$f":"2/MAX(M7:M2007)*(MAX(P7:P2007)-P7)/2","v":11.108024691358018}]
[null,null,null,null,null,null,30,94.999999999999929,9024.9999999999873,2849.9999999999977,2.4999999999999907,237.49999999999895,2924.9999999999991,285263.8888888887,43416.666666666642,3618.0555555555193]
[null,null,null,null,null,null,40,93.333333333333243,8711.1111111110949,3733.3333333333298,3.3333333333333255,311.11111111111006,3866.6666666666652,373944.44444444409,76333.333333333285,6361.111111111064]
[null,null,null,null,null,null,50,91.666666666666558,8402.7777777777574,4583.3333333333276,4.1666666666666607,381.94444444444343,4791.6666666666642,459513.88888888835,117916.66666666657,9826.3888888888323]
[null,null,null,null,null,null,60,89.999999999999872,8099.9999999999773,5399.9999999999927,4.9999999999999956,449.99999999999898,5699.9999999999964,542027.77777777705,167833.33333333317,13986.111111111044]
[null,null,null,null,null,null,70,88.333333333333186,7802.7777777777519,6183.333333333323,5.8333333333333304,515.27777777777669,6591.6666666666615,621541.6666666657,225749.99999999974,18812.499999999924,null,null,null,null,null,null,null,null,null,null,null,null,null,null,"F(z)"]
[null,null,null,null,null,null,80,86.666666666666501,7511.1111111110822,6933.3333333333203,6.6666666666666652,577.77777777777658,7466.6666666666597,698111.11111110984,291333.33333333296,24277.77777777769]
[null,null,null,null,null,null,90,84.999999999999815,7224.9999999999682,7649.9999999999836,7.5,637.49999999999864,8324.9999999999909,771791.66666666511,364249.99999999948,30354.166666666566,null,null,null,null,null,null,null,null,null,null,null,null,null,null,"F(0)"]
[null,null,null,null,null,null,100,83.333333333333144,6944.4444444444125,8333.3333333333139,8.3333333333333357,694.44444444444309,9166.6666666666551,842638.88888888701,444166.66666666593,37013.888888888774,null,null,null,null,null,null,null,null,null,null,null,null,null,null,"F(0)+0,5*(f(0)+F(0))*k"]
[null,null,null,null,null,null,110,81.666666666666458,6669.4444444444107,8983.3333333333103,9.1666666666666696,748.61111111110949,9991.6666666666533,910708.33333333116,530749.99999999907,44229.166666666541]
[null,null,null,null,null,null,120,79.999999999999773,6399.9999999999636,9599.9999999999727,10.000000000000005,799.99999999999818,10799.999999999985,976055.55555555306,623666.66666666546,51972.222222222081]
[null,null,null,null,null,null,130,78.333333333333087,6136.1111111110722,10183.333333333301,10.833333333333341,848.61111111110904,11591.66666666665,1038736.1111111082,722583.33333333186,60215.277777777621]
[null,null,null,null,null,null,140,76.666666666666401,5877.7777777777374,10733.333333333296,11.666666666666675,894.44444444444196,12366.666666666648,1098805.5555555522,827166.66666666488,68930.555555555373]
[null,null,null,null,null,null,150,74.99999999999973,5624.9999999999591,11249.99999999996,12.500000000000011,937.49999999999739,13124.999999999978,1156319.4444444408,937083.33333333116,78090.277777777577]
[null,null,null,null,null,null,160,73.333333333333059,5377.7777777777374,11733.333333333288,13.333333333333345,977.77777777777499,13866.666666666642,1211333.3333333293,1051999.9999999974,87666.666666666439]
[null,null,null,null,null,null,170,71.666666666666373,5136.1111111110686,12183.333333333283,14.16666666666668,1015.2777777777746,14591.666666666639,1263902.7777777733,1171583.3333333302,97631.944444444191]
[null,null,null,null,null,null,180,69.999999999999687,4899.9999999999563,12599.999999999944,15.000000000000014,1049.9999999999964,15299.999999999969,1314083.3333333284,1295499.9999999963,107958.33333333305]
[null,null,null,null,null,null,190,68.333333333333016,4669.4444444444007,12983.333333333274,15.83333333333335,1081.9444444444405,15991.666666666633,1361930.5555555501,1423416.6666666623,118618.05555555524]
[null,null,null,null,null,null,200,66.666666666666345,4444.4444444444016,13333.333333333268,16.666666666666686,1111.111111111107,16666.666666666631,1407499.9999999942,1554999.9999999951,129583.33333333298]
[null,null,null,null,null,null,210,64.999999999999659,4224.9999999999554,13649.999999999929,17.500000000000021,1137.4999999999955,17324.99999999996,1450847.222222216,1689916.6666666612,140826.3888888885]
[null,null,null,null,null,null,220,63.333333333332995,4011.1111111110681,13933.333333333259,18.333333333333353,1161.1111111111061,17966.666666666624,1492027.777777771,1827833.3333333272,152319.444444444]
[null,null,null,null,null,null,230,61.666666666666316,3802.7777777777346,14183.333333333252,19.166666666666689,1181.9444444444391,18591.666666666621,1531097.222222215,1968416.6666666598,164034.72222222172]
[null,null,null,null,null,null,240,59.999999999999645,3599.9999999999573,14399.999999999915,20.000000000000025,1199.9999999999943,19199.999999999949,1568111.1111111036,2111333.3333333256,175944.44444444389]
[null,null,null,null,null,null,250,58.333333333332973,3402.777777777736,14583.333333333243,20.833333333333361,1215.2777777777719,19791.666666666613,1603124.9999999921,2256249.9999999912,188020.83333333273]
[null,null,null,null,null,null,260,56.666666666666295,3211.111111111069,14733.333333333238,21.666666666666696,1227.7777777777715,20366.66666666661,1636194.4444444361,2402833.3333333237,200236.11111111045]
[null,null,null,null,null,null,270,54.999999999999631,3024.9999999999595,14849.9999999999,22.500000000000028,1237.4999999999932,20924.999999999938,1667374.9999999912,2550749.9999999893,212562.49999999927]
[null,null,null,null,null,null,280,53.333333333332952,2844.4444444444039,14933.333333333227,23.333333333333364,1244.4444444444373,21466.666666666602,1696722.2222222129,2699666.6666666549,224972.22222222143]
[null,null,null,null,null,null,290,51.666666666666288,2669.4444444444052,14983.333333333223,24.1666666666667,1248.6111111111036,21991.666666666599,1724291.666666657,2849249.999999987,237437.49999999913]
[null,null,null,null,null,null,300,49.999999999999616,2499.9999999999618,14999.999999999885,25.000000000000036,1249.9999999999923,22499.999999999927,1750138.8888888787,2999166.6666666525,249930.5555555546]